{"text_format":"1","workbook":"xlsx","n_sheets":41,"sheets":["Свод","Баганский","Барабинский","Бердск","Болотнинский","Венгеровский","Доволенский","Здвинский","Искитимский","Карасукский","Каргатский","Кольцово","Коченёвский","Кочковский","Краснозерский","Куйбышевский","Купинский","Кыштовский","Магистр","Маслянинский","Мошковский","НСК_Дзержинский_школы","НСК_Дзержинский_ДОУ","НСК_Ленинский","НСК_Октябрьский","НСК_Первомайский","НСК_Советский","НСК_Центральный","Новосибирский","Обь","Ордынский","Северный","Сузунский","Татарский","Тогучинский","Усть-Таркский","Чановский","Черепановский","Чистоозёрный","Чулымский","Конец"],"not_rendered":{"charts":0,"images":0,"macros":1,"external_links":0,"defined_names":1,"comments":0,"pivot_tables":0},"unopened":[],"bounds":{"document_bytes":16777216,"sheet_cells":100000,"rows_first":2000,"rows_last":500,"rows_between":2000,"halvings":0,"cell_chars":16384,"cell_head_chars":4096},"cells_cut":0,"cells_raw":0,"read":"whole","date_system":"1900"}

{"sheet":"Свод","index":0,"n_rows":51,"n_cols":48,"rows_kept":51,"cut":false,"hidden":false,"merged":[[30,1,32,1],[33,0,50,0],[33,1,36,1],[37,1,40,1],[41,1,44,1],[45,1,47,1],[48,1,50,1],[15,0,32,0],[15,1,18,1],[19,1,22,1],[23,1,26,1],[27,1,29,1],[3,0,14,0],[3,1,5,1],[6,1,8,1],[9,1,11,1],[12,1,14,1]]}
["Объёмы КЦ НСО по районам",null,2021,"год"]
[null,null,null,1,2,3,4,5,6,7,8,9,10,11,12,13,14,15,16,17,18,19,20,21,22,23,24,25,26,27,28,29,30,31,32,33,34,35,36,37,38,39,40,41,42,43,44,45]
[null,null,null,"Баганский","Барабинский","Бердск","Болотнинский","Венгеровский","Доволенский","Здвинский","Искитимский","Карасукский","Каргатский","Кольцово","Коченёвский","Кочковский","Краснозерский","Куйбышевский","Купинский","Кыштовский","Магистр","Маслянинский","Мошковский","НСК_Дзержинский_школы","НСК_Дзержинский_ДОУ","НСК_Ленинский","НСК_Октябрьский","НСК_Первомайский","НСК_Советский","НСК_Центральный","Новосибирский","Обь","Ордынский","Северный","Сузунский","Татарский","Тогучинский","Усть-Таркский","Чановский","Черепановский","Чистоозёрный","Чулымский",null,null,null,null,null,"Итого"]
["Общее количество обращений по видам помощи в   1 квартале 2021 г.","методическая помощь","очная ",18,37,0,11,0,0,34,13,34,null,0,0,33,88,5,59,3,37,0,0,298,138,67,0,22,0,0,105,2,49,0,87,0,0,21,155,0,60,0,null,null,null,null,null,1376]
[null,null,"дистанционная",13,9,0,1,0,0,12,5,44,null,0,1,12,29,0,20,2,4,0,0,450,18,15,0,0,0,0,29,0,13,0,20,0,0,5,3,0,0,0,null,null,null,null,null,705]
[null,null,"выездная",0,0,0,0,0,0,0,0,0,null,0,6,0,5,0,4,0,26,0,0,0,0,0,0,0,0,0,0,0,5,0,15,0,0,2,5,0,0,0,null,null,null,null,null,68]
[null,"психолого-педагогическая помощь","очная",31,68,248,2,0,0,47,28,163,null,0,16,29,92,0,57,3,0,113,0,996,64,41,49,119,0,0,282,2,80,0,254,0,0,38,409,4,60,0,null,null,null,null,null,3295]
[null,null,"дистанционная",6,16,0,2,0,0,9,0,14,null,0,8,5,20,0,10,5,0,2,0,296,20,1,82,0,0,0,34,0,12,0,14,0,0,6,22,0,0,0,null,null,null,null,null,584]
[null,null,"выездная",4,0,0,0,0,0,0,0,0,null,0,7,3,5,0,2,0,0,0,0,8,0,0,6,0,0,0,23,0,4,0,8,0,0,2,5,0,0,0,null,null,null,null,null,77]
[null,"диагностическая помощь","очная",32,29,194,0,0,0,16,26,18,null,0,53,23,17,0,131,3,0,84,0,1916,60,122,0,0,0,0,245,2,8,0,54,0,0,13,10,3,130,0,null,null,null,null,null,3189]
[null,null,"дистанционная",0,1,101,0,0,0,9,1,4,null,0,10,0,0,0,1,2,0,0,0,214,0,0,0,0,0,0,77,0,0,0,2,0,0,11,2,0,0,10,null,null,null,null,null,445]
[null,null,"выездная",4,0,0,0,0,0,0,0,0,null,0,10,0,0,0,0,0,0,0,0,0,0,0,0,0,0,0,0,0,0,0,12,0,0,2,0,0,0,0,null,null,null,null,null,28]
[null,"консультативная помощь","очная",8,185,371,16,0,5,74,108,110,null,29,46,256,139,1,173,27,1468,33,0,1158,134,102,82,117,0,0,1123,57,200,31,258,0,24,46,1023,0,130,7,null,null,null,null,null,7541]
[null,null,"дистанционная",44,29,26,3,0,0,27,5,85,null,2,1,11,19,1,91,5,38,6,0,302,6,0,78,0,0,30,331,8,64,9,73,0,0,16,199,0,0,0,null,null,null,null,null,1509]
[null,null,"выездная",0,1,0,0,0,0,0,0,0,null,0,10,1,5,0,19,0,1,0,0,0,0,0,5,0,0,0,5,0,6,0,9,0,0,2,36,0,0,0,null,null,null,null,null,100]
["Общее количество родителей(законных представителей), обратившихся за помощью  в 1 квартале 2021 г","Количество родителей (з/пр) с детьми, получающими дошкольное образование                 в форме семейного образования"," до 1,5 лет",0,0,0,0,0,0,0,0,0,null,0,0,0,0,0,0,0,0,0,0,0,0,0,0,0,0,0,0,0,0,0,0,0,0,0,0,0,0,0,null,null,null,null,null,0]
[null,null,"от 1,5 до 3 лет",0,0,0,0,0,0,0,0,0,null,0,0,0,0,0,0,0,0,0,0,0,2,0,0,0,0,0,0,0,0,0,0,0,0,0,0,0,0,0,null,null,null,null,null,2]
[null,null,"от 4 до 7 лет",0,0,0,0,0,0,3,0,0,null,0,0,0,0,0,0,0,0,0,0,0,0,0,0,0,0,0,0,0,0,0,0,0,0,0,0,0,0,2,null,null,null,null,null,5]
[null,null,"7 лет и старше",0,0,0,0,0,0,0,0,0,null,0,0,0,0,0,0,0,0,0,0,0,0,0,0,0,0,0,0,0,0,0,0,0,0,0,0,0,0,0,null,null,null,null,null,0]
[null,"Количество родителей (з/пр) детей,  не получающих дошкольное образование","до 1,5 лет",0,6,0,0,0,0,1,0,0,null,0,0,0,0,0,0,0,0,0,0,0,0,2,0,0,0,0,0,1,0,0,0,0,0,17,1,0,0,0,null,null,null,null,null,28]
[null,null,"от 1,5 до 3 лет",0,11,100,1,0,0,4,0,0,null,0,0,0,0,0,0,0,0,2,0,0,22,0,0,0,0,0,1,1,0,0,0,0,0,12,1,0,0,0,null,null,null,null,null,155]
[null,null,"от 3 до 7 лет",13,2,42,2,0,0,0,0,0,null,0,0,0,0,0,3,5,0,2,0,0,20,2,0,0,0,0,7,3,3,1,2,0,4,3,2,0,0,0,null,null,null,null,null,116]
[null,null,"7 лет и старше",0,0,30,0,0,0,0,0,0,null,0,0,0,0,0,0,0,0,4,0,0,0,1,0,0,0,0,3,0,0,0,0,0,0,2,0,0,0,0,null,null,null,null,null,40]
[null,"Количество родителей (з/пр),  с детьми, получающими дошкольное образование в ДОО","до 1,5 лет",0,0,0,0,0,0,2,1,2,null,0,0,0,0,0,2,0,0,4,0,0,0,0,0,0,0,0,0,0,0,0,0,0,0,0,0,0,0,0,null,null,null,null,null,11]
[null,null,"от 1,5 до 3 лет",0,28,0,2,0,0,8,29,131,null,0,0,15,4,2,5,0,27,8,0,0,10,43,0,0,0,0,34,11,3,1,23,0,0,15,27,0,0,0,null,null,null,null,null,426]
[null,null,"от 3 до 7 лет",27,150,51,6,0,0,37,32,118,null,0,26,74,6,4,63,0,757,32,0,18,42,172,0,3,0,0,485,5,73,4,62,0,20,37,189,5,0,0,null,null,null,null,null,2498]
[null,null,"7 лет и старше",0,9,18,0,0,0,0,1,23,null,0,2,0,0,0,0,0,0,53,0,10,0,16,0,0,0,0,9,0,4,0,10,0,0,2,9,0,0,0,null,null,null,null,null,166]
[null,"Количество родителей (з/пр),  с детьми школьниками, получающими  образование в форме семейного образования","7-11 лет",0,17,0,0,0,0,0,0,0,null,0,0,0,0,0,0,3,0,0,0,12,0,1,1,2,0,0,4,0,1,0,0,0,0,1,0,0,0,0,null,null,null,null,null,42]
[null,null,"12-15 лет",0,2,0,0,0,0,0,2,0,null,0,0,0,0,0,0,4,0,0,0,16,0,0,0,2,0,0,2,0,2,0,0,0,0,3,0,0,0,0,null,null,null,null,null,33]
[null,null,"16 лет и старше",0,3,0,0,0,0,0,0,0,null,2,0,0,1,0,0,0,0,0,0,2,0,1,0,1,0,0,1,0,2,1,0,0,0,2,2,0,0,0,null,null,null,null,null,18]
[null,"Количество родителей (з/пр), обратившихся  с детьми школьниками, получающими  образование в ОО","7-11 лет",18,50,327,15,0,0,28,41,8,null,23,25,68,46,1,70,0,385,11,0,628,6,9,53,86,0,15,587,12,144,10,141,0,0,14,327,1,160,6,null,null,null,null,null,3315]
[null,null," 12-15 лет",13,47,210,2,0,5,41,38,78,null,5,14,143,71,0,114,0,335,9,0,424,0,15,71,37,0,9,336,4,135,4,97,0,0,19,358,0,180,2,null,null,null,null,null,2816]
[null,null,"16 лет и старше",11,8,10,1,0,0,4,8,13,null,0,3,25,17,0,19,0,14,6,0,118,0,4,27,8,0,6,121,1,23,3,41,0,0,5,72,0,40,7,null,null,null,null,null,615]
["Общее количество детей, охваченных услугами в 1 квартале  2021 г","Количество детей, получающих дошкольное образование в семейной форме"," до 1,5 лет",0,3,0,0,0,0,0,0,0,null,0,0,0,0,0,0,0,0,0,0,0,2,0,0,0,0,0,0,0,0,0,0,0,0,0,0,0,0,0,null,null,null,null,null,5]
[null,null,"от 1,5 до 3 лет",0,0,0,0,0,0,0,0,0,null,0,0,0,0,0,0,0,11,0,0,0,0,0,0,0,0,0,0,0,0,0,0,0,0,0,0,0,0,0,null,null,null,null,null,11]
[null,null,"от 3 до 7 лет",0,0,0,0,0,0,3,0,0,null,0,0,0,0,0,0,0,230,0,0,0,4,0,0,0,0,0,0,0,0,0,0,0,0,0,0,0,0,2,null,null,null,null,null,239]
[null,null," 7 лет и старше",0,0,0,0,0,0,0,0,0,null,0,0,0,0,0,0,0,0,0,0,0,0,0,0,0,0,0,0,0,0,0,0,0,0,0,0,0,0,0,null,null,null,null,null,0]
[null,"Количество детей, не получающих дошкольное образование"," до 1,5 лет",0,3,0,0,0,0,1,0,0,null,0,0,0,0,0,0,0,0,0,0,0,2,3,0,0,0,0,3,1,0,0,0,0,0,17,1,0,0,0,null,null,null,null,null,31]
[null,null,"от 1,5 до 3 лет",0,11,3,1,0,0,4,0,0,null,0,0,0,0,0,0,0,0,2,0,0,10,2,0,0,0,0,1,0,0,0,0,0,0,12,1,0,0,0,null,null,null,null,null,47]
[null,null,"от 3 до 7 лет",4,2,10,4,0,0,0,0,0,null,0,0,0,0,0,3,0,0,2,0,0,6,2,0,0,0,0,7,3,3,1,1,0,4,3,2,0,0,0,null,null,null,null,null,57]
[null,null," 7 лет и старше",0,3,1,0,0,0,0,0,0,null,0,0,0,0,0,0,0,0,4,0,0,0,1,0,0,0,0,3,0,0,0,0,0,0,2,0,0,0,0,null,null,null,null,null,14]
[null,"Количество детей, получающих дошкольное образование в ДОО","до 1,5 лет",0,11,0,0,0,0,2,1,54,null,0,0,0,0,0,2,0,0,4,0,0,0,0,0,0,0,0,0,0,0,0,0,0,0,0,0,0,0,0,null,null,null,null,null,74]
[null,null,"от 1,5 до 3 лет",0,28,0,2,0,0,8,36,89,null,0,9,11,4,2,7,0,16,8,0,0,72,42,0,0,0,0,33,9,3,1,24,0,0,15,34,0,0,0,null,null,null,null,null,453]
[null,null,"от 3 до 7 лет",27,133,76,10,0,0,61,38,58,null,0,35,62,6,4,70,5,527,32,0,158,86,170,0,20,0,0,483,5,72,4,73,0,20,37,213,6,0,0,null,null,null,null,null,2491]
[null,null,"7 лет и старше",0,1,22,0,0,0,0,1,8,null,0,2,0,0,0,0,0,0,53,0,0,0,16,0,0,0,0,9,0,4,0,10,0,0,2,9,0,0,0,null,null,null,null,null,137]
[null,"Количество детей школьников, получающих образование в семейной форме","7-11 лет",0,0,0,0,0,0,0,0,6,null,0,0,0,0,0,0,0,0,0,0,6,0,1,0,4,0,0,0,0,1,0,0,0,0,1,0,0,0,0,null,null,null,null,null,19]
[null,null," 12-15 лет",0,0,0,0,0,0,0,2,1,null,0,0,0,0,0,0,0,0,0,0,16,0,0,1,2,0,0,1,0,3,0,0,0,0,3,0,0,0,0,null,null,null,null,null,29]
[null,null,"16 лет и старше",0,3,0,0,0,0,0,0,9,null,2,0,0,1,0,0,0,0,0,0,2,0,1,0,1,0,0,1,0,2,1,0,0,0,2,2,0,0,0,null,null,null,null,null,27]
[null,"Количество детей школьников, получающих образование в ОО","7-10 лет",21,56,604,15,0,8,29,55,7,null,23,25,65,43,1,70,4,371,11,0,13490,4,9,53,114,0,15,595,12,158,10,194,0,0,14,417,1,160,9,null,null,null,null,null,16663]
[null,null,"12-15 лет",14,65,295,2,0,12,40,46,49,null,5,14,142,79,0,114,9,327,9,0,13788,0,15,76,53,0,9,346,4,163,4,118,0,0,19,402,0,180,3,null,null,null,null,null,16402]
[null,null,"16 лет и старше",11,11,13,1,0,0,4,8,13,null,0,3,26,25,0,19,4,14,6,0,3566,0,4,27,10,0,6,115,1,26,3,51,0,0,5,69,0,40,5,null,null,null,null,null,4086]

{"sheet":"Баганский","index":1,"n_rows":49,"n_cols":6,"rows_kept":49,"cut":false,"hidden":false,"merged":[[1,0,12,0],[1,1,3,1],[4,1,6,1],[7,1,9,1],[10,1,12,1],[28,1,30,1],[31,0,48,0],[31,1,34,1],[35,1,38,1],[39,1,42,1],[43,1,45,1],[46,1,48,1],[13,0,30,0],[13,1,16,1],[17,1,20,1],[21,1,24,1],[25,1,27,1]]}
[null,null,null,"консультационный центр  на базе МКДОУ Баганский детский сад №2 \"Солнышко\"","консультационный центр на базе МБОУ Баганской СОШ№1","Итого"]
["Общее количество обращений по видам помощи в   1 квартале 2021 г.","методическая помощь","очная ",15,3,18]
[null,null,"дистанционная",12,1,13]
[null,null,"выездная",0,0,0]
[null,"психолого-педагогическая помощь","очная",10,21,31]
[null,null,"дистанционная",3,3,6]
[null,null,"выездная",0,4,4]
[null,"диагностическая помощь","очная",10,22,32]
[null,null,"дистанционная",0,0,0]
[null,null,"выездная",0,4,4]
[null,"консультативная помощь","очная",5,3,8]
[null,null,"дистанционная",4,40,44]
[null,null,"выездная",0,0,0]
["Общее количество родителей(законных представителей), обратившихся за помощью  в 1 квартале 2021 г","Количество родителей (з/пр) с детьми, получающими дошкольное образование                 в форме семейного образования"," до 1,5 лет",0,0,0]
[null,null,"от 1,5 до 3 лет",0,0,0]
[null,null,"от 3 до 7 лет",0,0,0]
[null,null,"7 лет и старше",0,0,0]
[null,"Количество родителей (з/пр) детей,  не получающих дошкольное образование","до 1,5 лет",0,0,0]
[null,null,"от 1,5 до 3 лет",0,0,0]
[null,null,"от 3 до 7 лет",12,1,13]
[null,null,"7 лет и старше",0,0,0]
[null,"Количество родителей (з/пр),  с детьми, получающими дошкольное образование в ДОО","до 1,5 лет",0,0,0]
[null,null,"от 1,5 до 3 лет",0,0,0]
[null,null,"от 3 до 7 лет",27,0,27]
[null,null,"7 лет и старше",0,0,0]
[null,"Количество родителей (з/пр),  с детьми школьниками, получающими  образование в форме семейного образования","7-11 лет",0,0,0]
[null,null,"12-15 лет",0,0,0]
[null,null,"16 лет и старше",0,0,0]
[null,"Количество родителей (з/пр), обратившихся  с детьми школьниками, получающими  образование в ОО","7-11 лет",0,18,18]
[null,null," 12-15 лет",0,13,13]
[null,null,"16 лет и старше",0,11,11]
["Общее количество детей, охваченных услугами в 1 квартале  2021 г","Количество детей, получающих дошкольное образование в семейной форме"," до 1,5 лет",0,0,0]
[null,null,"от 1,5 до 3 лет",0,0,0]
[null,null,"от 3 до 7 лет",0,0,0]
[null,null," 7 лет и старше",0,0,0]
[null,"Количество детей, не получающих дошкольное образование"," до 1,5 лет",0,0,0]
[null,null,"от 1,5 до 3 лет",0,0,0]
[null,null,"от 3 до 7 лет",3,1,4]
[null,null," 7 лет и старше",0,0,0]
[null,"Количество детей, получающих дошкольное образование в ДОО","до 1,5 лет",0,0,0]
[null,null,"от 1,5 до 3 лет",0,0,0]
[null,null,"от 3 до 7 лет",27,0,27]
[null,null,"7 лет и старше",0,0,0]
[null,"Количество детей школьников, получающих образование в семейной форме","7-11 лет",0,0,0]
[null,null," 12-15 лет",0,0,0]
[null,null,"16 лет и старше",0,0,0]
[null,"Количество детей школьников, получающих образование в ОО","7-11 лет",0,21,21]
[null,null,"12-15 лет",0,14,14]
[null,null,"16 лет и старше",0,11,11]

{"sheet":"Барабинский","index":2,"n_rows":49,"n_cols":36,"rows_kept":49,"cut":false,"hidden":false,"merged":[[28,1,30,1],[31,0,48,0],[31,1,34,1],[35,1,38,1],[39,1,42,1],[43,1,45,1],[46,1,48,1],[13,0,30,0],[13,1,16,1],[17,1,20,1],[21,1,24,1],[25,1,27,1],[1,0,12,0],[1,1,3,1],[4,1,6,1],[7,1,9,1],[10,1,12,1]]}
[null,"1 квартал 2021",null,"МКДОУ №1 \"Ручеек\"","МКДОУ №2","МКДОУ №3","МКДОУ №4","МКДОУ №5 \"Рябинка\"","МКДОУ №6","МБДОУ №7 \"Радуга\"","МБДОУ №8 \"Солнышко\""," МКДОУ Новоярковский детский сад"," МКДОУ Новоульяновский детский сад"," МКДОУ Новокурупкаевский детский сад"," МКДОУ Новокозловский детский сад","МКОУ СОШ №1","МБОУ СОШ №2","МБОУ СОШ №3","МКОУ СОШ №47","МБОУ СОШ №92","МБОУ СОШ №93","МКОУ Устьянцевская СОШ","МКОУ Козловская СОШ","МКОУ Новоярковская СОШ","МКОУ Новоспасская СОШ","МКОУ Новочановская СОШ","МКОУ Новониколаевская СОШ","МКОУ Старощербаковская СОШ","МКОУ Шубинская СОШ","МКОУ Кармаклинская СОШ","МКОУ Зюзинская СОШ","МКОУ Таскаевская СОШ","МКОУ Бадажковская ООШ","МКОУ Тополевская ООШ","МКОУ Кожевниковская НОШ","Итого"]
["Общее количество обращений по видам помощи в   1 квартале 2021 г.","методическая помощь","очная ",0,0,7,0,0,0,3,0,0,0,2,0,2,0,0,3,0,0,3,0,6,0,0,0,0,1,0,1,4,0,3,2,37]
[null,null,"дистанционная",0,0,0,0,0,0,0,0,0,0,1,0,2,0,0,0,0,0,0,2,0,0,0,0,0,1,0,3,0,0,0,0,9]
[null,null,"выездная",0,0,0,0,0,0,0,0,0,0,0,0,0,0,0,0,0,0,0,0,0,0,0,0,0,0,0,0,0,0,0,0,0]
[null,"психолого-педагогическая помощь","очная",9,0,5,2,0,0,2,10,0,0,1,0,9,6,5,3,0,0,0,0,1,1,1,0,0,3,0,1,8,1,0,0,68]
[null,null,"дистанционная",0,0,0,1,0,0,0,8,0,0,2,0,3,0,0,0,0,0,0,0,0,0,0,0,0,1,0,0,0,1,0,0,16]
[null,null,"выездная",0,0,0,0,0,0,0,0,0,0,0,0,0,0,0,0,0,0,0,0,0,0,0,0,0,0,0,0,0,0,0,0,0]
[null,"диагностическая помощь","очная",0,0,3,2,0,0,2,10,0,0,0,0,3,0,0,1,0,0,0,0,0,0,0,0,0,1,0,4,3,0,0,0,29]
[null,null,"дистанционная",0,0,0,0,0,0,0,0,null,0,0,0,0,0,0,0,0,0,0,0,0,0,0,0,0,1,0,0,0,0,0,0,1]
[null,null,"выездная",0,0,0,0,0,0,0,0,0,0,0,0,0,0,0,0,0,0,0,0,0,0,0,0,0,0,0,0,0,0,0,0,0]
[null,"консультативная помощь","очная",10,3,4,0,18,19,52,0,4,0,1,8,6,0,5,3,7,7,3,1,2,1,5,9,0,1,3,1,12,0,0,0,185]
[null,null,"дистанционная",0,0,0,0,0,{"$f":"5+2","v":7},0,0,0,0,2,0,2,7,0,0,0,2,0,0,0,0,0,0,0,2,4,2,0,1,0,0,29]
[null,null,"выездная",0,0,0,0,0,0,0,0,0,0,0,0,0,0,0,0,0,0,0,0,1,0,0,0,0,0,0,0,0,0,0,0,1]
["Общее количество родителей(законных представителей), обратившихся за помощью  в 1 квартале 2021 г","Количество родителей (з/пр) с детьми, получающими дошкольное образование                 в форме семейного образования"," до 1,5 лет",0,0,0,0,0,0,0,0,0,0,0,0,0,0,0,0,0,0,0,0,0,0,0,0,0,0,0,0,0,0,0,0,0]
[null,null,"от 1,5 до 3 лет",0,0,0,0,0,0,0,0,0,0,0,0,0,0,0,0,0,0,0,0,0,0,0,0,0,0,0,0,0,0,0,0,0]
[null,null,"от 4 до 7 лет",0,0,0,0,0,0,0,0,0,0,0,0,0,0,0,0,0,0,0,0,0,0,0,0,0,0,0,0,0,0,0,0,0]
[null,null,"7 лет и старше",0,0,0,0,0,0,0,0,0,0,0,0,0,0,0,0,0,0,0,0,0,0,0,0,0,0,0,0,0,0,0,0,0]
[null,"Количество родителей (з/пр) детей,  не получающих дошкольное образование","до 1,5 лет",0,0,0,0,0,0,2,0,0,0,1,3,0,0,0,0,0,0,0,0,0,0,0,0,0,0,0,0,0,0,0,0,6]
[null,null,"от 1,5 до 3 лет",0,0,0,0,0,0,11,0,0,0,0,0,0,0,0,0,0,0,0,0,0,0,0,0,0,0,0,0,0,0,0,0,11]
[null,null,"от 3 до 7 лет",0,0,0,0,0,0,0,0,0,0,0,0,0,0,0,0,0,0,2,0,0,0,0,0,0,0,0,0,0,0,0,0,2]
[null,null,"7 лет и старше",0,0,0,0,0,0,0,0,0,0,0,0,0,0,0,0,0,0,0,0,0,0,0,0,0,0,0,0,0,0,0,0,0]
[null,"Количество родителей (з/пр),  с детьми, получающими дошкольное образование в ДОО","до 1,5 лет",0,0,0,0,0,0,0,0,0,0,0,0,0,0,0,0,0,0,0,0,0,0,0,0,0,0,0,0,0,0,0,0,0]
[null,null,"от 1,5 до 3 лет",0,1,0,0,0,0,23,1,0,0,3,0,0,0,0,0,0,0,0,0,0,0,0,0,0,0,0,0,0,0,0,0,28]
[null,null,"от 3 до 7 лет",19,2,19,4,17,24,23,27,4,0,5,0,0,0,0,0,0,0,0,0,0,0,0,1,0,0,0,0,4,1,0,0,150]
[null,null,"7 лет и старше",0,0,0,0,1,0,0,0,0,0,0,0,0,5,0,1,0,0,0,0,0,0,0,0,0,0,2,0,0,0,0,0,9]
[null,"Количество родителей (з/пр),  с детьми школьниками, получающими  образование в форме семейного образования","7-11 лет",0,0,0,0,0,0,0,0,0,0,0,0,0,7,4,1,0,0,0,0,0,0,0,0,0,0,5,0,0,0,0,0,17]
[null,null,"12-15 лет",0,0,0,0,0,0,0,0,0,0,0,0,0,1,0,1,0,0,0,0,0,0,0,0,0,0,0,0,0,0,0,0,2]
[null,null,"16 лет и старше",0,0,0,0,0,0,0,0,0,0,0,0,2,0,0,0,0,0,1,0,0,0,0,0,0,0,0,0,0,0,0,0,3]
[null,"Количество родителей (з/пр), обратившихся  с детьми школьниками, получающими  образование в ОО","7-11 лет",0,0,0,0,0,0,0,0,0,0,0,0,13,0,0,0,3,4,1,1,2,1,4,2,0,2,0,3,8,1,3,2,50]
[null,null," 12-15 лет",0,0,0,0,0,0,0,0,0,0,0,0,8,0,0,0,4,5,2,2,7,0,2,0,0,4,0,1,11,1,0,0,47]
[null,null,"16 лет и старше",0,0,0,0,0,0,0,0,0,0,0,0,3,0,0,0,0,0,0,0,1,1,0,0,0,1,0,0,2,0,0,0,8]
["Общее количество детей, охваченных услугами в 1 квартале  2021 г","Количество детей, получающих дошкольное образование в семейной форме"," до 1,5 лет",0,0,0,0,0,0,0,0,0,0,0,3,0,0,0,0,0,0,0,0,0,0,0,0,0,0,0,0,0,0,0,0,3]
[null,null,"от 1,5 до 3 лет",0,0,0,0,0,0,0,0,0,0,0,0,0,0,0,0,0,0,0,0,0,0,0,0,0,0,0,0,0,0,0,0,0]
[null,null,"от 3 до 7 лет",0,0,0,0,0,0,0,0,0,0,0,0,0,0,0,0,0,0,0,0,0,0,0,0,0,0,0,0,0,0,0,0,0]
[null,null," 7 лет и старше",0,0,0,0,0,0,0,0,0,0,0,0,0,0,0,0,0,0,0,0,0,0,0,0,0,0,0,0,0,0,0,0,0]
[null,"Количество детей, не получающих дошкольное образование"," до 1,5 лет",0,0,0,0,0,0,2,0,0,0,1,0,0,0,0,0,0,0,0,0,0,0,0,0,0,0,0,0,0,0,0,0,3]
[null,null,"от 1,5 до 3 лет",0,0,0,0,0,0,11,0,0,0,0,0,0,0,0,0,0,0,0,0,0,0,0,0,0,0,0,0,0,0,0,0,11]
[null,null,"от 3 до 7 лет",0,0,0,0,0,0,0,0,0,0,0,0,0,0,0,0,0,0,2,0,0,0,0,0,0,0,0,0,0,0,0,0,2]
[null,null," 7 лет и старше",0,0,0,0,0,0,0,0,0,0,0,0,0,0,0,1,0,0,0,0,0,0,0,0,0,0,2,0,0,0,0,0,3]
[null,"Количество детей, получающих дошкольное образование в ДОО","до 1,5 лет",0,0,0,0,0,0,0,0,0,0,0,0,0,0,5,1,0,0,0,0,0,0,0,0,0,0,5,0,0,0,0,0,11]
[null,null,"от 1,5 до 3 лет",0,0,0,0,0,0,23,1,0,0,3,0,0,0,0,1,0,0,0,0,0,0,0,0,0,0,0,0,0,0,0,0,28]
[null,null,"от 3 до 7 лет",19,0,0,5,17,26,23,27,4,0,6,0,0,0,0,0,0,0,0,0,0,0,0,1,0,0,0,0,4,1,0,0,133]
[null,null,"7 лет и старше",0,0,0,0,1,0,0,0,0,0,0,0,0,0,0,0,0,0,0,0,0,0,0,0,0,0,0,0,0,0,0,0,1]
[null,"Количество детей школьников, получающих образование в семейной форме","7-11 лет",0,0,0,0,0,0,0,0,0,0,0,0,0,0,0,0,0,0,0,0,0,0,0,0,0,0,0,0,0,0,0,0,0]
[null,null," 12-15 лет",0,0,0,0,0,0,0,0,0,0,0,0,0,0,0,0,0,0,0,0,0,0,0,0,0,0,0,0,0,0,0,0,0]
[null,null,"16 лет и старше",0,0,0,0,0,0,0,0,0,0,0,0,2,0,0,0,0,0,1,0,0,0,0,0,0,0,0,0,0,0,0,0,3]
[null,"Количество детей школьников, получающих образование в ОО","7-10 лет",0,0,0,0,0,0,0,0,0,0,0,0,15,5,0,0,3,4,2,1,2,1,4,2,0,2,0,3,7,1,2,2,56]
[null,null,"12-15 лет",0,0,0,0,0,0,0,0,0,0,0,0,8,7,0,0,4,5,3,2,7,0,2,0,0,5,0,7,14,1,0,0,65]
[null,null,"16 лет и старше",0,0,0,0,0,0,0,0,0,0,0,0,3,1,0,0,0,0,0,0,1,1,0,0,0,1,0,2,2,0,0,0,11]

{"sheet":"Бердск","index":3,"n_rows":49,"n_cols":6,"rows_kept":49,"cut":false,"hidden":false,"merged":[[28,1,30,1],[31,0,48,0],[31,1,34,1],[35,1,38,1],[39,1,42,1],[43,1,45,1],[46,1,48,1],[13,0,30,0],[13,1,16,1],[17,1,20,1],[21,1,24,1],[25,1,27,1],[1,0,12,0],[1,1,3,1],[4,1,6,1],[7,1,9,1],[10,1,12,1]]}
[null,null,null,"СОШ № 9","МБОУ ДО \"Перспектива\"","Итого"]
["Общее количество обращений по видам помощи в   1 квартале 2021 г.","методическая помощь","очная ",null,null,0]
[null,null,"дистанционная",null,null,0]
[null,null,"выездная",null,null,0]
[null,"психолого-педагогическая помощь","очная",1,247,248]
[null,null,"дистанционная",null,null,0]
[null,null,"выездная",null,null,0]
[null,"диагностическая помощь","очная",null,194,194]
[null,null,"дистанционная",null,101,101]
[null,null,"выездная",null,null,0]
[null,"консультативная помощь","очная",24,347,371]
[null,null,"дистанционная",2,24,26]
[null,null,"выездная",null,null,0]
["Общее количество родителей(законных представителей), обратившихся за помощью  в 1 квартале 2021 г","Количество родителей (з/пр) с детьми, получающими дошкольное образование                 в форме семейного образования"," до 1,5 лет",null,null,0]
[null,null,"от 1,5 до 3 лет",null,null,0]
[null,null,"от 3 до 7 лет",null,null,0]
[null,null,"7 лет и старше",null,null,0]
[null,"Количество родителей (з/пр) детей,  не получающих дошкольное образование","до 1,5 лет",null,null,0]
[null,null,"от 1,5 до 3 лет",null,100,100]
[null,null,"от 3 до 7 лет",null,42,42]
[null,null,"7 лет и старше",null,30,30]
[null,"Количество родителей (з/пр),  с детьми, получающими дошкольное образование в ДОО","до 1,5 лет",null,null,0]
[null,null,"от 1,5 до 3 лет",null,null,0]
[null,null,"от 3 до 7 лет",null,51,51]
[null,null,"7 лет и старше",null,18,18]
[null,"Количество родителей (з/пр),  с детьми школьниками, получающими  образование в форме семейного образования","7-11 лет",null,null,0]
[null,null,"12-15 лет",null,null,0]
[null,null,"16 лет и старше",null,null,0]
[null,"Количество родителей (з/пр), обратившихся  с детьми школьниками, получающими  образование в ОО","7-11 лет",6,321,327]
[null,null," 12-15 лет",8,202,210]
[null,null,"16 лет и старше",null,10,10]
["Общее количество детей, охваченных услугами в 1 квартале  2021 г","Количество детей, получающих дошкольное образование в семейной форме"," до 1,5 лет",null,null,0]
[null,null,"от 1,5 до 3 лет",null,null,0]
[null,null,"от 3 до 7 лет",null,null,0]
[null,null," 7 лет и старше",null,null,0]
[null,"Количество детей, не получающих дошкольное образование"," до 1,5 лет",null,null,0]
[null,null,"от 1,5 до 3 лет",null,3,3]
[null,null,"от 3 до 7 лет",null,10,10]
[null,null," 7 лет и старше",null,1,1]
[null,"Количество детей, получающих дошкольное образование в ДОО","до 1,5 лет",null,null,0]
[null,null,"от 1,5 до 3 лет",null,null,0]
[null,null,"от 3 до 7 лет",null,76,76]
[null,null,"7 лет и старше",null,22,22]
[null,"Количество детей школьников, получающих образование в семейной форме","7-11 лет",null,null,0]
[null,null," 12-15 лет",null,null,0]
[null,null,"16 лет и старше",null,null,0]
[null,"Количество детей школьников, получающих образование в ОО","7-11 лет",4,600,604]
[null,null,"12-15 лет",9,286,295]
[null,null,"16 лет и старше",null,13,13]

{"sheet":"Болотнинский","index":4,"n_rows":49,"n_cols":7,"rows_kept":49,"cut":false,"hidden":false,"merged":[[28,1,30,1],[31,0,48,0],[31,1,34,1],[35,1,38,1],[39,1,42,1],[43,1,45,1],[46,1,48,1],[13,0,30,0],[13,1,16,1],[17,1,20,1],[21,1,24,1],[25,1,27,1],[1,0,12,0],[1,1,3,1],[4,1,6,1],[7,1,9,1],[10,1,12,1]]}
[null,null,null,"Цнгтр Дельфин","МБДОУ д.с. Сказка","ОО №3","Итого"]
["Общее количество обращений по видам помощи в    1 квартале 2021 г","методическая помощь","очная ",11,0,null,11]
[null,null,"дистанционная",null,1,null,1]
[null,null,"выездная",null,0,null,0]
[null,"психолого-педагогическая помощь","очная",1,1,null,2]
[null,null,"дистанционная",2,0,null,2]
[null,null,"выездная",null,0,null,0]
[null,"диагностическая помощь","очная",null,0,null,0]
[null,null,"дистанционная",null,0,null,0]
[null,null,"выездная",null,0,null,0]
[null,"консультативная помощь","очная",12,4,null,16]
[null,null,"дистанционная",3,0,null,3]
[null,null,"выездная",null,0,null,0]
["Общее количество родителей(законных представителей), обратившихся за помощью  в 1 квартале 2021 г.","Количество родителей (з/пр) с детьми, получающими дошкольное образование                 в форме семейного образования"," до 1,5 лет",null,0,null,0]
[null,null,"от 1,5 до 3 лет",null,0,null,0]
[null,null,"от 4 до 7 лет",null,0,null,0]
[null,null,"7 лет и старше",null,0,null,0]
[null,"Количество родителей (з/пр) детей,  не получающих дошкольное образование","до 1,5 лет",null,0,null,0]
[null,null,"от 1,5 до 3 лет",1,0,null,1]
[null,null,"от 3 до 7 лет",2,0,null,2]
[null,null,"7 лет и старше",null,0,null,0]
[null,"Количество родителей (з/пр),  с детьми, получающими дошкольное образование в ДОО","до 1,5 лет",null,0,null,0]
[null,null,"от 1,5 до 3 лет",null,2,null,2]
[null,null,"от 3 до 7 лет",2,4,null,6]
[null,null,"7 лет и старше",null,0,null,0]
[null,"Количество родителей (з/пр),  с детьми школьниками, получающими  образование в форме семейного образования","7-11 лет",null,0,null,0]
[null,null,"12-15 лет",null,0,null,0]
[null,null,"16 лет и старше",null,0,null,0]
[null,"Количество родителей (з/пр), обратившихся  с детьми школьниками, получающими  образование в ОО","7-11 лет",15,0,null,15]
[null,null," 12-15 лет",2,0,null,2]
[null,null,"16 лет и старше",1,0,null,1]
["Общее количество детей, охваченных услугами в 1 квартале 2021 г.","Количество детей, получающих дошкольное образование в семейной форме"," до 1,5 лет",null,0,null,0]
[null,null,"от 1,5 до 3 лет",null,0,null,0]
[null,null,"от 3 до 7 лет",null,0,null,0]
[null,null," 7 лет и старше",null,0,null,0]
[null,"Количество детей, не получающих дошкольное образование"," до 1,5 лет",null,0,null,0]
[null,null,"от 1,5 до 3 лет",1,0,null,1]
[null,null,"от 3 до 7 лет",4,0,null,4]
[null,null," 7 лет и старше",null,0,null,0]
[null,"Количество детей, получающих дошкольное образование в ДОО","до 1,5 лет",null,0,null,0]
[null,null,"от 1,5 до 3 лет",null,2,null,2]
[null,null,"от 3 до 7 лет",6,4,null,10]
[null,null,"7 лет и старше",null,0,null,0]
[null,"Количество детей школьников, получающих образование в семейной форме","7-11 лет",null,0,null,0]
[null,null," 12-15 лет",null,0,null,0]
[null,null,"16 лет и старше",null,0,null,0]
[null,"Количество детей школьников, получающих образование в ОО","7-10 лет",15,0,null,15]
[null,null,"12-15 лет",2,0,null,2]
[null,null,"16 лет и старше",1,0,null,1]

{"sheet":"Венгеровский","index":5,"n_rows":49,"n_cols":5,"rows_kept":49,"cut":false,"hidden":false,"merged":[[28,1,30,1],[31,0,48,0],[31,1,34,1],[35,1,38,1],[39,1,42,1],[43,1,45,1],[46,1,48,1],[13,0,30,0],[13,1,16,1],[17,1,20,1],[21,1,24,1],[25,1,27,1],[1,0,12,0],[1,1,3,1],[4,1,6,1],[7,1,9,1],[10,1,12,1]]}
[null,"1 квартал 2021",null,"ОО1","Итого"]
["Общее количество обращений по видам помощи в   1 квартале 2021 г.","методическая помощь","очная ",null,0]
[null,null,"дистанционная",null,0]
[null,null,"выездная",null,0]
[null,"психолого-педагогическая помощь","очная",null,0]
[null,null,"дистанционная",null,0]
[null,null,"выездная",null,0]
[null,"диагностическая помощь","очная",null,0]
[null,null,"дистанционная",null,0]
[null,null,"выездная",null,0]
[null,"консультативная помощь","очная",null,0]
[null,null,"дистанционная",null,0]
[null,null,"выездная",null,0]
["Общее количество родителей(законных представителей), обратившихся за помощью  в 1 квартале 2021 г","Количество родителей (з/пр) с детьми, получающими дошкольное образование                 в форме семейного образования"," до 1,5 лет",null,0]
[null,null,"от 1,5 до 3 лет",null,0]
[null,null,"от 4 до 7 лет",null,0]
[null,null,"7 лет и старше",null,0]
[null,"Количество родителей (з/пр) детей,  не получающих дошкольное образование","до 1,5 лет",null,0]
[null,null,"от 1,5 до 3 лет",null,0]
[null,null,"от 3 до 7 лет",null,0]
[null,null,"7 лет и старше",null,0]
[null,"Количество родителей (з/пр),  с детьми, получающими дошкольное образование в ДОО","до 1,5 лет",null,0]
[null,null,"от 1,5 до 3 лет",null,0]
[null,null,"от 3 до 7 лет",null,0]
[null,null,"7 лет и старше",null,0]
[null,"Количество родителей (з/пр),  с детьми школьниками, получающими  образование в форме семейного образования","7-11 лет",null,0]
[null,null,"12-15 лет",null,0]
[null,null,"16 лет и старше",null,0]
[null,"Количество родителей (з/пр), обратившихся  с детьми школьниками, получающими  образование в ОО","7-11 лет",null,0]
[null,null," 12-15 лет",null,0]
[null,null,"16 лет и старше",null,0]
["Общее количество детей, охваченных услугами в 1 квартале  2021 г","Количество детей, получающих дошкольное образование в семейной форме"," до 1,5 лет",null,0]
[null,null,"от 1,5 до 3 лет",null,0]
[null,null,"от 3 до 7 лет",null,0]
[null,null," 7 лет и старше",null,0]
[null,"Количество детей, не получающих дошкольное образование"," до 1,5 лет",null,0]
[null,null,"от 1,5 до 3 лет",null,0]
[null,null,"от 3 до 7 лет",null,0]
[null,null," 7 лет и старше",null,0]
[null,"Количество детей, получающих дошкольное образование в ДОО","до 1,5 лет",null,0]
[null,null,"от 1,5 до 3 лет",null,0]
[null,null,"от 3 до 7 лет",null,0]
[null,null,"7 лет и старше",null,0]
[null,"Количество детей школьников, получающих образование в семейной форме","7-11 лет",null,0]
[null,null," 12-15 лет",null,0]
[null,null,"16 лет и старше",null,0]
[null,"Количество детей школьников, получающих образование в ОО","7-10 лет",null,0]
[null,null,"12-15 лет",null,0]
[null,null,"16 лет и старше",null,0]

{"sheet":"Доволенский","index":6,"n_rows":49,"n_cols":7,"rows_kept":49,"cut":false,"hidden":false,"merged":[[1,0,12,0],[1,1,3,1],[4,1,6,1],[7,1,9,1],[10,1,12,1],[28,1,30,1],[31,0,48,0],[31,1,34,1],[35,1,38,1],[39,1,42,1],[43,1,45,1],[46,1,48,1],[13,0,30,0],[13,1,16,1],[17,1,20,1],[21,1,24,1],[25,1,27,1]]}
[null,null,null,"МКОУ Доволенская СОШ № 1 ","00 №2","ОО №3","Итого"]
["Общее количество обращений по видам помощи в   1 квартале 2021 г.","методическая помощь","очная ",null,null,null,0]
[null,null,"дистанционная",null,null,null,0]
[null,null,"выездная",null,null,null,0]
[null,"психолого-педагогическая помощь","очная",null,null,null,0]
[null,null,"дистанционная",null,null,null,0]
[null,null,"выездная",null,null,null,0]
[null,"диагностическая помощь","очная",null,null,null,0]
[null,null,"дистанционная",null,null,null,0]
[null,null,"выездная",null,null,null,0]
[null,"консультативная помощь","очная",5,null,null,5]
[null,null,"дистанционная",null,null,null,0]
[null,null,"выездная",null,null,null,0]
["Общее количество родителей(законных представителей), обратившихся за помощью  в 1 квартале 2021 г","Количество родителей (з/пр) с детьми, получающими дошкольное образование                 в форме семейного образования"," до 1,5 лет",null,null,null,0]
[null,null,"от 1,5 до 3 лет",null,null,null,0]
[null,null,"от 3 до 7 лет",null,null,null,0]
[null,null,"7 лет и старше",null,null,null,0]
[null,"Количество родителей (з/пр) детей,  не получающих дошкольное образование","до 1,5 лет",null,null,null,0]
[null,null,"от 1,5 до 3 лет",null,null,null,0]
[null,null,"от 3 до 7 лет",null,null,null,0]
[null,null,"7 лет и старше",null,null,null,0]
[null,"Количество родителей (з/пр),  с детьми, получающими дошкольное образование в ДОО","до 1,5 лет",null,null,null,0]
[null,null,"от 1,5 до 3 лет",null,null,null,0]
[null,null,"от 3 до 7 лет",null,null,null,0]
[null,null,"7 лет и старше",null,null,null,0]
[null,"Количество родителей (з/пр),  с детьми школьниками, получающими  образование в форме семейного образования","7-11 лет",null,null,null,0]
[null,null,"12-15 лет",null,null,null,0]
[null,null,"16 лет и старше",null,null,null,0]
[null,"Количество родителей (з/пр), обратившихся  с детьми школьниками, получающими  образование в ОО","7-11 лет",null,null,null,0]
[null,null," 12-15 лет",5,null,null,5]
[null,null,"16 лет и старше",null,null,null,0]
["Общее количество детей, охваченных услугами в 1 квартале  2021 г","Количество детей, получающих дошкольное образование в семейной форме"," до 1,5 лет",null,null,null,0]
[null,null,"от 1,5 до 3 лет",null,null,null,0]
[null,null,"от 3 до 7 лет",null,null,null,0]
[null,null," 7 лет и старше",null,null,null,0]
[null,"Количество детей, не получающих дошкольное образование"," до 1,5 лет",null,null,null,0]
[null,null,"от 1,5 до 3 лет",null,null,null,0]
[null,null,"от 3 до 7 лет",null,null,null,0]
[null,null," 7 лет и старше",null,null,null,0]
[null,"Количество детей, получающих дошкольное образование в ДОО","до 1,5 лет",null,null,null,0]
[null,null,"от 1,5 до 3 лет",null,null,null,0]
[null,null,"от 3 до 7 лет",null,null,null,0]
[null,null,"7 лет и старше",null,null,null,0]
[null,"Количество детей школьников, получающих образование в семейной форме","7-11 лет",null,null,null,0]
[null,null," 12-15 лет",null,null,null,0]
[null,null,"16 лет и старше",null,null,null,0]
[null,"Количество детей школьников, получающих образование в ОО","7-11 лет",8,null,null,8]
[null,null,"12-15 лет",12,null,null,12]
[null,null,"16 лет и старше",null,null,null,0]

{"sheet":"Здвинский","index":7,"n_rows":49,"n_cols":18,"rows_kept":49,"cut":false,"hidden":false,"merged":[[31,0,48,0],[31,1,34,1],[31,16,34,16],[31,17,48,17],[35,1,38,1],[35,16,38,16],[39,1,42,1],[39,16,42,16],[43,1,45,1],[43,16,45,16],[46,1,48,1],[46,16,48,16],[13,0,30,0],[13,1,16,1],[13,16,16,16],[13,17,30,17],[17,1,20,1],[17,16,20,16],[21,1,24,1],[21,16,24,16],[25,1,27,1],[25,16,27,16],[28,1,30,1],[28,16,30,16],[1,0,12,0],[1,1,3,1],[1,16,3,16],[1,17,12,17],[4,1,6,1],[4,16,6,16],[7,1,9,1],[7,16,9,16],[10,1,12,1],[10,16,12,16]]}
[null,null,null,"МКДОУ Здвинский детский сад \"Солнышко\" общеразвивающего вида","МКДОУ Здвинский детский сад \"Светлячок\" комбинированного вида","МКДОУ Верх-Каргатский детский сад \"Колосок\"","МКДОУ Сарыбалыкский детский сад \"Ручеёк\"","МКДОУ Цветниковский детский сад \"Берёзка\"","МКДОУ Нижнечулымский детский сад \"Ромашка\"","МКДОУ Чулымский детский сад \"Тополёк\"","МКДОУ Лянинский детский сад \"Зоренька\"","МКДОУ Верх-Урюмский детский сад \"Одуванчик\"","МКОУ Здвинская СОШ № 1","МКОУ Сарыбалыкская СОШ","МКОУ Здвинская СОШ № 2","Итого","Итого"]
["Общее количество обращений по видам помощи в   1 квартале 2021 г.","методическая помощь","очная ",null,9,3,1,2,3,3,3,1,null,null,9,34,68,228]
[null,null,"дистанционная",null,9,null,null,null,null,null,3,null,null,null,null,12]
[null,null,"выездная",null,null,null,null,null,null,null,null,null,null,null,null,0]
[null,"психолого-педагогическая помощь","очная",2,9,null,null,2,null,null,null,null,null,8,26,47,94]
[null,null,"дистанционная",null,9,null,null,null,null,null,null,null,null,null,null,9]
[null,null,"выездная",null,null,null,null,null,null,null,null,null,null,null,null,0]
[null,"диагностическая помощь","очная",2,9,null,null,null,null,null,null,null,null,null,5,16,32]
[null,null,"дистанционная",null,9,null,null,null,null,null,null,null,null,null,null,9]
[null,null,"выездная",null,null,null,null,null,null,null,null,null,null,null,null,0]
[null,"консультативная помощь","очная",1,9,null,2,2,2,1,2,1,27,null,27,74,148]
[null,null,"дистанционная",null,9,null,1,null,1,1,8,1,6,null,null,27]
[null,null,"выездная",null,null,null,null,null,null,null,null,null,null,null,null,0]
["Общее количество родителей(законных представителей), обратившихся за помощью  в 1 квартале 2021 г","Количество родителей (з/пр) с детьми, получающими дошкольное образование                 в форме семейного образования"," до 1,5 лет",null,null,null,null,null,null,null,null,null,null,null,null,0,0,128]
[null,null,"от 1,5 до 3 лет",null,null,null,null,null,null,null,null,null,null,null,null,0]
[null,null,"от 4 до 7 лет",null,2,null,1,null,null,null,null,null,null,null,null,3]
[null,null,"7 лет и старше",null,null,null,null,null,null,null,null,null,null,null,null,0]
[null,"Количество родителей (з/пр) детей,  не получающих дошкольное образование","до 1,5 лет",null,null,null,null,null,null,null,1,null,null,null,null,1,2]
[null,null,"от 1,5 до 3 лет",null,null,null,2,null,null,1,1,null,null,null,null,4]
[null,null,"от 3 до 7 лет",null,null,null,null,null,null,null,null,null,null,null,null,0]
[null,null,"7 лет и старше",null,null,null,null,null,null,null,null,null,null,null,null,0]
[null,"Количество родителей (з/пр),  с детьми, получающими дошкольное образование в ДОО","до 1,5 лет",null,null,2,null,null,null,null,null,null,null,null,null,2,4]
[null,null,"от 1,5 до 3 лет",2,null,1,null,null,2,null,3,null,null,null,null,8]
[null,null,"от 3 до 7 лет",3,23,null,null,2,2,2,3,2,null,null,null,37]
[null,null,"7 лет и старше",null,null,null,null,null,null,null,null,null,null,null,null,0]
[null,"Количество родителей (з/пр),  с детьми школьниками, получающими  образование в форме семейного образования","7-11 лет",null,null,null,null,null,null,null,null,null,null,null,null,0,0]
[null,null,"12-15 лет",null,null,null,null,null,null,null,null,null,null,null,null,0]
[null,null,"16 лет и старше",null,null,null,null,null,null,null,null,null,null,null,null,0]
[null,"Количество родителей (з/пр), обратившихся  с детьми школьниками, получающими  образование в ОО","7-11 лет",null,null,null,null,null,null,null,null,null,18,1,9,28,56]
[null,null," 12-15 лет",null,null,null,null,null,null,null,null,null,15,5,21,41]
[null,null,"16 лет и старше",null,null,null,null,null,null,null,null,null,null,2,2,4]
["Общее количество детей, охваченных услугами в 1 квартале  2021 г","Количество детей, получающих дошкольное образование в семейной форме"," до 1,5 лет",null,null,null,null,null,null,null,null,null,null,null,null,0,0,152]
[null,null,"от 1,5 до 3 лет",null,null,null,null,null,null,null,null,null,null,null,null,0]
[null,null,"от 3 до 7 лет",null,2,null,1,null,null,null,null,null,null,null,null,3]
[null,null," 7 лет и старше",null,null,null,null,null,null,null,null,null,null,null,null,0]
[null,"Количество детей, не получающих дошкольное образование"," до 1,5 лет",null,null,null,null,null,null,null,1,null,null,null,null,1,2]
[null,null,"от 1,5 до 3 лет",null,null,null,2,null,null,1,1,null,null,null,null,4]
[null,null,"от 3 до 7 лет",null,null,null,null,null,null,null,null,null,null,null,null,0]
[null,null," 7 лет и старше",null,null,null,null,null,null,null,null,null,null,null,null,0]
[null,"Количество детей, получающих дошкольное образование в ДОО","до 1,5 лет",null,null,2,null,null,null,null,null,null,null,null,null,2,4]
[null,null,"от 1,5 до 3 лет",2,null,1,null,null,2,null,3,null,null,null,null,8]
[null,null,"от 3 до 7 лет",3,40,null,null,4,2,4,6,2,null,null,null,61]
[null,null,"7 лет и старше",null,null,null,null,null,null,null,null,null,null,null,null,0]
[null,"Количество детей школьников, получающих образование в семейной форме","7-11 лет",null,null,null,null,null,null,null,null,null,null,null,null,0,0]
[null,null," 12-15 лет",null,null,null,null,null,null,null,null,null,null,null,null,0]
[null,null,"16 лет и старше",null,null,null,null,null,null,null,null,null,null,null,null,0]
[null,"Количество детей школьников, получающих образование в ОО","7-10 лет",null,null,null,null,null,null,null,null,null,18,2,9,29,58]
[null,null,"12-15 лет",null,null,null,null,null,null,null,null,null,15,4,21,40]
[null,null,"16 лет и старше",null,null,null,null,null,null,null,null,null,null,2,2,4]

{"sheet":"Искитимский","index":8,"n_rows":49,"n_cols":22,"rows_kept":49,"cut":false,"hidden":false,"merged":[[28,1,30,1],[31,0,48,0],[31,1,34,1],[35,1,38,1],[39,1,42,1],[43,1,45,1],[46,1,48,1],[13,0,30,0],[13,1,16,1],[17,1,20,1],[21,1,24,1],[25,1,27,1],[1,0,12,0],[1,1,3,1],[4,1,6,1],[7,1,9,1],[10,1,12,1]]}
[null,null,null,"МКОУ \"Линевская школа - интернат для обучающихся с ограниченными возможностями здоровья","МБОУ \"СОШ п.Листвянский\"","МБОУ \"СОШ п. Агролес\"","МБОУ \"СОШ с.Лебедевка\"","МБОУ \"СОШ ст.Евсино\"","МБОУ \"СОШ Гимназия №1 Искитимского района\" р.п. Линево","МБОУ \"СОШ №4 р.п. Линево\"","МБОУ \"СОШ №3 р.п. Линево\"","МБОУ \"СОШ п.Керамкомбинат\"","МБОУ \"СОШ №1 р.п. Линево\" имени Ф.И. Кулиша","МКДОУ детский сад \"Огонек\" р.п. Линево","МКДОУ детский сад комбинированного вида \"Красная шапочка\" р.п.Линево","МКДОУ детский сад \"Светлячок\" ст.Евсино","МКДОУ детский сад \"Сибирячок\" п.Листвянский","МКДОУ детский сад \"Теремок\" п.Керамкомбинат","МКДОУ детский сад \"Родничок\" с.Лебедевка","МКДОУ детский сад комбинированного вида \"Родничок\" р.п. Линево","МКДОУ детский сад \"Жаворонок\" р.п. Линево","Итого"]
["Общее количество обращений по видам помощи в   1 квартале 2021 г.","методическая помощь","очная ",0,0,1,0,0,1,0,0,0,1,0,2,2,1,0,5,0,0,13]
[null,null,"дистанционная",0,0,0,0,0,0,0,0,0,0,0,0,2,0,0,3,0,0,5]
[null,null,"выездная",0,0,0,0,0,0,0,0,0,0,0,0,0,0,0,0,0,0,0]
[null,"психолого-педагогическая помощь","очная",0,2,4,1,1,0,6,3,0,2,0,2,0,2,0,0,0,5,28]
[null,null,"дистанционная",0,0,0,0,0,0,0,0,0,0,0,0,0,0,0,0,0,0,0]
[null,null,"выездная",0,0,0,0,0,0,0,0,0,0,0,0,0,0,0,0,0,0,0]
[null,"диагностическая помощь","очная",5,5,1,1,1,2,0,1,0,0,0,0,0,3,0,1,0,6,26]
[null,null,"дистанционная",0,0,0,0,0,0,0,0,0,0,0,0,0,0,0,1,0,0,1]
[null,null,"выездная",0,0,0,0,0,0,0,0,0,0,0,0,0,0,0,0,0,0,0]
[null,"консультативная помощь","очная",5,8,4,6,5,11,12,9,7,5,5,2,2,3,1,4,10,9,108]
[null,null,"дистанционная",0,0,0,0,0,0,0,0,0,0,0,0,1,0,0,4,0,0,5]
[null,null,"выездная",0,0,0,0,0,0,0,0,0,0,0,0,0,0,0,0,0,0,0]
["Общее количество родителей(законных представителей), обратившихся за помощью  в 1 квартале 2021 г","Количество родителей (з/пр) с детьми, получающими дошкольное образование                 в форме семейного образования"," до 1,5 лет",0,0,0,0,0,0,0,0,0,0,0,0,0,0,0,0,0,0,0]
[null,null,"от 1,5 до 3 лет",0,0,0,0,0,0,0,0,0,0,0,0,0,0,0,0,0,0,0]
[null,null,"от 4 до 7 лет",0,0,0,0,0,0,0,0,0,0,0,0,0,0,0,0,0,0,0]
[null,null,"7 лет и старше",0,0,0,0,0,0,0,0,0,0,0,0,0,0,0,0,0,0,0]
[null,"Количество родителей (з/пр) детей,  не получающих дошкольное образование","до 1,5 лет",0,0,0,0,0,0,0,0,0,0,0,0,0,0,0,0,0,0,0]
[null,null,"от 1,5 до 3 лет",0,0,0,0,0,0,0,0,0,0,0,0,0,0,0,0,0,0,0]
[null,null,"от 3 до 7 лет",0,0,0,0,0,0,0,0,0,0,0,0,0,0,0,0,0,0,0]
[null,null,"7 лет и старше",0,0,0,0,0,0,0,0,0,0,0,0,0,0,0,0,0,0,0]
[null,"Количество родителей (з/пр),  с детьми, получающими дошкольное образование в ДОО","до 1,5 лет",0,0,0,0,0,0,0,0,0,0,0,1,0,0,0,0,0,0,1]
[null,null,"от 1,5 до 3 лет",0,0,0,0,0,0,0,0,0,0,2,2,3,3,0,6,5,8,29]
[null,null,"от 3 до 7 лет",0,0,0,0,0,0,0,0,0,0,2,1,3,6,1,5,4,10,32]
[null,null,"7 лет и старше",0,0,0,0,0,0,0,0,0,0,0,0,0,0,0,0,1,0,1]
[null,"Количество родителей (з/пр),  с детьми школьниками, получающими  образование в форме семейного образования","7-11 лет",0,0,0,0,0,0,0,0,0,0,0,0,0,0,0,0,0,0,0]
[null,null,"12-15 лет",0,0,0,0,0,0,2,0,0,0,0,0,0,0,0,0,0,0,2]
[null,null,"16 лет и старше",0,0,0,0,0,0,0,0,0,0,0,0,0,0,0,0,0,0,0]
[null,"Количество родителей (з/пр), обратившихся  с детьми школьниками, получающими  образование в ОО","7-11 лет",4,5,3,3,4,4,8,5,4,1,0,0,0,0,0,0,0,0,41]
[null,null," 12-15 лет",1,5,4,5,1,2,6,7,3,4,0,0,0,0,0,0,0,0,38]
[null,null,"16 лет и старше",0,1,1,0,0,1,1,2,0,2,0,0,0,0,0,0,0,0,8]
["Общее количество детей, охваченных услугами в 1 квартале  2021 г","Количество детей, получающих дошкольное образование в семейной форме"," до 1,5 лет",0,0,0,0,0,0,0,0,0,0,0,0,0,0,0,0,0,0,0]
[null,null,"от 1,5 до 3 лет",0,0,0,0,0,0,0,0,0,0,0,0,0,0,0,0,0,0,0]
[null,null,"от 3 до 7 лет",0,0,0,0,0,0,0,0,0,0,0,0,0,0,0,0,0,0,0]
[null,null," 7 лет и старше",0,0,0,0,0,0,0,0,0,0,0,0,0,0,0,0,0,0,0]
[null,"Количество детей, не получающих дошкольное образование"," до 1,5 лет",0,0,0,0,0,0,0,0,0,0,0,0,0,0,0,0,0,0,0]
[null,null,"от 1,5 до 3 лет",0,0,0,0,0,0,0,0,0,0,0,0,0,0,0,0,0,0,0]
[null,null,"от 3 до 7 лет",0,0,0,0,0,0,0,0,0,0,0,0,0,0,0,0,0,0,0]
[null,null," 7 лет и старше",0,0,0,0,0,0,0,0,0,0,0,0,0,0,0,0,0,0,0]
[null,"Количество детей, получающих дошкольное образование в ДОО","до 1,5 лет",0,0,0,0,0,0,0,0,0,0,0,1,0,0,0,0,0,0,1]
[null,null,"от 1,5 до 3 лет",0,0,0,0,0,0,0,0,0,0,2,3,3,3,0,10,5,10,36]
[null,null,"от 3 до 7 лет",0,0,0,0,0,0,0,0,0,0,3,2,4,6,1,8,4,10,38]
[null,null,"7 лет и старше",0,0,0,0,0,0,0,0,0,0,0,0,0,0,0,0,1,0,1]
[null,"Количество детей школьников, получающих образование в семейной форме","7-11 лет",0,0,0,0,0,0,0,0,0,0,0,0,0,0,0,0,0,0,0]
[null,null," 12-15 лет",0,0,0,0,0,0,2,0,0,0,0,0,0,0,0,0,0,0,2]
[null,null,"16 лет и старше",0,0,0,0,0,0,0,0,0,0,0,0,0,0,0,0,0,0,0]
[null,"Количество детей школьников, получающих образование в ОО","7-10 лет",9,6,4,3,5,8,10,5,4,1,0,0,0,0,0,0,0,0,55]
[null,null,"12-15 лет",1,8,5,5,2,3,7,7,3,5,0,0,0,0,0,0,0,0,46]
[null,null,"16 лет и старше",0,1,1,0,0,1,1,2,0,2,0,0,0,0,0,0,0,0,8]

{"sheet":"Карасукский","index":9,"n_rows":49,"n_cols":54,"rows_kept":49,"cut":false,"hidden":false,"merged":[[28,1,30,1],[31,0,48,0],[31,1,34,1],[35,1,38,1],[39,1,42,1],[43,1,45,1],[46,1,48,1],[13,0,30,0],[13,1,16,1],[17,1,20,1],[21,1,24,1],[25,1,27,1],[1,0,12,0],[1,1,3,1],[4,1,6,1],[7,1,9,1],[10,1,12,1]]}
[null,null,null,"МБОУ гимназия №1","МБОУ СОШ  №2","МБОУ СОШ №3","МБОУ СОШ № 5","МБОУ технический лицей № 176 ","МБОУ ООШ №4","МБОУ Александровская СОШ","МБОУ Беленская СОШ","МБОУ Благодатская СОШ","МБОУ Ирбизинская СОШ","МБОУ Калиновская СОШ","МБОУ Кукаринская СОШ","МБОУ Михайловская СОШ","МБОУ Морозовская СОШ","МБОУ Октябрьская СОШ","МБОУ Поповская СОШ","МБОУ Студеновская СОШ","МБОУ Троицкая СОШ","МБОУ Хорошенская СОШ","МБОУ Шилово-Курьинская СОШ","МБОУ Чернокурьинская СОШ","МБОУ Сорочинская ООШ","МБОУ Нижнебаяновкая ООШ","МБОУ Карасартовская ООШ","МБОУ Новоивановская ООШ","МБОУ Павловская ООШ","МБОУ Рассказовская ООШ","МБОУ Рождественская ООШ","МБОУ Ягодная ООШ","МБДОУ  №7 \"Снежинка\"","МБДОУ Ирбизинский детский сад  ","МБДОУ Шилово - Курьинский детский сад","МБДОУ №5 \"Улыбка\"","МБДОУ №2 \"Гусельки\"","МБДОУ №4 \"Алёнушка\"","МБДОУ Александровский детский сад","МБДОУ Калиновский детский сад","МБДОУ №8 \"Сказка\"","МБДОУ Морозовский детский сад","МБДОУ Благодатский детский сад","МБДОУ детский сад №10 \"Золотой улей\"","МБДОУ Студеновский детский сад","МБДОУ № 9 \"Радуга","МБДОУ №6 \"Василёк\"","МБДОУ Чернокурьинский детский сад","МБДОУ Михайловский детский сад","МБДОУ №1 \"Родничок\"","МБДОУ №3 \"Солнышко\"","МБДОУ Троицкий детский сад","МБДОУ Октябрьский детский сад ","Итого"]
["Общее количество обращений по видам помощи в   1 квартале 2021 г.","методическая помощь","очная ",2,1,1,2,0,1,0,0,0,0,0,0,1,0,0,1,0,0,0,0,1,0,1,0,4,0,0,0,0,0,0,0,0,0,0,0,0,0,0,0,0,0,2,1,4,0,9,3,0,0,34]
[null,null,"дистанционная",0,0,0,0,0,0,0,0,0,0,0,0,0,0,0,0,0,0,0,0,0,0,0,0,0,0,0,0,0,0,0,0,0,0,0,0,0,20,0,0,0,0,1,0,0,0,23,0,0,0,44]
[null,null,"выездная",0,0,0,0,0,0,0,0,0,0,0,0,0,0,0,0,0,0,0,0,0,0,0,0,0,0,0,0,0,0,0,0,0,0,0,0,0,0,0,0,0,0,0,0,0,0,0,0,0,0,0]
[null,"психолого-педагогическая помощь","очная",4,6,5,29,2,11,2,0,3,4,4,0,0,8,3,2,5,3,6,2,1,0,0,0,5,0,0,0,1,0,0,0,0,0,3,0,0,0,0,0,6,0,1,26,0,0,21,0,0,0,163]
[null,null,"дистанционная",0,0,0,0,0,0,0,0,0,0,0,0,0,0,0,0,0,0,0,0,0,0,0,0,0,0,0,0,0,0,0,0,0,0,0,0,0,13,0,0,0,0,1,0,0,0,0,0,0,0,14]
[null,null,"выездная",0,0,0,0,0,0,0,0,0,0,0,0,0,0,0,0,0,0,0,0,0,0,0,0,0,0,0,0,0,0,0,0,0,0,0,0,0,0,0,0,0,0,0,0,0,0,0,0,0,0,0]
[null,"диагностическая помощь","очная",0,0,0,0,0,0,0,0,0,0,0,0,0,0,0,0,0,0,0,0,0,0,0,0,2,0,0,0,0,0,0,0,0,0,0,0,0,0,0,0,8,0,0,0,0,0,5,3,0,0,18]
[null,null,"дистанционная",0,0,0,0,0,0,0,0,0,0,0,0,0,0,0,0,0,0,0,0,0,0,0,0,0,0,0,0,0,0,0,0,0,0,0,0,0,4,0,0,0,0,0,0,0,0,0,0,0,0,4]
[null,null,"выездная",0,0,0,0,0,0,0,0,0,0,0,0,0,0,0,0,0,0,0,0,0,0,0,0,0,0,0,0,0,0,0,0,0,0,0,0,0,0,0,0,0,0,0,0,0,0,0,0,0,0,0]
[null,"консультативная помощь","очная",0,0,0,0,0,0,0,16,0,0,0,1,0,0,0,0,0,0,0,0,0,0,0,2,9,0,2,2,7,0,0,0,0,0,0,0,0,0,0,0,14,0,6,27,6,0,18,0,0,0,110]
[null,null,"дистанционная",0,0,0,0,0,0,0,0,0,0,0,0,0,0,0,0,0,0,0,0,0,0,1,0,10,0,0,0,0,0,0,0,0,0,0,0,0,37,0,0,32,0,4,0,0,0,0,1,0,0,85]
[null,null,"выездная",0,0,0,0,0,0,0,0,0,0,0,0,0,0,0,0,0,0,0,0,0,0,0,0,0,0,0,0,0,0,0,0,0,0,0,0,0,0,0,0,0,0,0,0,0,0,0,0,0,0,0]
["Общее количество родителей(законных представителей), обратившихся за помощью  в 1 квартале 2021 г","Количество родителей (з/пр) с детьми, получающими дошкольное образование                 в форме семейного образования"," до 1,5 лет",0,0,0,0,0,0,0,0,0,0,0,0,0,0,0,0,0,0,0,0,0,0,0,0,0,0,0,0,0,0,0,0,0,0,0,0,0,0,0,0,0,0,0,0,0,0,0,0,0,0,0]
[null,null,"от 1,5 до 3 лет",0,0,0,0,0,0,0,0,0,0,0,0,0,0,0,0,0,0,0,0,0,0,0,0,0,0,0,0,0,0,0,0,0,0,0,0,0,0,0,0,0,0,0,0,0,0,0,0,0,0,0]
[null,null,"от 3 до 7 лет",0,0,0,0,0,0,0,0,0,0,0,0,0,0,0,0,0,0,0,0,0,0,0,0,0,0,0,0,0,0,0,0,0,0,0,0,0,0,0,0,0,0,0,0,0,0,0,0,0,0,0]
[null,null,"7 лет и старше",0,0,0,0,0,0,0,0,0,0,0,0,0,0,0,0,0,0,0,0,0,0,0,0,0,0,0,0,0,0,0,0,0,0,0,0,0,0,0,0,0,0,0,0,0,0,0,0,0,0,0]
[null,"Количество родителей (з/пр) детей,  не получающих дошкольное образование","до 1,5 лет",0,0,0,0,0,0,0,0,0,0,0,0,0,0,0,0,0,0,0,0,0,0,0,0,0,0,0,0,0,0,0,0,0,0,0,0,0,0,0,0,0,0,0,0,0,0,0,0,0,0,0]
[null,null,"от 1,5 до 3 лет",0,0,0,0,0,0,0,0,0,0,0,0,0,0,0,0,0,0,0,0,0,0,0,0,0,0,0,0,0,0,0,0,0,0,0,0,0,0,0,0,0,0,0,0,0,0,0,0,0,0,0]
[null,null,"от 3 до 7 лет",0,0,0,0,0,0,0,0,0,0,0,0,0,0,0,0,0,0,0,0,0,0,0,0,0,0,0,0,0,0,0,0,0,0,0,0,0,0,0,0,0,0,0,0,0,0,0,0,0,0,0]
[null,null,"7 лет и старше",0,0,0,0,0,0,0,0,0,0,0,0,0,0,0,0,0,0,0,0,0,0,0,0,0,0,0,0,0,0,0,0,0,0,0,0,0,0,0,0,0,0,0,0,0,0,0,0,0,0,0]
[null,"Количество родителей (з/пр),  с детьми, получающими дошкольное образование в ДОО","до 1,5 лет",0,0,0,0,0,0,0,0,0,0,0,0,0,0,0,0,0,0,0,0,0,0,0,0,0,0,0,0,0,0,0,0,0,0,0,0,0,0,0,0,0,0,0,0,0,0,2,0,0,0,2]
[null,null,"от 1,5 до 3 лет",0,0,0,0,0,0,0,0,0,0,0,0,0,0,0,0,0,0,0,0,0,0,0,2,6,0,0,0,4,0,0,0,0,0,3,0,0,30,0,0,26,0,6,32,5,0,14,3,0,0,131]
[null,null,"от 3 до 7 лет",0,0,0,0,0,0,0,16,0,0,0,0,0,0,0,0,0,0,0,0,0,0,0,0,5,0,0,2,2,0,0,0,0,0,0,0,0,32,0,0,18,0,3,18,3,0,16,3,0,0,118]
[null,null,"7 лет и старше",0,0,0,0,0,0,0,0,0,0,0,0,0,0,0,0,0,0,0,0,0,0,0,0,0,0,0,0,2,0,0,0,0,0,0,0,0,11,0,0,4,0,2,null,null,0,3,1,0,0,23]
[null,"Количество родителей (з/пр),  с детьми школьниками, получающими  образование в форме семейного образования","7-11 лет",0,0,0,0,0,0,0,0,0,0,0,0,0,0,0,0,0,0,0,0,0,0,0,0,0,0,0,0,0,0,0,0,0,0,0,0,0,0,0,0,0,0,0,0,0,0,0,0,0,0,0]
[null,null,"12-15 лет",0,0,0,0,0,0,0,0,0,0,0,0,0,0,0,0,0,0,0,0,0,0,0,0,0,0,0,0,0,0,0,0,0,0,0,0,0,0,0,0,0,0,0,0,0,0,0,0,0,0,0]
[null,null,"16 лет и старше",0,0,0,0,0,0,0,0,0,0,0,0,0,0,0,0,0,0,0,0,0,0,0,0,0,0,0,0,0,0,0,0,0,0,0,0,0,0,0,0,0,0,0,0,0,0,0,0,0,0,0]
[null,"Количество родителей (з/пр), обратившихся  с детьми школьниками, получающими  образование в ОО","7-11 лет",0,0,0,0,0,2,0,0,0,0,0,1,0,0,0,0,0,0,2,0,0,0,1,0,0,0,2,0,0,0,0,0,0,0,0,0,0,0,0,0,0,0,0,0,0,0,0,0,0,0,8]
[null,null," 12-15 лет",3,5,6,29,1,8,2,0,3,1,4,0,1,8,3,0,0,0,4,0,0,0,0,0,0,0,0,0,0,0,0,0,0,0,0,0,0,0,0,0,0,0,0,0,0,0,0,0,0,0,78]
[null,null,"16 лет и старше",0,0,0,0,0,0,0,0,0,0,0,0,0,0,0,1,5,3,0,2,2,0,0,0,0,0,0,0,0,0,0,0,0,0,0,0,0,0,0,0,0,0,0,0,0,0,0,0,0,0,13]
["Общее количество детей, охваченных услугами в 1 квартале  2021 г","Количество детей, получающих дошкольное образование в семейной форме"," до 1,5 лет",0,0,0,0,0,0,0,0,0,0,0,0,0,0,0,0,0,0,0,0,0,0,0,0,0,0,0,0,0,0,0,0,0,0,0,0,0,0,0,0,0,0,0,0,0,0,0,0,0,0,0]
[null,null,"от 1,5 до 3 лет",0,0,0,0,0,0,0,0,0,0,0,0,0,0,0,0,0,0,0,0,0,0,0,0,0,0,0,0,0,0,0,0,0,0,0,0,0,0,0,0,0,0,0,0,0,0,0,0,0,0,0]
[null,null,"от 3 до 7 лет",0,0,0,0,0,0,0,0,0,0,0,0,0,0,0,0,0,0,0,0,0,0,0,0,0,0,0,0,0,0,0,0,0,0,0,0,0,0,0,0,0,0,0,0,0,0,0,0,0,0,0]
[null,null," 7 лет и старше",0,0,0,0,0,0,0,0,0,0,0,0,0,0,0,0,0,0,0,0,0,0,0,0,0,0,0,0,0,0,0,0,0,0,0,0,0,0,0,0,0,0,0,0,0,0,0,0,0,0,0]
[null,"Количество детей, не получающих дошкольное образование"," до 1,5 лет",0,0,0,0,0,0,0,0,0,0,0,0,0,0,0,0,0,0,0,0,0,0,0,0,0,0,0,0,0,0,0,0,0,0,0,0,0,0,0,0,0,0,0,0,0,0,0,0,0,0,0]
[null,null,"от 1,5 до 3 лет",0,0,0,0,0,0,0,0,0,0,0,0,0,0,0,0,0,0,0,0,0,0,0,0,0,0,0,0,0,0,0,0,0,0,0,0,0,0,0,0,0,0,0,0,0,0,0,0,0,0,0]
[null,null,"от 3 до 7 лет",0,0,0,0,0,0,0,0,0,0,0,0,0,0,0,0,0,0,0,0,0,0,0,0,0,0,0,0,0,0,0,0,0,0,0,0,0,0,0,0,0,0,0,0,0,0,0,0,0,0,0]
[null,null," 7 лет и старше",0,0,0,0,0,0,0,0,0,0,0,0,0,0,0,0,0,0,0,0,0,0,0,0,0,0,0,0,0,0,0,0,0,0,0,0,0,0,0,0,0,0,0,0,0,0,0,0,0,0,0]
[null,"Количество детей, получающих дошкольное образование в ДОО","до 1,5 лет",0,0,0,0,0,0,0,0,0,0,0,0,0,0,0,0,0,0,0,0,0,0,0,0,0,0,0,1,0,0,0,0,0,0,0,0,0,16,0,0,0,0,0,32,0,0,2,3,0,0,54]
[null,null,"от 1,5 до 3 лет",0,0,0,0,0,0,0,0,0,0,0,0,0,0,0,0,0,0,0,0,0,0,0,2,3,0,0,0,7,0,0,0,0,0,3,0,0,14,0,0,26,0,2,14,2,0,14,2,0,0,89]
[null,null,"от 3 до 7 лет",0,0,0,0,0,0,0,9,0,0,0,0,0,0,0,0,0,0,0,0,0,0,0,0,3,0,0,0,7,0,0,0,0,0,0,0,0,0,0,0,18,0,1,0,3,0,16,1,0,0,58]
[null,null,"7 лет и старше",0,0,0,0,0,0,0,0,0,0,0,0,0,0,0,0,0,0,0,0,0,0,0,0,0,0,0,0,0,0,0,0,0,0,0,0,0,0,0,0,4,0,1,0,0,0,3,0,0,0,8]
[null,"Количество детей школьников, получающих образование в семейной форме","7-11 лет",0,0,2,0,0,1,0,0,1,0,0,0,0,0,0,0,0,0,0,0,0,0,0,0,0,0,2,0,0,0,0,0,0,0,0,0,0,0,0,0,0,0,0,0,0,0,0,0,0,0,6]
[null,null," 12-15 лет",0,0,0,0,0,0,0,0,0,0,0,0,0,0,0,0,1,0,0,0,0,0,0,0,0,0,0,0,0,0,0,0,0,0,0,0,0,0,0,0,0,0,0,0,0,0,0,0,0,0,1]
[null,null,"16 лет и старше",1,1,1,3,0,0,0,0,0,0,0,0,0,0,0,0,0,0,3,0,0,0,0,0,0,0,0,0,0,0,0,0,0,0,0,0,0,0,0,0,0,0,0,0,0,0,0,0,0,0,9]
[null,"Количество детей школьников, получающих образование в ОО","7-11 лет",0,0,0,0,1,3,null,0,0,0,0,1,0,0,0,0,0,0,1,0,0,0,1,0,0,0,0,0,0,0,0,0,0,0,0,0,0,0,0,0,0,0,0,0,0,0,0,0,0,0,7]
[null,null,"12-15 лет",2,3,2,15,0,4,1,0,2,1,6,0,1,8,3,0,0,0,1,0,0,0,0,0,0,0,0,0,0,0,0,0,0,0,0,0,0,0,0,0,0,0,0,0,0,0,0,0,0,0,49]
[null,null,"16 лет и старше",0,0,0,0,0,0,0,0,0,0,0,0,0,0,0,1,5,3,0,2,2,0,0,0,0,0,0,0,0,0,0,0,0,0,0,0,0,0,0,0,0,0,0,0,0,0,0,0,0,0,13]

{"sheet":"Каргатский","index":10,"n_rows":49,"n_cols":4,"rows_kept":49,"cut":false,"hidden":false,"merged":[[28,1,30,1],[31,0,48,0],[31,1,34,1],[35,1,38,1],[39,1,42,1],[43,1,45,1],[46,1,48,1],[13,0,30,0],[13,1,16,1],[17,1,20,1],[21,1,24,1],[25,1,27,1],[1,0,12,0],[1,1,3,1],[4,1,6,1],[7,1,9,1],[10,1,12,1]]}
[null,null,null,"Итого"]
["Общее количество обращений по видам помощи в   1 квартале 2021 г.","методическая помощь","очная "]
[null,null,"дистанционная"]
[null,null,"выездная"]
[null,"психолого-педагогическая помощь","очная"]
[null,null,"дистанционная"]
[null,null,"выездная"]
[null,"диагностическая помощь","очная"]
[null,null,"дистанционная"]
[null,null,"выездная"]
[null,"консультативная помощь","очная"]
[null,null,"дистанционная"]
[null,null,"выездная"]
["Общее количество родителей(законных представителей), обратившихся за помощью  в 1 квартале 2021 г","Количество родителей (з/пр) с детьми, получающими дошкольное образование                 в форме семейного образования"," до 1,5 лет"]
[null,null,"от 1,5 до 3 лет"]
[null,null,"от 3до 7 лет"]
[null,null,"7 лет и старше"]
[null,"Количество родителей (з/пр) детей,  не получающих дошкольное образование","до 1,5 лет"]
[null,null,"от 1,5 до 3 лет"]
[null,null,"от 3 до 7 лет"]
[null,null,"7 лет и старше"]
[null,"Количество родителей (з/пр),  с детьми, получающими дошкольное образование в ДОО","до 1,5 лет"]
[null,null,"от 1,5 до 3 лет"]
[null,null,"от 3 до 7 лет"]
[null,null,"7 лет и старше"]
[null,"Количество родителей (з/пр),  с детьми школьниками, получающими  образование в форме семейного образования","7-11 лет"]
[null,null,"12-15 лет"]
[null,null,"16 лет и старше"]
[null,"Количество родителей (з/пр), обратившихся  с детьми школьниками, получающими  образование в ОО","7-11 лет"]
[null,null," 12-15 лет"]
[null,null,"16 лет и старше"]
["Общее количество детей, охваченных услугами в 1 квартале  2021 г","Количество детей, получающих дошкольное образование в семейной форме"," до 1,5 лет"]
[null,null,"от 1,5 до 3 лет"]
[null,null,"от 3 до 7 лет"]
[null,null," 7 лет и старше"]
[null,"Количество детей, не получающих дошкольное образование"," до 1,5 лет"]
[null,null,"от 1,5 до 3 лет"]
[null,null,"от 3 до 7 лет"]
[null,null," 7 лет и старше"]
[null,"Количество детей, получающих дошкольное образование в ДОО","до 1,5 лет"]
[null,null,"от 1,5 до 3 лет"]
[null,null,"от 3 до 7 лет"]
[null,null,"7 лет и старше"]
[null,"Количество детей школьников, получающих образование в семейной форме","7-11 лет"]
[null,null," 12-15 лет"]
[null,null,"16 лет и старше"]
[null,"Количество детей школьников, получающих образование в ОО","7-11 лет"]
[null,null,"12-15 лет"]
[null,null,"16 лет и старше"]

{"sheet":"Кольцово","index":11,"n_rows":49,"n_cols":5,"rows_kept":49,"cut":false,"hidden":false,"merged":[[31,0,48,0],[31,1,34,1],[35,1,38,1],[39,1,42,1],[43,1,45,1],[46,1,48,1],[13,0,30,0],[13,1,16,1],[17,1,20,1],[21,1,24,1],[25,1,27,1],[28,1,30,1],[1,0,12,0],[1,1,3,1],[4,1,6,1],[7,1,9,1],[10,1,12,1]]}
[null,null,null,"Биотехнол лицей","Итого"]
["Общее количество обращений по видам помощи в   1 квартале 2021 г.","методическая помощь","очная ",null,0]
[null,null,"дистанционная",null,0]
[null,null,"выездная",null,0]
[null,"психолого-педагогическая помощь","очная",null,0]
[null,null,"дистанционная",null,0]
[null,null,"выездная",null,0]
[null,"диагностическая помощь","очная",null,0]
[null,null,"дистанционная",null,0]
[null,null,"выездная",null,0]
[null,"консультативная помощь","очная",29,29]
[null,null,"дистанционная",2,2]
[null,null,"выездная",null,0]
["Общее количество родителей(законных представителей), обратившихся за помощью  в 1 квартале 2021 г","Количество родителей (з/пр) с детьми, получающими дошкольное образование                 в форме семейного образования"," до 1,5 лет",null,0]
[null,null,"от 1,5 до 3 лет",null,0]
[null,null,"от 3до 7 лет",null,0]
[null,null,"7 лет и старше",null,0]
[null,"Количество родителей (з/пр) детей,  не получающих дошкольное образование","до 1,5 лет",null,0]
[null,null,"от 1,5 до 3 лет",null,0]
[null,null,"от 3 до 7 лет",null,0]
[null,null,"7 лет и старше",null,0]
[null,"Количество родителей (з/пр),  с детьми, получающими дошкольное образование в ДОО","до 1,5 лет",null,0]
[null,null,"от 1,5 до 3 лет",null,0]
[null,null,"от 3 до 7 лет",null,0]
[null,null,"7 лет и старше",null,0]
[null,"Количество родителей (з/пр),  с детьми школьниками, получающими  образование в форме семейного образования","7-11 лет",null,0]
[null,null,"12-15 лет",null,0]
[null,null,"16 лет и старше",2,2]
[null,"Количество родителей (з/пр), обратившихся  с детьми школьниками, получающими  образование в ОО","7-11 лет",23,23]
[null,null," 12-15 лет",5,5]
[null,null,"16 лет и старше",null,0]
["Общее количество детей, охваченных услугами в 1 квартале  2021 г","Количество детей, получающих дошкольное образование в семейной форме"," до 1,5 лет",null,0]
[null,null,"от 1,5 до 3 лет",null,0]
[null,null,"от 3 до 7 лет",null,0]
[null,null," 7 лет и старше",null,0]
[null,"Количество детей, не получающих дошкольное образование"," до 1,5 лет",null,0]
[null,null,"от 1,5 до 3 лет",null,0]
[null,null,"от 3 до 7 лет",null,0]
[null,null," 7 лет и старше",null,0]
[null,"Количество детей, получающих дошкольное образование в ДОО","до 1,5 лет",null,0]
[null,null,"от 1,5 до 3 лет",null,0]
[null,null,"от 3 до 7 лет",null,0]
[null,null,"7 лет и старше",null,0]
[null,"Количество детей школьников, получающих образование в семейной форме","7-11 лет",null,0]
[null,null," 12-15 лет",null,0]
[null,null,"16 лет и старше",2,2]
[null,"Количество детей школьников, получающих образование в ОО","7-11 лет",23,23]
[null,null,"12-15 лет",5,5]
[null,null,"16 лет и старше",null,0]

{"sheet":"Коченёвский","index":12,"n_rows":49,"n_cols":7,"rows_kept":49,"cut":false,"hidden":false,"merged":[[28,1,30,1],[31,0,48,0],[31,1,34,1],[35,1,38,1],[39,1,42,1],[43,1,45,1],[46,1,48,1],[13,0,30,0],[13,1,16,1],[17,1,20,1],[21,1,24,1],[25,1,27,1],[1,0,12,0],[1,1,3,1],[4,1,6,1],[7,1,9,1],[10,1,12,1]]}
[null,null,null,"МКОУ Коченевская СОШ №1 имени Героя Советского Союза Аргунова Н.Ф.","МКОУ Коченевская СОШ №13","МКДОУ детский сад №6 \"Антошка\"","Итого"]
["Общее количество обращений по видам помощи в   1 квартале 2021 г.","методическая помощь","очная ",0,0,0,0]
[null,null,"дистанционная",0,1,0,1]
[null,null,"выездная",6,0,0,6]
[null,"психолого-педагогическая помощь","очная",0,12,4,16]
[null,null,"дистанционная",0,8,0,8]
[null,null,"выездная",7,0,0,7]
[null,"диагностическая помощь","очная",0,41,12,53]
[null,null,"дистанционная",0,0,10,10]
[null,null,"выездная",10,0,0,10]
[null,"консультативная помощь","очная",2,15,29,46]
[null,null,"дистанционная",0,1,0,1]
[null,null,"выездная",10,0,0,10]
["Общее количество родителей(законных представителей), обратившихся за помощью  в 1 квартале 2021 г","Количество родителей (з/пр) с детьми, получающими дошкольное образование                 в форме семейного образования"," до 1,5 лет",0,0,0,0]
[null,null,"от 1,5 до 3 лет",0,0,0,0]
[null,null,"от 3 до 7 лет",0,0,0,0]
[null,null,"7 лет и старше",0,0,0,0]
[null,"Количество родителей (з/пр) детей,  не получающих дошкольное образование","до 1,5 лет",0,0,0,0]
[null,null,"от 1,5 до 3 лет",0,0,0,0]
[null,null,"от 3 до 7 лет",0,0,0,0]
[null,null,"7 лет и старше",0,0,0,0]
[null,"Количество родителей (з/пр),  с детьми, получающими дошкольное образование в ДОО","до 1,5 лет",0,0,0,0]
[null,null,"от 1,5 до 3 лет",0,0,0,0]
[null,null,"от 3 до 7 лет",3,0,23,26]
[null,null,"7 лет и старше",0,0,2,2]
[null,"Количество родителей (з/пр),  с детьми школьниками, получающими  образование в форме семейного образования","7-11 лет",0,0,0,0]
[null,null,"12-15 лет",0,0,0,0]
[null,null,"16 лет и старше",0,0,0,0]
[null,"Количество родителей (з/пр), обратившихся  с детьми школьниками, получающими  образование в ОО","7-11 лет",15,10,0,25]
[null,null," 12-15 лет",0,14,0,14]
[null,null,"16 лет и старше",0,3,0,3]
["Общее количество детей, охваченных услугами в 1 квартале  2021 г","Количество детей, получающих дошкольное образование в семейной форме"," до 1,5 лет",0,0,0,0]
[null,null,"от 1,5 до 3 лет",0,0,0,0]
[null,null,"от 3 до 7 лет",0,0,0,0]
[null,null," 7 лет и старше",0,0,0,0]
[null,"Количество детей, не получающих дошкольное образование"," до 1,5 лет",0,0,0,0]
[null,null,"от 1,5 до 3 лет",0,0,0,0]
[null,null,"от 3 до 7 лет",0,0,0,0]
[null,null," 7 лет и старше",0,0,0,0]
[null,"Количество детей, получающих дошкольное образование в ДОО","до 1,5 лет",0,0,0,0]
[null,null,"от 1,5 до 3 лет",0,0,9,9]
[null,null,"от 3 до 7 лет",3,0,32,35]
[null,null,"7 лет и старше",0,0,2,2]
[null,"Количество детей школьников, получающих образование в семейной форме","7-11 лет",0,0,0,0]
[null,null," 12-15 лет",0,0,0,0]
[null,null,"16 лет и старше",0,0,0,0]
[null,"Количество детей школьников, получающих образование в ОО","7-11 лет",15,10,0,25]
[null,null,"12-15 лет",0,14,0,14]
[null,null,"16 лет и старше",0,3,0,3]

{"sheet":"Кочковский","index":13,"n_rows":49,"n_cols":17,"rows_kept":49,"cut":false,"hidden":false,"merged":[[28,1,30,1],[31,0,48,0],[31,1,34,1],[35,1,38,1],[39,1,42,1],[43,1,45,1],[46,1,48,1],[13,0,30,0],[13,1,16,1],[17,1,20,1],[21,1,24,1],[25,1,27,1],[1,0,12,0],[1,1,3,1],[4,1,6,1],[7,1,9,1],[10,1,12,1]]}
[null,null,null,"Решетовская","Новорешетовская","Кочковская","Черновская","Красносибирская","Быструхинская","Жуланская","Троицкая","Новоцелинаня","Республиканская","Букреевская","Ермаковская","Кочковский д/с","Итого"]
["Общее количество обращений по видам помощи в   1 квартале 2021 г.","методическая помощь","очная ",11,null,2,4,null,6,9,null,null,null,null,1,null,33]
[null,null,"дистанционная",null,null,null,null,null,5,7,null,null,null,null,null,null,12]
[null,null,"выездная",null,null,null,null,null,null,null,null,null,null,null,null,null,0]
[null,"психолого-педагогическая помощь","очная",7,null,10,3,3,null,6,null,null,null,null,null,null,29]
[null,null,"дистанционная",null,null,null,null,null,null,5,null,null,null,null,null,null,5]
[null,null,"выездная",null,null,null,null,null,null,3,null,null,null,null,null,null,3]
[null,"диагностическая помощь","очная",null,null,2,3,13,null,null,null,null,null,null,null,5,23]
[null,null,"дистанционная",null,null,null,null,null,null,null,null,null,null,null,null,null,0]
[null,null,"выездная",null,null,null,null,null,null,null,null,null,null,null,null,null,0]
[null,"консультативная помощь","очная",3,50,50,3,13,1,6,2,16,null,7,7,98,256]
[null,null,"дистанционная",null,null,null,null,null,6,4,1,null,null,null,null,null,11]
[null,null,"выездная",null,null,null,null,null,null,null,1,null,null,null,null,null,1]
["Общее количество родителей(законных представителей), обратившихся за помощью  в 1 квартале 2021 г","Количество родителей (з/пр) с детьми, получающими дошкольное образование                 в форме семейного образования"," до 1,5 лет",null,null,null,null,null,null,null,null,null,null,null,null,null,0]
[null,null,"от 1,5 до 3 лет",null,null,null,null,null,null,null,null,null,null,null,null,null,0]
[null,null,"от 3 до 7 лет",null,null,null,null,null,null,null,null,null,null,null,null,null,0]
[null,null,"7 лет и старше",null,null,null,null,null,null,null,null,null,null,null,null,null,0]
[null,"Количество родителей (з/пр) детей,  не получающих дошкольное образование","до 1,5 лет",null,null,null,null,null,null,null,null,null,null,null,null,null,0]
[null,null,"от 1,5 до 3 лет",null,null,null,null,null,null,null,null,null,null,null,null,null,0]
[null,null,"от 3 до 7 лет",null,null,null,null,null,null,null,null,null,null,null,null,null,0]
[null,null,"7 лет и старше",null,null,null,null,null,null,null,null,null,null,null,null,null,0]
[null,"Количество родителей (з/пр),  с детьми, получающими дошкольное образование в ДОО","до 1,5 лет",null,null,null,null,null,null,null,null,null,null,null,null,0,0]
[null,null,"от 1,5 до 3 лет",null,null,null,null,null,null,null,null,null,null,null,null,15,15]
[null,null,"от 3 до 7 лет",null,null,null,null,null,null,null,null,null,null,null,null,74,74]
[null,null,"7 лет и старше",null,null,null,null,null,null,null,null,null,null,null,null,0,0]
[null,"Количество родителей (з/пр),  с детьми школьниками, получающими  образование в форме семейного образования","7-11 лет",null,null,null,null,null,null,null,null,null,null,null,null,null,0]
[null,null,"12-15 лет",null,null,null,null,null,null,null,null,null,null,null,null,null,0]
[null,null,"16 лет и старше",null,null,null,null,null,null,null,null,null,null,null,null,null,0]
[null,"Количество родителей (з/пр), обратившихся  с детьми школьниками, получающими  образование в ОО","7-11 лет",5,10,12,1,5,7,16,1,8,null,2,1,null,68]
[null,null," 12-15 лет",9,30,42,2,8,8,24,2,8,null,5,5,null,143]
[null,null,"16 лет и старше",1,10,10,3,null,1,null,null,null,null,null,null,null,25]
["Общее количество детей, охваченных услугами в 1 квартале  2021 г","Количество детей, получающих дошкольное образование в семейной форме"," до 1,5 лет",null,null,null,null,null,null,null,null,null,null,null,null,null,0]
[null,null,"от 1,5 до 3 лет",null,null,null,null,null,null,null,null,null,null,null,null,null,0]
[null,null,"от 3 до 7 лет",null,null,null,null,null,null,null,null,null,null,null,null,null,0]
[null,null," 7 лет и старше",null,null,null,null,null,null,null,null,null,null,null,null,null,0]
[null,"Количество детей, не получающих дошкольное образование"," до 1,5 лет",null,null,null,null,null,null,null,null,null,null,null,null,null,0]
[null,null,"от 1,5 до 3 лет",null,null,null,null,null,null,null,null,null,null,null,null,null,0]
[null,null,"от 3 до 7 лет",null,null,null,null,null,null,null,null,null,null,null,null,null,0]
[null,null," 7 лет и старше",null,null,null,null,null,null,null,null,null,null,null,null,null,0]
[null,"Количество детей, получающих дошкольное образование в ДОО","до 1,5 лет",null,null,null,null,null,null,null,null,null,null,null,null,0,0]
[null,null,"от 1,5 до 3 лет",null,null,null,null,null,null,null,null,null,null,null,null,11,11]
[null,null,"от 3 до 7 лет",null,null,null,null,null,null,null,null,null,null,null,null,62,62]
[null,null,"7 лет и старше",null,null,null,null,null,null,null,null,null,null,null,null,0,0]
[null,"Количество детей школьников, получающих образование в семейной форме","7-11 лет",null,null,null,null,null,null,null,null,null,null,null,null,null,0]
[null,null," 12-15 лет",null,null,null,null,null,null,null,null,null,null,null,null,null,0]
[null,null,"16 лет и старше",null,null,null,null,null,null,null,null,null,null,null,null,null,0]
[null,"Количество детей школьников, получающих образование в ОО","7-11 лет",5,10,12,1,5,4,16,1,8,null,2,1,null,65]
[null,null,"12-15 лет",14,30,42,1,8,3,24,2,8,null,5,5,null,142]
[null,null,"16 лет и старше",2,10,10,2,null,2,null,null,null,null,null,null,null,26]

{"sheet":"Краснозерский","index":14,"n_rows":49,"n_cols":12,"rows_kept":49,"cut":false,"hidden":false,"merged":[[28,1,30,1],[31,0,48,0],[31,1,34,1],[35,1,38,1],[39,1,42,1],[43,1,45,1],[46,1,48,1],[13,0,30,0],[13,1,16,1],[17,1,20,1],[21,1,24,1],[25,1,27,1],[1,0,12,0],[1,1,3,1],[4,1,6,1],[7,1,9,1],[10,1,12,1]]}
[null,null,null,"МКОУ Веселовская СОШ","МКОУ Колыбельская СОШ","МБОУ Краснозерский лицей № 2 имени Ф.И. Анисичкина","МКОУ Половинская СОШ","МКОУ Кайгородская ООШ","МКОУ Краснозерская ООШ","МКДОУ Краснозерский детский сад №4","МКДОУ Краснозерский детский сад №6","Итого"]
["Общее количество обращений по видам помощи в   1 квартале 2021 г.","методическая помощь","очная ",3,0,53,26,0,6,0,0,88]
[null,null,"дистанционная",3,0,16,8,2,0,0,0,29]
[null,null,"выездная",4,0,1,0,0,0,0,0,5]
[null,"психолого-педагогическая помощь","очная",2,3,64,9,0,4,1,9,92]
[null,null,"дистанционная",4,0,16,0,0,0,0,0,20]
[null,null,"выездная",4,0,1,0,0,0,0,0,5]
[null,"диагностическая помощь","очная",0,2,11,1,1,2,0,0,17]
[null,null,"дистанционная",0,0,0,0,0,0,0,0,0]
[null,null,"выездная",0,0,0,0,0,0,0,0,0]
[null,"консультативная помощь","очная",3,12,107,2,7,6,2,0,139]
[null,null,"дистанционная",3,0,16,0,0,0,0,0,19]
[null,null,"выездная",4,0,1,0,0,0,0,0,5]
["Общее количество родителей(законных представителей), обратившихся за помощью  в 1 квартале 2021 г","Количество родителей (з/пр) с детьми, получающими дошкольное образование                 в форме семейного образования"," до 1,5 лет",0,0,0,0,0,0,0,0,0]
[null,null,"от 1,5 до 3 лет",0,0,0,0,0,0,0,0,0]
[null,null,"от 3 до 7 лет",0,0,0,0,0,0,0,0,0]
[null,null,"7 лет и старше",0,0,0,0,0,0,0,0,0]
[null,"Количество родителей (з/пр) детей,  не получающих дошкольное образование","до 1,5 лет",0,0,0,0,0,0,0,0,0]
[null,null,"от 1,5 до 3 лет",0,0,0,0,0,0,0,0,0]
[null,null,"от 3 до 7 лет",0,0,0,0,0,0,0,0,0]
[null,null,"7 лет и старше",0,0,0,0,0,0,0,0,0]
[null,"Количество родителей (з/пр),  с детьми, получающими дошкольное образование в ДОО","до 1,5 лет",0,0,0,0,0,0,0,0,0]
[null,null,"от 1,5 до 3 лет",0,0,0,0,0,0,1,3,4]
[null,null,"от 3 до 7 лет",0,0,0,0,1,0,2,3,6]
[null,null,"7 лет и старше",0,0,0,0,0,0,0,0,0]
[null,"Количество родителей (з/пр),  с детьми школьниками, получающими  образование в форме семейного образования","7-11 лет",0,0,0,0,0,0,0,0,0]
[null,null,"12-15 лет",0,0,0,0,0,0,0,0,0]
[null,null,"16 лет и старше",1,0,0,0,0,0,0,0,1]
[null,"Количество родителей (з/пр), обратившихся  с детьми школьниками, получающими  образование в ОО","7-11 лет",2,8,20,9,1,6,0,0,46]
[null,null," 12-15 лет",3,7,19,35,5,2,0,0,71]
[null,null,"16 лет и старше",1,0,14,2,0,0,0,0,17]
["Общее количество детей, охваченных услугами в 1 квартале  2021 г","Количество детей, получающих дошкольное образование в семейной форме"," до 1,5 лет",0,0,0,0,0,0,0,0,0]
[null,null,"от 1,5 до 3 лет",0,0,0,0,0,0,0,0,0]
[null,null,"от 3 до 7 лет",0,0,0,0,0,0,0,0,0]
[null,null," 7 лет и старше",0,0,0,0,0,0,0,0,0]
[null,"Количество детей, не получающих дошкольное образование"," до 1,5 лет",0,0,0,0,0,0,0,0,0]
[null,null,"от 1,5 до 3 лет",0,0,0,0,0,0,0,0,0]
[null,null,"от 3 до 7 лет",0,0,0,0,0,0,0,0,0]
[null,null," 7 лет и старше",0,0,0,0,0,0,0,0,0]
[null,"Количество детей, получающих дошкольное образование в ДОО","до 1,5 лет",0,0,0,0,0,0,0,0,0]
[null,null,"от 1,5 до 3 лет",0,0,0,0,0,0,1,3,4]
[null,null,"от 3 до 7 лет",0,0,0,0,1,0,2,3,6]
[null,null,"7 лет и старше",0,0,0,0,0,0,0,0,0]
[null,"Количество детей школьников, получающих образование в семейной форме","7-11 лет",0,0,0,0,0,0,0,0,0]
[null,null," 12-15 лет",0,0,0,0,0,0,0,0,0]
[null,null,"16 лет и старше",1,0,0,0,0,0,0,0,1]
[null,"Количество детей школьников, получающих образование в ОО","7-11 лет",3,0,24,9,1,6,0,0,43]
[null,null,"12-15 лет",6,8,21,35,5,4,0,0,79]
[null,null,"16 лет и старше",2,7,14,2,0,0,0,0,25]

{"sheet":"Куйбышевский","index":15,"n_rows":49,"n_cols":7,"rows_kept":49,"cut":false,"hidden":false,"merged":[[28,1,30,1],[31,0,48,0],[31,1,34,1],[35,1,38,1],[39,1,42,1],[43,1,45,1],[46,1,48,1],[13,0,30,0],[13,1,16,1],[17,1,20,1],[21,1,24,1],[25,1,27,1],[1,0,12,0],[1,1,3,1],[4,1,6,1],[7,1,9,1],[10,1,12,1]]}
[null,null,null,"МКДОУ – детский сад комбинированного вида\n«Солнышко»","00 №2","ОО №3","Итого"]
["Общее количество обращений по видам помощи в   1 квартале 2021 г.","методическая помощь","очная ",5,null,null,5]
[null,null,"дистанционная",null,null,null,0]
[null,null,"выездная",null,null,null,0]
[null,"психолого-педагогическая помощь","очная",null,null,null,0]
[null,null,"дистанционная",null,null,null,0]
[null,null,"выездная",null,null,null,0]
[null,"диагностическая помощь","очная",null,null,null,0]
[null,null,"дистанционная",null,null,null,0]
[null,null,"выездная",null,null,null,0]
[null,"консультативная помощь","очная",1,null,null,1]
[null,null,"дистанционная",1,null,null,1]
[null,null,"выездная",null,null,null,0]
["Общее количество родителей(законных представителей), обратившихся за помощью  в 1 квартале 2021 г","Количество родителей (з/пр) с детьми, получающими дошкольное образование                 в форме семейного образования"," до 1,5 лет",null,null,null,0]
[null,null,"от 1,5 до 3 лет",null,null,null,0]
[null,null,"от 3 до 7 лет",null,null,null,0]
[null,null,"7 лет и старше",null,null,null,0]
[null,"Количество родителей (з/пр) детей,  не получающих дошкольное образование","до 1,5 лет",null,null,null,0]
[null,null,"от 1,5 до 3 лет",null,null,null,0]
[null,null,"от 3 до 7 лет",null,null,null,0]
[null,null,"7 лет и старше",null,null,null,0]
[null,"Количество родителей (з/пр),  с детьми, получающими дошкольное образование в ДОО","до 1,5 лет",null,null,null,0]
[null,null,"от 1,5 до 3 лет",2,null,null,2]
[null,null,"от 3 до 7 лет",4,null,null,4]
[null,null,"7 лет и старше",null,null,null,0]
[null,"Количество родителей (з/пр),  с детьми школьниками, получающими  образование в форме семейного образования","7-11 лет",null,null,null,0]
[null,null,"12-15 лет",null,null,null,0]
[null,null,"16 лет и старше",null,null,null,0]
[null,"Количество родителей (з/пр), обратившихся  с детьми школьниками, получающими  образование в ОО","7-11 лет",1,null,null,1]
[null,null," 12-15 лет",null,null,null,0]
[null,null,"16 лет и старше",null,null,null,0]
["Общее количество детей, охваченных услугами в 1 квартале  2021 г","Количество детей, получающих дошкольное образование в семейной форме"," до 1,5 лет",null,null,null,0]
[null,null,"от 1,5 до 3 лет",null,null,null,0]
[null,null,"от 3 до 7 лет",null,null,null,0]
[null,null," 7 лет и старше",null,null,null,0]
[null,"Количество детей, не получающих дошкольное образование"," до 1,5 лет",null,null,null,0]
[null,null,"от 1,5 до 3 лет",null,null,null,0]
[null,null,"от 3 до 7 лет",null,null,null,0]
[null,null," 7 лет и старше",null,null,null,0]
[null,"Количество детей, получающих дошкольное образование в ДОО","до 1,5 лет",null,null,null,0]
[null,null,"от 1,5 до 3 лет",2,null,null,2]
[null,null,"от 3 до 7 лет",4,null,null,4]
[null,null,"7 лет и старше",null,null,null,0]
[null,"Количество детей школьников, получающих образование в семейной форме","7-11 лет",null,null,null,0]
[null,null," 12-15 лет",null,null,null,0]
[null,null,"16 лет и старше",null,null,null,0]
[null,"Количество детей школьников, получающих образование в ОО","7-11 лет",1,null,null,1]
[null,null,"12-15 лет",null,null,null,0]
[null,null,"16 лет и старше",null,null,null,0]

{"sheet":"Купинский","index":16,"n_rows":49,"n_cols":20,"rows_kept":49,"cut":false,"hidden":false,"merged":[[1,0,12,0],[1,1,3,1],[4,1,6,1],[7,1,9,1],[10,1,12,1],[28,1,30,1],[31,0,48,0],[31,1,34,1],[35,1,38,1],[39,1,42,1],[43,1,45,1],[46,1,48,1],[13,0,30,0],[13,1,16,1],[17,1,20,1],[21,1,24,1],[25,1,27,1]]}
[null,null,null,"МКДОУ детский сад \"Теремок\" Купинского района","МБОУ Купинского района С (К) школа-интернат № 2","МБОУ Куинская школа-интернат № 1","МБОУ СОШ № 148","МБОУ Лицей № 2","МБОУ СОШ № 105","МБОУ СОШ № 80 им. В.П. Кузнецова","МКОУ Веселокутская ООШ","МБОУ Киргинцевская СОШ ","МБОУ Новоключевская СОШ","МБОУ Новониколаевская СОШ","МБОУ Новосельская СОШ имени четырех Героев Советского Союза","МБОУ Рождественская СОШ","МБОУ Советская СОШ","МКДОУ детский сад \"Золотой ключик\"","МКДОУ детский сад \"Солнышко\"","Итого"]
["Общее количество обращений по видам помощи в   1 квартале 2021 г.","методическая помощь","очная ",null,4,7,8,2,30,2,null,null,null,null,null,4,2,null,null,59]
[null,null,"дистанционная",null,null,3,null,1,6,null,null,null,null,null,null,null,5,null,5,20]
[null,null,"выездная",null,3,1,null,null,null,null,null,null,null,null,null,null,null,null,null,4]
[null,"психолого-педагогическая помощь","очная",null,21,11,2,2,10,4,5,1,null,null,1,null,null,null,null,57]
[null,null,"дистанционная",null,null,4,null,null,6,null,null,null,null,null,null,null,null,null,null,10]
[null,null,"выездная",null,null,2,null,null,null,null,null,null,null,null,null,null,null,null,null,2]
[null,"диагностическая помощь","очная",null,5,6,2,78,14,1,null,null,null,null,null,null,null,null,25,131]
[null,null,"дистанционная",null,null,1,null,null,null,null,null,null,null,null,null,null,null,null,null,1]
[null,null,"выездная",null,null,null,null,null,null,null,null,null,null,null,null,null,null,null,null,0]
[null,"консультативная помощь","очная",47,6,27,3,5,20,5,5,1,2,1,3,4,5,14,25,173]
[null,null,"дистанционная",7,34,13,null,7,12,null,null,null,null,null,null,null,10,3,5,91]
[null,null,"выездная",null,17,2,null,null,null,null,null,null,null,null,null,null,null,null,null,19]
["Общее количество родителей(законных представителей), обратившихся за помощью  в 1 квартале 2021 г","Количество родителей (з/пр) с детьми, получающими дошкольное образование                 в форме семейного образования"," до 1,5 лет",null,null,null,null,null,null,null,null,null,null,null,null,null,null,null,null,0]
[null,null,"от 1,5 до 3 лет",null,null,null,null,null,null,null,null,null,null,null,null,null,null,null,null,0]
[null,null,"от 4 до 7 лет",null,null,null,null,null,null,null,null,null,null,null,null,null,null,null,null,0]
[null,null,"7 лет и старше",null,null,null,null,null,null,null,null,null,null,null,null,null,null,null,null,0]
[null,"Количество родителей (з/пр) детей,  не получающих дошкольное образование","до 1,5 лет",null,null,null,null,null,null,null,null,null,null,null,null,null,null,null,null,0]
[null,null,"от 1,5 до 3 лет",null,null,null,null,null,null,null,null,null,null,null,null,null,null,null,null,0]
[null,null,"от 3 до 7 лет",null,null,null,null,null,null,null,null,null,null,null,null,null,null,null,3,3]
[null,null,"7 лет и старше",null,null,null,null,null,null,null,null,null,null,null,null,null,null,null,null,0]
[null,"Количество родителей (з/пр),  с детьми, получающими дошкольное образование в ДОО","до 1,5 лет",null,null,null,null,null,null,null,null,null,null,null,null,null,null,2,null,2]
[null,null,"от 1,5 до 3 лет",null,null,null,null,null,null,null,null,null,null,null,null,null,null,5,null,5]
[null,null,"от 3 до 7 лет",30,null,null,null,null,null,null,null,null,null,null,null,null,null,6,27,63]
[null,null,"7 лет и старше",null,null,null,null,null,null,null,null,null,null,null,null,null,null,null,null,0]
[null,"Количество родителей (з/пр),  с детьми школьниками, получающими  образование в форме семейного образования","7-11 лет",null,null,null,null,null,null,null,null,null,null,null,null,null,null,null,null,0]
[null,null,"12-15 лет",null,null,null,null,null,null,null,null,null,null,null,null,null,null,null,null,0]
[null,null,"16 лет и старше",null,null,null,null,null,null,null,null,null,null,null,null,null,null,null,null,0]
[null,"Количество родителей (з/пр), обратившихся  с детьми школьниками, получающими  образование в ОО","7-11 лет",null,15,8,3,14,12,5,3,1,2,null,3,null,4,null,null,70]
[null,null," 12-15 лет",null,24,12,3,25,35,6,2,null,null,1,null,3,3,null,null,114]
[null,null,"16 лет и старше",null,10,3,2,1,0,0,null,null,null,null,1,1,1,null,null,19]
["Общее количество детей, охваченных услугами в 1 квартале  2021 г","Количество детей, получающих дошкольное образование в семейной форме"," до 1,5 лет",null,null,null,null,null,null,null,null,null,null,null,null,null,null,null,null,0]
[null,null,"от 1,5 до 3 лет",null,null,null,null,null,null,null,null,null,null,null,null,null,null,null,null,0]
[null,null,"от 3 до 7 лет",null,null,null,null,null,null,null,null,null,null,null,null,null,null,null,null,0]
[null,null," 7 лет и старше",null,null,null,null,null,null,null,null,null,null,null,null,null,null,null,null,0]
[null,"Количество детей, не получающих дошкольное образование"," до 1,5 лет",null,null,null,null,null,null,null,null,null,null,null,null,null,null,null,null,0]
[null,null,"от 1,5 до 3 лет",null,null,null,null,null,null,null,null,null,null,null,null,null,null,null,null,0]
[null,null,"от 3 до 7 лет",null,null,null,null,null,null,null,null,null,null,null,null,null,null,null,3,3]
[null,null," 7 лет и старше",null,null,null,null,null,null,null,null,null,null,null,null,null,null,null,null,0]
[null,"Количество детей, получающих дошкольное образование в ДОО","до 1,5 лет",null,null,null,null,null,null,null,null,null,null,null,null,null,null,2,null,2]
[null,null,"от 1,5 до 3 лет",null,null,null,null,null,null,null,null,null,null,null,null,null,2,5,null,7]
[null,null,"от 3 до 7 лет",30,null,null,null,null,null,null,null,null,null,null,null,null,7,6,27,70]
[null,null,"7 лет и старше",null,null,null,null,null,null,null,null,null,null,null,null,null,null,null,null,0]
[null,"Количество детей школьников, получающих образование в семейной форме","7-11 лет",null,null,null,null,null,null,null,null,null,null,null,null,null,null,null,null,0]
[null,null," 12-15 лет",null,null,null,null,null,null,null,null,null,null,null,null,null,null,null,null,0]
[null,null,"16 лет и старше",null,null,null,null,null,null,null,null,null,null,null,null,null,null,null,null,0]
[null,"Количество детей школьников, получающих образование в ОО","7-10 лет",null,15,8,3,14,12,5,3,1,2,0,3,null,4,null,null,70]
[null,null,"12-15 лет",null,24,12,3,25,35,6,2,0,0,1,0,3,3,null,null,114]
[null,null,"16 лет и старше",null,10,3,2,1,0,0,0,0,0,0,1,1,1,null,null,19]

{"sheet":"Кыштовский","index":17,"n_rows":49,"n_cols":6,"rows_kept":49,"cut":false,"hidden":false,"merged":[[1,0,12,0],[1,1,3,1],[4,1,6,1],[7,1,9,1],[10,1,12,1],[28,1,30,1],[31,0,48,0],[31,1,34,1],[35,1,38,1],[39,1,42,1],[43,1,45,1],[46,1,48,1],[13,0,30,0],[13,1,16,1],[17,1,20,1],[21,1,24,1],[25,1,27,1]]}
[null,null,null,"КСОШ №2","МКДОУ \"Ласточка\"","Итого"]
["Общее количество обращений по видам помощи в   1 квартале 2021 г.","методическая помощь","очная ",null,3,3]
[null,null,"дистанционная",null,2,2]
[null,null,"выездная",null,null,0]
[null,"психолого-педагогическая помощь","очная",null,3,3]
[null,null,"дистанционная",null,5,5]
[null,null,"выездная",null,null,0]
[null,"диагностическая помощь","очная",null,3,3]
[null,null,"дистанционная",null,2,2]
[null,null,"выездная",null,null,0]
[null,"консультативная помощь","очная",24,3,27]
[null,null,"дистанционная",null,5,5]
[null,null,"выездная",null,null,0]
["Общее количество родителей(законных представителей), обратившихся за помощью  в 1 квартале 2021 г","Количество родителей (з/пр) с детьми, получающими дошкольное образование                 в форме семейного образования"," до 1,5 лет",null,null,0]
[null,null,"от 1,5 до 3 лет",null,null,0]
[null,null,"от 3 до 7 лет",null,null,0]
[null,null,"7 лет и старше",null,null,0]
[null,"Количество родителей (з/пр) детей,  не получающих дошкольное образование","до 1,5 лет",null,null,0]
[null,null,"от 1,5 до 3 лет",null,null,0]
[null,null,"от 3 до 7 лет",null,5,5]
[null,null,"7 лет и старше",null,null,0]
[null,"Количество родителей (з/пр),  с детьми, получающими дошкольное образование в ДОО","до 1,5 лет",null,null,0]
[null,null,"от 1,5 до 3 лет",null,null,0]
[null,null,"от 3 до 7 лет",null,null,0]
[null,null,"7 лет и старше",null,null,0]
[null,"Количество родителей (з/пр),  с детьми школьниками, получающими  образование в форме семейного образования","7-11 лет",3,null,3]
[null,null,"12-15 лет",4,null,4]
[null,null,"16 лет и старше",null,null,0]
[null,"Количество родителей (з/пр), обратившихся  с детьми школьниками, получающими  образование в ОО","7-11 лет",null,null,0]
[null,null," 12-15 лет",null,null,0]
[null,null,"16 лет и старше",null,null,0]
["Общее количество детей, охваченных услугами в 1 квартале  2021 г","Количество детей, получающих дошкольное образование в семейной форме"," до 1,5 лет",null,null,0]
[null,null,"от 1,5 до 3 лет",null,null,0]
[null,null,"от 3 до 7 лет",null,null,0]
[null,null," 7 лет и старше",null,null,0]
[null,"Количество детей, не получающих дошкольное образование"," до 1,5 лет",null,null,0]
[null,null,"от 1,5 до 3 лет",null,null,0]
[null,null,"от 3 до 7 лет",null,null,0]
[null,null," 7 лет и старше",null,null,0]
[null,"Количество детей, получающих дошкольное образование в ДОО","до 1,5 лет",null,null,0]
[null,null,"от 1,5 до 3 лет",null,null,0]
[null,null,"от 3 до 7 лет",null,5,5]
[null,null,"7 лет и старше",null,null,0]
[null,"Количество детей школьников, получающих образование в семейной форме","7-11 лет",null,null,0]
[null,null," 12-15 лет",null,null,0]
[null,null,"16 лет и старше",null,null,0]
[null,"Количество детей школьников, получающих образование в ОО","7-11 лет",4,null,4]
[null,null,"12-15 лет",9,null,9]
[null,null,"16 лет и старше",4,null,4]

{"sheet":"Магистр","index":18,"n_rows":49,"n_cols":5,"rows_kept":49,"cut":false,"hidden":false,"merged":[[13,0,30,0],[13,1,16,1],[17,1,20,1],[25,1,27,1],[28,1,30,1],[21,1,24,1],[1,0,12,0],[1,1,3,1],[4,1,6,1],[7,1,9,1],[10,1,12,1],[31,0,48,0],[31,1,34,1],[43,1,45,1],[46,1,48,1],[35,1,38,1],[39,1,42,1]]}
[null,null,null,"Магистр","Итого"]
["Общее количество обращений по видам помощи в   1 квартале 2021 г.","методическая помощь","очная ",37,37]
[null,null,"дистанционная",4,4]
[null,null,"выездная",26,26]
[null,"психолого-педагогическая помощь","очная",null,0]
[null,null,"дистанционная",null,0]
[null,null,"выездная",null,0]
[null,"диагностическая помощь","очная",null,0]
[null,null,"дистанционная",null,0]
[null,null,"выездная",null,0]
[null,"консультативная помощь","очная",1468,1468]
[null,null,"дистанционная",38,38]
[null,null,"выездная",1,1]
["Общее количество родителей(законных представителей), обратившихся за помощью  в 1 квартале 2021 г","Количество родителей (з/пр) с детьми, получающими дошкольное образование                 в форме семейного образования"," до 1,5 лет",null,0]
[null,null,"от 1,5 до 3 лет",null,0]
[null,null,"от 4 до 7 лет",null,0]
[null,null,"7 лет и старше",null,0]
[null,"Количество родителей (з/пр) детей,  не получающих дошкольное образование","до 1,5 лет",null,0]
[null,null,"от 1,5 до 3 лет",null,0]
[null,null,"от 3 до 7 лет",null,0]
[null,null,"7 лет и старше",null,0]
[null,"Количество родителей (з/пр),  с детьми, получающими дошкольное образование в ДОО","до 1,5 лет",null,0]
[null,null,"от 1,5 до 3 лет",27,27]
[null,null,"от 3 до 7 лет",757,757]
[null,null,"7 лет и старше",null,0]
[null,"Количество родителей (з/пр),  с детьми школьниками, получающими  образование в форме семейного образования","7-11 лет",null,0]
[null,null,"12-15 лет",null,0]
[null,null,"16 лет и старше",null,0]
[null,"Количество родителей (з/пр), обратившихся  с детьми школьниками, получающими  образование в ОО","7-11 лет",385,385]
[null,null," 12-15 лет",335,335]
[null,null,"16 лет и старше",14,14]
["Общее количество детей, охваченных услугами в 1 квартале  2021 г","Количество детей, получающих дошкольное образование в семейной форме"," до 1,5 лет",null,0]
[null,null,"от 1,5 до 3 лет",11,11]
[null,null,"от 3 до 7 лет",230,230]
[null,null," 7 лет и старше",null,0]
[null,"Количество детей, не получающих дошкольное образование"," до 1,5 лет",null,0]
[null,null,"от 1,5 до 3 лет",null,0]
[null,null,"от 3 до 7 лет",null,0]
[null,null," 7 лет и старше",null,0]
[null,"Количество детей, получающих дошкольное образование в ДОО","до 1,5 лет",null,0]
[null,null,"от 1,5 до 3 лет",16,16]
[null,null,"от 3 до 7 лет",527,527]
[null,null,"7 лет и старше",null,0]
[null,"Количество детей школьников, получающих образование в семейной форме","7-11 лет",null,0]
[null,null," 12-15 лет",null,0]
[null,null,"16 лет и старше",null,0]
[null,"Количество детей школьников, получающих образование в ОО","7-10 лет",371,371]
[null,null,"12-15 лет",327,327]
[null,null,"16 лет и старше",14,14]

{"sheet":"Маслянинский","index":19,"n_rows":49,"n_cols":8,"rows_kept":49,"cut":false,"hidden":false,"merged":[[28,1,30,1],[31,0,48,0],[31,1,34,1],[35,1,38,1],[39,1,42,1],[43,1,45,1],[46,1,48,1],[13,0,30,0],[13,1,16,1],[17,1,20,1],[21,1,24,1],[25,1,27,1],[1,0,12,0],[1,1,3,1],[4,1,6,1],[7,1,9,1],[10,1,12,1]]}
[null,null,null,"МКДОУ дс Росинка","МКДОУ дс Тополек","ОО №3","Маслянинская СОШ №1","Итого"]
["Общее количество обращений по видам помощи в   1 квартале 2021 г.","методическая помощь","очная ",null,null,null,null,0]
[null,null,"дистанционная",null,null,null,null,0]
[null,null,"выездная",null,null,null,null,0]
[null,"психолого-педагогическая помощь","очная",2,4,null,107,113]
[null,null,"дистанционная",2,null,null,null,2]
[null,null,"выездная",null,null,null,null,0]
[null,"диагностическая помощь","очная",null,null,null,84,84]
[null,null,"дистанционная",null,null,null,null,0]
[null,null,"выездная",null,null,null,null,0]
[null,"консультативная помощь","очная",null,10,null,23,33]
[null,null,"дистанционная",6,null,null,null,6]
[null,null,"выездная",null,null,null,null,0]
["Общее количество родителей(законных представителей), обратившихся за помощью  в 1 квартале 2021 г","Количество родителей (з/пр) с детьми, получающими дошкольное образование                 в форме семейного образования"," до 1,5 лет",null,null,null,null,0]
[null,null,"от 1,5 до 3 лет",null,null,null,null,0]
[null,null,"от 3 до 7 лет",null,null,null,null,0]
[null,null,"7 лет и старше",null,null,null,null,0]
[null,"Количество родителей (з/пр) детей,  не получающих дошкольное образование","до 1,5 лет",null,null,null,null,0]
[null,null,"от 1,5 до 3 лет",null,null,null,2,2]
[null,null,"от 3 до 7 лет",null,null,null,2,2]
[null,null,"7 лет и старше",null,null,null,4,4]
[null,"Количество родителей (з/пр),  с детьми, получающими дошкольное образование в ДОО","до 1,5 лет",4,null,null,null,4]
[null,null,"от 1,5 до 3 лет",6,2,null,null,8]
[null,null,"от 3 до 7 лет",null,12,null,20,32]
[null,null,"7 лет и старше",null,null,null,53,53]
[null,"Количество родителей (з/пр),  с детьми школьниками, получающими  образование в форме семейного образования","7-11 лет",null,null,null,null,0]
[null,null,"12-15 лет",null,null,null,null,0]
[null,null,"16 лет и старше",null,null,null,null,0]
[null,"Количество родителей (з/пр), обратившихся  с детьми школьниками, получающими  образование в ОО","7-11 лет",null,null,null,11,11]
[null,null," 12-15 лет",null,null,null,9,9]
[null,null,"16 лет и старше",null,null,null,6,6]
["Общее количество детей, охваченных услугами в 1 квартале  2021 г","Количество детей, получающих дошкольное образование в семейной форме"," до 1,5 лет",null,null,null,null,0]
[null,null,"от 1,5 до 3 лет",null,null,null,null,0]
[null,null,"от 3 до 7 лет",null,null,null,null,0]
[null,null," 7 лет и старше",null,null,null,null,0]
[null,"Количество детей, не получающих дошкольное образование"," до 1,5 лет",null,null,null,null,0]
[null,null,"от 1,5 до 3 лет",null,null,null,2,2]
[null,null,"от 3 до 7 лет",null,null,null,2,2]
[null,null," 7 лет и старше",null,null,null,4,4]
[null,"Количество детей, получающих дошкольное образование в ДОО","до 1,5 лет",4,null,null,null,4]
[null,null,"от 1,5 до 3 лет",6,2,null,null,8]
[null,null,"от 3 до 7 лет",null,12,null,20,32]
[null,null,"7 лет и старше",null,null,null,53,53]
[null,"Количество детей школьников, получающих образование в семейной форме","7-11 лет",null,null,null,null,0]
[null,null," 12-15 лет",null,null,null,null,0]
[null,null,"16 лет и старше",null,null,null,null,0]
[null,"Количество детей школьников, получающих образование в ОО","7-11 лет",null,null,null,11,11]
[null,null,"12-15 лет",null,null,null,9,9]
[null,null,"16 лет и старше",null,null,null,6,6]

{"sheet":"Мошковский","index":20,"n_rows":49,"n_cols":7,"rows_kept":49,"cut":false,"hidden":false,"merged":[[31,0,48,0],[31,1,34,1],[35,1,38,1],[39,1,42,1],[43,1,45,1],[46,1,48,1],[13,0,30,0],[13,1,16,1],[17,1,20,1],[21,1,24,1],[25,1,27,1],[28,1,30,1],[1,0,12,0],[1,1,3,1],[4,1,6,1],[7,1,9,1],[10,1,12,1]]}
[null,null,null,"ОО №1","00 №2","ОО №3","Итого"]
["Общее количество обращений по видам помощи в   1 квартале 2021 г.","методическая помощь","очная ",0,0,0,0]
[null,null,"дистанционная",0,0,0,0]
[null,null,"выездная",0,0,0,0]
[null,"психолого-педагогическая помощь","очная",0,0,0,0]
[null,null,"дистанционная",0,0,0,0]
[null,null,"выездная",0,0,0,0]
[null,"диагностическая помощь","очная",0,0,0,0]
[null,null,"дистанционная",0,0,0,0]
[null,null,"выездная",0,0,0,0]
[null,"консультативная помощь","очная",0,0,0,0]
[null,null,"дистанционная",0,0,0,0]
[null,null,"выездная",0,0,0,0]
["Общее количество родителей(законных представителей), обратившихся за помощью  в 1 квартале 2021 г","Количество родителей (з/пр) с детьми, получающими дошкольное образование                 в форме семейного образования"," до 1,5 лет",0,0,0,0]
[null,null,"от 1,5 до 3 лет",0,0,0,0]
[null,null,"от 3 до 7 лет",0,0,0,0]
[null,null,"7 лет и старше",0,0,0,0]
[null,"Количество родителей (з/пр) детей,  не получающих дошкольное образование","до 1,5 лет",0,0,0,0]
[null,null,"от 1,5 до 3 лет",0,0,0,0]
[null,null,"от 3 до 7 лет",0,0,0,0]
[null,null,"7 лет и старше",0,0,0,0]
[null,"Количество родителей (з/пр),  с детьми, получающими дошкольное образование в ДОО","до 1,5 лет",0,0,0,0]
[null,null,"от 1,5 до 3 лет",0,0,0,0]
[null,null,"от 3 до 7 лет",0,0,0,0]
[null,null,"7 лет и старше",0,0,0,0]
[null,"Количество родителей (з/пр),  с детьми школьниками, получающими  образование в форме семейного образования","7-11 лет",0,0,0,0]
[null,null,"12-15 лет",0,0,0,0]
[null,null,"16 лет и старше",0,0,0,0]
[null,"Количество родителей (з/пр), обратившихся  с детьми школьниками, получающими  образование в ОО","7-11 лет",0,0,0,0]
[null,null," 12-15 лет",0,0,0,0]
[null,null,"16 лет и старше",0,0,0,0]
["Общее количество детей, охваченных услугами в 1 квартале  2021 г","Количество детей, получающих дошкольное образование в семейной форме"," до 1,5 лет",0,0,0,0]
[null,null,"от 1,5 до 3 лет",0,0,0,0]
[null,null,"от 3 до 7 лет",0,0,0,0]
[null,null," 7 лет и старше",0,0,0,0]
[null,"Количество детей, не получающих дошкольное образование"," до 1,5 лет",0,0,0,0]
[null,null,"от 1,5 до 3 лет",0,0,0,0]
[null,null,"от 3 до 7 лет",0,0,0,0]
[null,null," 7 лет и старше",0,0,0,0]
[null,"Количество детей, получающих дошкольное образование в ДОО","до 1,5 лет",0,0,0,0]
[null,null,"от 1,5 до 3 лет",0,0,0,0]
[null,null,"от 3 до 7 лет",0,0,0,0]
[null,null,"7 лет и старше",0,0,0,0]
[null,"Количество детей школьников, получающих образование в семейной форме","7-11 лет",0,0,0,0]
[null,null," 12-15 лет",0,0,0,0]
[null,null,"16 лет и старше",0,0,0,0]
[null,"Количество детей школьников, получающих образование в ОО","7-11 лет",0,0,0,0]
[null,null,"12-15 лет",0,0,0,0]
[null,null,"16 лет и старше",0,0,0,0]

{"sheet":"НСК_Дзержинский_школы","index":21,"n_rows":62,"n_cols":25,"rows_kept":62,"cut":false,"hidden":false,"merged":[[28,1,30,1],[31,0,48,0],[31,1,34,1],[35,1,38,1],[39,1,42,1],[43,1,45,1],[46,1,48,1],[13,0,30,0],[13,1,16,1],[17,1,20,1],[21,1,24,1],[25,1,27,1],[1,0,12,0],[1,1,3,1],[4,1,6,1],[7,1,9,1],[10,1,12,1]]}
[null,null,null,"СОШ № 7","Гимназия 15","СОШ № 18","СОШ № 36","С(К)Ш № 53","СОШ 57","СОШ № 59","СОШ № 71","СОШ № 82","СОШ № 87","СОШ № 96","СОШ № 111","Лицей № 113","СОШ № 153","СОШ №169","СОШ № 177","СОШ № 178","СОШ № 197","Зимородок","АКЛ","ИТОГО:","Итого"]
["Общее количество обращений по видам помощи в   1 квартале 2021 г.","методическая помощь","очная ",7,4,5,3,25,6,4,12,3,4,2,7,1,20,12,5,18,6,2,3,{"$f":"SUM(D2:W2)","v":149},298]
[null,null,"дистанционная",28,2,36,15,0,12,10,11,17,0,42,7,0,0,0,0,33,0,0,12,{"$f":"SUM(D3:W3)","v":225},450]
[null,null,"выездная",0,0,0,0,0,0,0,0,0,0,0,0,0,0,0,0,0,0,0,0,0,0]
[null,"психолого-педагогическая помощь","очная",18,46,10,5,152,13,14,16,28,15,9,16,4,21,56,16,12,19,10,18,498,996]
[null,null,"дистанционная",32,5,0,24,0,12,11,29,21,0,3,0,0,0,0,0,11,0,0,0,148,296]
[null,null,"выездная",0,0,0,0,0,0,0,0,0,0,0,0,0,0,0,0,0,4,0,0,4,8]
[null,"диагностическая помощь","очная",41,168,115,7,130,32,25,36,45,6,16,16,0,50,123,20,124,0,4,0,958,1916]
[null,null,"дистанционная",9,0,25,22,0,5,6,26,14,0,0,0,0,0,0,0,0,0,0,0,107,214]
[null,null,"выездная",0,0,0,0,0,0,0,0,0,0,0,0,0,0,0,0,0,0,0,0,0,0]
[null,"консультативная помощь","очная",38,26,97,9,32,41,23,48,53,10,18,16,4,15,61,8,55,6,7,12,579,1158]
[null,null,"дистанционная",13,0,5,21,0,35,12,37,28,0,0,0,0,0,0,0,0,0,0,0,151,302]
[null,null,"выездная",0,0,0,0,0,0,0,0,0,0,0,0,0,0,0,0,0,0,0,0,0,0]
["Общее количество родителей(законных представителей), обратившихся за помощью  в 1 квартале 2021 г","Количество родителей (з/пр) с детьми, получающими дошкольное образование                 в форме семейного образования"," до 1,5 лет",0,0,0,0,0,0,0,0,0,0,0,0,0,0,0,0,0,0,0,0,0,0]
[null,null,"от 1,5 до 3 лет",0,0,0,0,0,0,0,0,0,0,0,0,0,0,0,0,0,0,0,0,0,0]
[null,null,"от 3 до 7 лет",0,0,0,0,0,0,0,0,0,0,0,0,0,0,0,0,0,0,0,0,0,0]
[null,null,"7 лет и старше",0,0,0,0,0,0,0,0,0,0,0,0,0,0,0,0,0,0,0,0,0,0]
[null,"Количество родителей (з/пр) детей,  не получающих дошкольное образование","до 1,5 лет",0,0,0,0,0,0,0,0,0,0,0,0,0,0,0,0,0,0,0,0,0,0]
[null,null,"от 1,5 до 3 лет",0,0,0,0,0,0,0,0,0,0,0,0,0,0,0,0,0,0,0,0,0,0]
[null,null,"от 3 до 7 лет",0,0,0,0,0,0,0,0,0,0,0,0,0,0,0,0,0,0,0,0,0,0]
[null,null,"7 лет и старше",0,0,0,0,0,0,0,0,0,0,0,0,0,0,0,0,0,0,0,0,0,0]
[null,"Количество родителей (з/пр),  с детьми, получающими дошкольное образование в ДОО","до 1,5 лет",0,0,0,0,0,0,0,0,0,0,0,0,0,0,0,0,0,0,0,0,0,0]
[null,null,"от 1,5 до 3 лет",0,0,0,0,0,0,0,0,0,0,0,0,0,0,0,0,0,0,0,0,0,0]
[null,null,"от 3 до 7 лет",0,0,0,0,0,0,0,0,0,0,0,0,0,0,0,0,0,0,9,0,9,18]
[null,null,"7 лет и старше",0,0,0,0,0,0,0,0,0,0,0,0,0,0,0,0,5,0,0,0,5,10]
[null,"Количество родителей (з/пр),  с детьми школьниками, получающими  образование в форме семейного образования","7-11 лет",0,0,0,5,0,0,0,0,0,0,0,1,0,0,0,0,0,0,0,0,6,12]
[null,null,"12-15 лет",1,1,0,2,0,0,0,0,0,2,0,0,1,0,0,0,0,1,0,0,8,16]
[null,null,"16 лет и старше",0,1,0,0,0,0,0,0,0,0,0,0,0,0,0,0,0,0,0,0,1,2]
[null,"Количество родителей (з/пр), обратившихся  с детьми школьниками, получающими  образование в ОО","7-11 лет",18,20,11,29,0,32,21,12,33,5,39,26,2,8,7,8,20,12,11,0,314,628]
[null,null," 12-15 лет",31,4,23,22,19,14,18,5,10,2,4,6,4,7,9,17,2,15,0,0,{"$f":"SUM(D30:W30)","v":212},424]
[null,null,"16 лет и старше",7,2,11,12,2,3,5,0,7,0,1,0,0,0,0,1,0,8,0,0,59,118]
["Общее количество детей, охваченных услугами в 1 квартале  2021 г","Количество детей, получающих дошкольное образование в семейной форме"," до 1,5 лет",0,0,0,0,0,0,0,0,0,0,0,0,0,0,0,0,0,0,0,0,0,0]
[null,null,"от 1,5 до 3 лет",0,0,0,0,0,0,0,0,0,0,0,0,0,0,0,0,0,0,0,0,0,0]
[null,null,"от 3 до 7 лет",0,0,0,0,0,0,0,0,0,0,0,0,0,0,0,0,0,0,0,0,0,0]
[null,null," 7 лет и старше",0,0,0,0,0,0,0,0,0,0,0,0,0,0,0,0,0,0,0,0,0,0]
[null,"Количество детей, не получающих дошкольное образование"," до 1,5 лет",0,0,0,0,0,0,0,0,0,0,0,0,0,0,0,0,0,0,0,0,0,0]
[null,null,"от 1,5 до 3 лет",0,0,0,0,0,0,0,0,0,0,0,0,0,0,0,0,0,0,0,0,0,0]
[null,null,"от 3 до 7 лет",0,0,0,0,0,0,0,0,0,0,0,0,0,0,0,0,0,0,0,0,0,0]
[null,null," 7 лет и старше",0,0,0,0,0,0,0,0,0,0,0,0,0,0,0,0,0,0,0,0,0,0]
[null,"Количество детей, получающих дошкольное образование в ДОО","до 1,5 лет",0,0,0,0,0,0,0,0,0,0,0,0,0,0,0,0,0,0,0,0,0,0]
[null,null,"от 1,5 до 3 лет",0,0,0,0,0,0,0,0,0,0,0,0,0,0,0,0,0,0,0,0,0,0]
[null,null,"от 3 до 7 лет",0,0,0,0,0,0,0,0,0,0,0,0,0,0,0,0,0,0,79,0,79,158]
[null,null,"7 лет и старше",0,0,0,0,0,0,0,0,0,0,0,0,0,0,0,0,0,0,0,0,0,0]
[null,"Количество детей школьников, получающих образование в семейной форме","7-11 лет",0,0,0,0,0,0,0,1,0,0,0,1,0,0,1,0,0,0,0,0,3,6]
[null,null," 12-15 лет",1,1,0,0,0,0,2,0,0,2,0,0,0,0,0,0,1,1,0,0,8,16]
[null,null,"16 лет и старше",0,1,0,0,0,0,0,0,0,0,0,0,0,0,0,0,0,0,0,0,1,2]
[null,"Количество детей школьников, получающих образование в ОО","7-11 лет",431,590,337,266,111,169,388,359,589,365,387,286,468,303,355,442,332,469,98,0,6745,13490]
[null,null,"12-15 лет",495,469,359,257,37,164,318,345,424,412,366,300,618,411,346,445,351,515,0,262,6894,13788]
[null,null,"16 лет и старше",165,260,64,53,4,45,160,55,160,54,59,59,103,126,51,79,53,85,0,148,1783,3566]
[]
[]
[null,"Начальник ОО",null,null,null,null,null,null,null,null,null,null,"И.М. Сысоева"]
[]
[]
[]
[]
[]
[]
[]
[]
[null,"Старых"]
[null,"269-04-72"]

{"sheet":"НСК_Дзержинский_ДОУ","index":22,"n_rows":61,"n_cols":14,"rows_kept":61,"cut":false,"hidden":false,"merged":[[28,1,30,1],[31,0,48,0],[31,1,34,1],[35,1,38,1],[39,1,42,1],[43,1,45,1],[46,1,48,1],[13,0,30,0],[13,1,16,1],[17,1,20,1],[21,1,24,1],[25,1,27,1],[1,0,12,0],[1,1,3,1],[4,1,6,1],[7,1,9,1],[10,1,12,1]]}
[null,null,null,"№110","№395","№362","№ 439","№493","№281","№430","№381","№105","ИТОГО:","Итого"]
["Общее количество обращений по видам помощи в   1 квартале 2021 г.","методическая помощь","очная ",8,0,0,4,52,5,0,0,0,{"$f":"SUM(D2:L2)","v":69},138]
[null,null,"дистанционная",0,0,0,3,6,0,0,0,0,{"$f":"SUM(D3:L3)","v":9},18]
[null,null,"выездная",0,0,0,0,0,0,0,0,0,0,0]
[null,"психолого-педагогическая помощь","очная",4,0,4,9,8,7,0,0,0,32,64]
[null,null,"дистанционная",0,0,0,5,2,3,0,0,0,10,20]
[null,null,"выездная",0,0,0,0,0,0,0,0,0,0,0]
[null,"диагностическая помощь","очная",15,0,0,0,12,3,0,0,0,30,60]
[null,null,"дистанционная",0,0,0,0,0,0,0,0,0,0,0]
[null,null,"выездная",0,0,0,0,0,0,0,0,0,0,0]
[null,"консультативная помощь","очная",12,1,4,5,36,4,4,1,0,67,134]
[null,null,"дистанционная",0,0,0,1,2,0,0,0,0,3,6]
[null,null,"выездная",0,0,0,0,0,0,0,0,0,0,0]
["Общее количество родителей(законных представителей), обратившихся за помощью  в 1 квартале 2021 г","Количество родителей (з/пр) с детьми, получающими дошкольное образование                 в форме семейного образования"," до 1,5 лет",0,0,0,0,0,0,0,0,0,0,0]
[null,null,"от 1,5 до 3 лет",0,0,0,1,0,0,0,0,0,1,2]
[null,null,"от 3 до 7 лет",0,0,0,0,0,0,0,0,0,0,0]
[null,null,"7 лет и старше",0,0,0,0,0,0,0,0,0,0,0]
[null,"Количество родителей (з/пр) детей,  не получающих дошкольное образование","до 1,5 лет",0,0,0,0,0,0,0,0,0,0,0]
[null,null,"от 1,5 до 3 лет",0,0,0,6,0,3,2,0,0,11,22]
[null,null,"от 3 до 7 лет",0,1,2,5,0,0,2,0,0,10,20]
[null,null,"7 лет и старше",0,0,0,0,0,0,0,0,0,0,0]
[null,"Количество родителей (з/пр),  с детьми, получающими дошкольное образование в ДОО","до 1,5 лет",0,0,0,0,0,0,0,0,0,0,0]
[null,null,"от 1,5 до 3 лет",0,0,0,1,0,4,0,0,0,5,10]
[null,null,"от 3 до 7 лет",15,0,6,0,0,0,0,0,0,21,42]
[null,null,"7 лет и старше",0,0,0,0,0,0,0,0,0,0,0]
[null,"Количество родителей (з/пр),  с детьми школьниками, получающими  образование в форме семейного образования","7-11 лет",0,0,0,0,0,0,0,0,0,0,0]
[null,null,"12-15 лет",0,0,0,0,0,0,0,0,0,0,0]
[null,null,"16 лет и старше",0,0,0,0,0,0,0,0,0,0,0]
[null,"Количество родителей (з/пр), обратившихся  с детьми школьниками, получающими  образование в ОО","7-11 лет",0,0,0,0,0,3,0,0,0,3,6]
[null,null," 12-15 лет",0,0,0,0,0,0,0,0,0,0,0]
[null,null,"16 лет и старше",0,0,0,0,0,0,0,0,0,0,0]
["Общее количество детей, охваченных услугами в 1 квартале  2021 г","Количество детей, получающих дошкольное образование в семейной форме"," до 1,5 лет",0,0,0,1,0,0,0,0,0,1,2]
[null,null,"от 1,5 до 3 лет",0,0,0,0,0,0,0,0,0,0,0]
[null,null,"от 3 до 7 лет",0,0,0,2,0,0,0,0,0,2,4]
[null,null," 7 лет и старше",0,0,0,0,0,0,0,0,0,0,0]
[null,"Количество детей, не получающих дошкольное образование"," до 1,5 лет",0,0,0,0,0,1,0,0,0,1,2]
[null,null,"от 1,5 до 3 лет",0,0,0,0,0,4,0,1,0,5,10]
[null,null,"от 3 до 7 лет",0,1,2,0,0,0,0,0,0,3,6]
[null,null," 7 лет и старше",0,0,0,0,0,0,0,0,0,0,0]
[null,"Количество детей, получающих дошкольное образование в ДОО","до 1,5 лет",0,0,0,0,0,0,0,0,0,0,0]
[null,null,"от 1,5 до 3 лет",0,0,0,33,0,3,0,0,0,36,72]
[null,null,"от 3 до 7 лет",15,0,6,20,0,2,0,0,0,43,86]
[null,null,"7 лет и старше",0,0,0,0,0,0,0,0,0,0,0]
[null,"Количество детей школьников, получающих образование в семейной форме","7-11 лет",0,0,0,0,0,0,0,0,0,0,0]
[null,null," 12-15 лет",0,0,0,0,0,0,0,0,0,0,0]
[null,null,"16 лет и старше",0,0,0,0,0,0,0,0,0,0,0]
[null,"Количество детей школьников, получающих образование в ОО","7-11 лет",0,0,0,0,0,2,0,0,0,2,4]
[null,null,"12-15 лет",0,0,0,0,0,0,0,0,0,0,0]
[null,null,"16 лет и старше",0,0,0,0,0,0,0,0,0,0,0]
[]
[]
[]
[null,"Начальник ОО",null,null,null,null,null,null,null,"И.М. Сысоева"]
[]
[]
[]
[]
[]
[]
[null,"Левченко"]
[null,2275810]

{"sheet":"НСК_Ленинский","index":23,"n_rows":49,"n_cols":16,"rows_kept":49,"cut":false,"hidden":false,"merged":[[28,1,30,1],[31,0,48,0],[31,1,34,1],[35,1,38,1],[39,1,42,1],[43,1,45,1],[46,1,48,1],[13,0,30,0],[13,1,16,1],[17,1,20,1],[21,1,24,1],[25,1,27,1],[1,0,12,0],[1,1,3,1],[4,1,6,1],[7,1,9,1],[10,1,12,1]]}
[null,null,null,"Муниципальное автономное дошкольное образовательное учреждение города Новосибирска \"Детский сад № 81 \"Дошкольная академия\"","муниципальное казенное дошкольное образовательное учреждение города Новосибирска \"Детский сад № 242 \"Елочка\" комбинированного вида\"","муниципальное казенное дошкольное образовательное учреждение города Новосибирска \"Детский сащд № 203 компенсирующего вида \"Радужка\"","Муниципальное казеное дошкольное образовательное учреждение города Новосибирска \"Детский сад № 322 комбинированого вида\"","Муниципальное автономное  дошкольное образовательное учреждение города Новосибирска \"Детский сад № 298 комбинированного вида\"","муниципальное казенное дошкольное образовательное учреждение города Новосибирска \"Детский сад № 238  комбинированного вида\"","Муниципальлное казенное дошкольное образовательное учреждение города Новосибирска \"Детский сад № 311 комписирующего вида\"","муниципальное казенное дошкольное образовательное учреждение  города Новосибирска \"Детский сад №144 комбинированного вида \"Сказкоград\"","Муниципальное казенное дошкольное образовательное учреждение  города Новосибирска \"Детский сад № 323 комбинированного вида\" ","Муниципальное казенноедошкольное образовательное учреждение  города Новосибирска \"Детский сад № 369 кобинированного вида\" ","Муниципальное бюджетное общеобразовательное учреждение города Новосибирска «Средняя общеобразовательная школа № 56»\n\n","муниципальное бюджетное общеобразовательное учреждение города Новосибирска \" Средняя общеобразовательная школа № 160\"","Итого"]
["Общее количество обращений по видам помощи в   1 квартале 2021 г.","методическая помощь","очная ",0,0,0,0,15,0,0,0,9,12,12,19,67]
[null,null,"дистанционная",0,0,0,0,12,0,0,0,0,3,0,0,15]
[null,null,"выездная",0,0,0,0,0,0,0,0,0,0,0,0,0]
[null,"психолого-педагогическая помощь","очная",3,3,5,0,9,3,0,0,0,18,0,0,41]
[null,null,"дистанционная",0,0,0,0,1,0,0,0,0,0,0,0,1]
[null,null,"выездная",0,0,0,0,0,0,0,0,0,0,0,0,0]
[null,"диагностическая помощь","очная",0,0,0,0,16,0,0,62,0,44,0,0,122]
[null,null,"дистанционная",0,0,0,0,0,0,0,0,0,0,0,0,0]
[null,null,"выездная",0,0,0,0,0,0,0,0,0,0,0,0,0]
[null,"консультативная помощь","очная",3,2,5,0,18,3,0,62,9,0,0,0,102]
[null,null,"дистанционная",0,0,0,0,0,0,0,0,0,0,0,0,0]
[null,null,"выездная",0,0,0,0,0,0,0,0,0,0,0,0,0]
["Общее количество родителей(законных представителей), обратившихся за помощью  в 1 квартале 2021 г.","Количество родителей (з/пр) с детьми, получающими дошкольное образование                 в форме семейного образования"," до 1,5 лет",0,0,0,0,0,0,0,0,0,0,0,0,0]
[null,null,"от 1,5 до 3 лет",0,0,0,0,0,0,0,0,0,0,0,0,0]
[null,null,"от 3до 7 лет",0,0,0,0,0,0,0,0,0,0,0,0,0]
[null,null,"7 лет и старше",null,0,0,0,0,0,0,0,0,0,0,0,0]
[null,"Количество родителей (з/пр) детей,  не получающих дошкольное образование","до 1,5 лет",0,0,2,0,0,0,0,0,0,0,0,0,2]
[null,null,"от 1,5 до 3 лет",0,0,0,0,0,0,0,0,0,0,0,0,0]
[null,null,"от 3 до 7 лет",0,0,0,0,0,0,0,0,2,0,0,0,2]
[null,null,"7 лет и старше",0,0,0,0,0,0,0,0,1,0,0,0,1]
[null,"Количество родителей (з/пр),  с детьми, получающими дошкольное образование в ДОО","до 1,5 лет",0,0,0,0,0,0,0,0,0,0,0,0,0]
[null,null,"от 1,5 до 3 лет",1,3,0,0,2,0,0,16,1,20,0,0,43]
[null,null,"от 3 до 7 лет",2,2,3,0,69,3,0,44,5,43,1,0,172]
[null,null,"7 лет и старше",0,0,0,0,0,0,0,2,0,14,0,0,16]
[null,"Количество родителей (з/пр),  с детьми школьниками, получающими  образование в форме семейного образования","7-11 лет",0,0,0,0,0,0,0,0,0,0,1,0,1]
[null,null,"12-15 лет",0,0,0,0,0,0,0,0,0,0,0,0,0]
[null,null,"16 лет и старше",0,0,0,0,0,0,0,0,0,0,1,0,1]
[null,"Количество родителей (з/пр), обратившихся  с детьми школьниками, получающими  образование в ОО","7-11 лет",0,0,0,0,0,0,0,0,0,0,6,3,9]
[null,null," 12-15 лет",0,0,0,0,0,0,0,0,0,0,3,12,15]
[null,null,"16 лет и старше",0,0,0,0,0,0,0,0,0,0,0,4,4]
["Общее количество детей, охваченных услугами в 1 квартале  2021 г.","Количество детей, получающих дошкольное образование в семейной форме"," до 1,5 лет",0,0,0,0,0,0,0,0,0,0,0,0,0]
[null,null,"от 1,5 до 3 лет",0,0,0,0,0,0,0,0,0,0,0,0,0]
[null,null,"от 3 до 7 лет",0,0,0,0,0,0,0,0,0,0,0,0,0]
[null,null," 7 лет и старше",0,0,0,0,0,0,0,0,0,0,0,0,0]
[null,"Количество детей, не получающих дошкольное образование"," до 1,5 лет",1,0,2,0,0,0,0,0,0,0,0,0,3]
[null,null,"от 1,5 до 3 лет",2,0,0,0,0,0,0,0,0,0,0,0,2]
[null,null,"от 3 до 7 лет",0,0,0,0,0,0,0,0,2,0,0,0,2]
[null,null," 7 лет и старше",0,0,0,0,0,0,0,0,1,0,0,0,1]
[null,"Количество детей, получающих дошкольное образование в ДОО","до 1,5 лет",0,0,0,0,0,0,0,0,0,0,0,0,0]
[null,null,"от 1,5 до 3 лет",0,3,0,0,2,0,0,16,1,20,0,0,42]
[null,null,"от 3 до 7 лет",0,2,3,0,69,3,0,44,5,43,1,0,170]
[null,null,"7 лет и старше",0,0,0,0,0,0,0,2,0,14,0,0,16]
[null,"Количество детей школьников, получающих образование в семейной форме","7-11 лет",0,0,0,0,0,0,0,0,0,0,1,0,1]
[null,null," 12-15 лет",0,0,0,0,0,0,0,0,0,0,0,0,0]
[null,null,"16 лет и старше",0,0,0,0,0,0,0,0,0,0,1,0,1]
[null,"Количество детей школьников, получающих образование в ОО","7-11 лет",0,0,0,0,0,0,0,0,0,0,6,3,9]
[null,null,"12-15 лет",0,0,0,0,0,0,0,0,0,0,3,12,15]
[null,null,"16 лет и старше",0,0,0,0,0,0,0,0,0,0,0,4,4]

{"sheet":"НСК_Октябрьский","index":24,"n_rows":49,"n_cols":8,"rows_kept":49,"cut":false,"hidden":false,"merged":[[28,1,30,1],[31,0,48,0],[31,1,34,1],[35,1,38,1],[39,1,42,1],[43,1,45,1],[46,1,48,1],[13,0,30,0],[13,1,16,1],[17,1,20,1],[21,1,24,1],[25,1,27,1],[1,0,12,0],[1,1,3,1],[4,1,6,1],[7,1,9,1],[10,1,12,1]]}
[null,null,null,"МБОУ СОШ №2","МБОУ СОШ №32","МБОУ СОШ №52","МБОУ СОШ № 76","Итого"]
["Общее количество обращений по видам помощи в   1 квартале 2021 г.","методическая помощь","очная ",null,null,null,null,0]
[null,null,"дистанционная",null,null,null,null,0]
[null,null,"выездная",null,null,null,null,0]
[null,"психолого-педагогическая помощь","очная",7,30,12,null,49]
[null,null,"дистанционная",null,82,null,null,82]
[null,null,"выездная",null,4,2,null,6]
[null,"диагностическая помощь","очная",null,null,null,null,0]
[null,null,"дистанционная",null,null,null,null,0]
[null,null,"выездная",null,null,null,null,0]
[null,"консультативная помощь","очная",4,50,13,15,82]
[null,null,"дистанционная",null,75,null,3,78]
[null,null,"выездная",null,null,5,null,5]
["Общее количество родителей(законных представителей), обратившихся за помощью  в 1 квартале 2021 г","Количество родителей (з/пр) с детьми, получающими дошкольное образование                 в форме семейного образования"," до 1,5 лет",null,null,null,null,0]
[null,null,"от 1,5 до 3 лет",null,null,null,null,0]
[null,null,"от 3 до 7 лет",null,null,null,null,0]
[null,null,"7 лет и старше",null,null,null,null,0]
[null,"Количество родителей (з/пр) детей,  не получающих дошкольное образование","до 1,5 лет",null,null,null,null,0]
[null,null,"от 1,5 до 3 лет",null,null,null,null,0]
[null,null,"от 3 до 7 лет",null,null,null,null,0]
[null,null,"7 лет и старше",null,null,null,null,0]
[null,"Количество родителей (з/пр),  с детьми, получающими дошкольное образование в ДОО","до 1,5 лет",null,null,null,null,0]
[null,null,"от 1,5 до 3 лет",null,null,null,null,0]
[null,null,"от 3 до 7 лет",null,null,null,null,0]
[null,null,"7 лет и старше",null,null,null,null,0]
[null,"Количество родителей (з/пр),  с детьми школьниками, получающими  образование в форме семейного образования","7-11 лет",null,1,null,null,1]
[null,null,"12-15 лет",null,null,null,null,0]
[null,null,"16 лет и старше",null,null,null,null,0]
[null,"Количество родителей (з/пр), обратившихся  с детьми школьниками, получающими  образование в ОО","7-11 лет",6,25,18,4,53]
[null,null," 12-15 лет",5,43,12,11,71]
[null,null,"16 лет и старше",0,25,2,null,27]
["Общее количество детей, охваченных услугами в 1 квартале  2021 г","Количество детей, получающих дошкольное образование в семейной форме"," до 1,5 лет",null,null,null,null,0]
[null,null,"от 1,5 до 3 лет",null,null,null,null,0]
[null,null,"от 3 до 7 лет",null,null,null,null,0]
[null,null," 7 лет и старше",null,null,null,null,0]
[null,"Количество детей, не получающих дошкольное образование"," до 1,5 лет",null,null,null,null,0]
[null,null,"от 1,5 до 3 лет",null,null,null,null,0]
[null,null,"от 3 до 7 лет",null,null,null,null,0]
[null,null," 7 лет и старше",null,null,null,null,0]
[null,"Количество детей, получающих дошкольное образование в ДОО","до 1,5 лет",null,null,null,null,0]
[null,null,"от 1,5 до 3 лет",null,null,null,null,0]
[null,null,"от 3 до 7 лет",null,null,null,null,0]
[null,null,"7 лет и старше",null,null,null,null,0]
[null,"Количество детей школьников, получающих образование в семейной форме","7-11 лет",null,null,null,null,0]
[null,null," 12-15 лет",null,1,null,null,1]
[null,null,"16 лет и старше",null,null,null,null,0]
[null,"Количество детей школьников, получающих образование в ОО","7-11 лет",6,25,18,4,53]
[null,null,"12-15 лет",5,43,12,16,76]
[null,null,"16 лет и старше",0,25,2,null,27]

{"sheet":"НСК_Первомайский","index":25,"n_rows":49,"n_cols":7,"rows_kept":49,"cut":false,"hidden":false,"merged":[[28,1,30,1],[31,0,48,0],[31,1,34,1],[35,1,38,1],[39,1,42,1],[43,1,45,1],[46,1,48,1],[13,0,30,0],[13,1,16,1],[17,1,20,1],[21,1,24,1],[25,1,27,1],[1,0,12,0],[1,1,3,1],[4,1,6,1],[7,1,9,1],[10,1,12,1]]}
[null,null,null,"МБОУ СОШ № 147","МКОУ С(К)Ш №148","МАОУ СОШ № 213","Итого"]
["Общее количество обращений по видам помощи в   1 квартале 2021 г.","методическая помощь","очная ",6,13,3,22]
[null,null,"дистанционная",0,0,0,0]
[null,null,"выездная",0,0,0,0]
[null,"психолого-педагогическая помощь","очная",27,73,19,119]
[null,null,"дистанционная",0,0,0,0]
[null,null,"выездная",0,0,0,0]
[null,"диагностическая помощь","очная",0,0,0,0]
[null,null,"дистанционная",0,0,0,0]
[null,null,"выездная",0,0,0,0]
[null,"консультативная помощь","очная",33,63,21,117]
[null,null,"дистанционная",0,0,0,0]
[null,null,"выездная",0,0,0,0]
["Общее количество родителей(законных представителей), обратившихся за помощью  в 1 квартале 2021 г","Количество родителей (з/пр) с детьми, получающими дошкольное образование                 в форме семейного образования"," до 1,5 лет",0,0,0,0]
[null,null,"от 1,5 до 3 лет",0,0,0,0]
[null,null,"от 3 до 7 лет",0,0,0,0]
[null,null,"7 лет и старше",0,0,0,0]
[null,"Количество родителей (з/пр) детей,  не получающих дошкольное образование","до 1,5 лет",0,0,0,0]
[null,null,"от 1,5 до 3 лет",0,0,0,0]
[null,null,"от 3 до 7 лет",0,0,0,0]
[null,null,"7 лет и старше",0,0,0,0]
[null,"Количество родителей (з/пр),  с детьми, получающими дошкольное образование в ДОО","до 1,5 лет",0,0,0,0]
[null,null,"от 1,5 до 3 лет",0,0,0,0]
[null,null,"от 3 до 7 лет",3,0,0,3]
[null,null,"7 лет и старше",0,0,0,0]
[null,"Количество родителей (з/пр),  с детьми школьниками, получающими  образование в форме семейного образования","7-11 лет",1,1,0,2]
[null,null,"12-15 лет",0,1,1,2]
[null,null,"16 лет и старше",0,1,0,1]
[null,"Количество родителей (з/пр), обратившихся  с детьми школьниками, получающими  образование в ОО","7-11 лет",22,54,10,86]
[null,null," 12-15 лет",10,19,8,37]
[null,null,"16 лет и старше",3,3,2,8]
["Общее количество детей, охваченных услугами в 1 квартале  2021 г","Количество детей, получающих дошкольное образование в семейной форме"," до 1,5 лет",0,0,0,0]
[null,null,"от 1,5 до 3 лет",0,0,0,0]
[null,null,"от 3 до 7 лет",0,0,0,0]
[null,null," 7 лет и старше",0,0,0,0]
[null,"Количество детей, не получающих дошкольное образование"," до 1,5 лет",0,0,0,0]
[null,null,"от 1,5 до 3 лет",0,0,0,0]
[null,null,"от 3 до 7 лет",0,0,0,0]
[null,null," 7 лет и старше",0,0,0,0]
[null,"Количество детей, получающих дошкольное образование в ДОО","до 1,5 лет",0,0,0,0]
[null,null,"от 1,5 до 3 лет",0,0,0,0]
[null,null,"от 3 до 7 лет",20,0,0,20]
[null,null,"7 лет и старше",0,0,0,0]
[null,"Количество детей школьников, получающих образование в семейной форме","7-11 лет",2,2,0,4]
[null,null," 12-15 лет",0,1,1,2]
[null,null,"16 лет и старше",0,1,0,1]
[null,"Количество детей школьников, получающих образование в ОО","7-11 лет",27,69,18,114]
[null,null,"12-15 лет",15,28,10,53]
[null,null,"16 лет и старше",3,5,2,10]

{"sheet":"НСК_Советский","index":26,"n_rows":49,"n_cols":7,"rows_kept":49,"cut":false,"hidden":false,"merged":[[28,1,30,1],[31,0,48,0],[31,1,34,1],[35,1,38,1],[39,1,42,1],[43,1,45,1],[46,1,48,1],[13,0,30,0],[13,1,16,1],[17,1,20,1],[21,1,24,1],[25,1,27,1],[1,0,12,0],[1,1,3,1],[4,1,6,1],[7,1,9,1],[10,1,12,1]]}
[null,null,null,"ОО №1","00 №2","ОО №3","Итого"]
["Общее количество обращений по видам помощи в   1 квартале 2021 г.","методическая помощь","очная ",0,0,0,0]
[null,null,"дистанционная",0,0,0,0]
[null,null,"выездная",0,0,0,0]
[null,"психолого-педагогическая помощь","очная",0,0,0,0]
[null,null,"дистанционная",0,0,0,0]
[null,null,"выездная",0,0,0,0]
[null,"диагностическая помощь","очная",0,0,0,0]
[null,null,"дистанционная",0,0,0,0]
[null,null,"выездная",0,0,0,0]
[null,"консультативная помощь","очная",0,0,0,0]
[null,null,"дистанционная",0,0,0,0]
[null,null,"выездная",0,0,0,0]
["Общее количество родителей(законных представителей), обратившихся за помощью  в 1 квартале 2021 г","Количество родителей (з/пр) с детьми, получающими дошкольное образование                 в форме семейного образования"," до 1,5 лет",0,0,0,0]
[null,null,"от 1,5 до 3 лет",0,0,0,0]
[null,null,"от 3 до 7 лет",0,0,0,0]
[null,null,"7 лет и старше",0,0,0,0]
[null,"Количество родителей (з/пр) детей,  не получающих дошкольное образование","до 1,5 лет",0,0,0,0]
[null,null,"от 1,5 до 3 лет",0,0,0,0]
[null,null,"от 3 до 7 лет",0,0,0,0]
[null,null,"7 лет и старше",0,0,0,0]
[null,"Количество родителей (з/пр),  с детьми, получающими дошкольное образование в ДОО","до 1,5 лет",0,0,0,0]
[null,null,"от 1,5 до 3 лет",0,0,0,0]
[null,null,"от 3 до 7 лет",0,0,0,0]
[null,null,"7 лет и старше",0,0,0,0]
[null,"Количество родителей (з/пр),  с детьми школьниками, получающими  образование в форме семейного образования","7-11 лет",0,0,0,0]
[null,null,"12-15 лет",0,0,0,0]
[null,null,"16 лет и старше",0,0,0,0]
[null,"Количество родителей (з/пр), обратившихся  с детьми школьниками, получающими  образование в ОО","7-11 лет",0,0,0,0]
[null,null," 12-15 лет",0,0,0,0]
[null,null,"16 лет и старше",0,0,0,0]
["Общее количество детей, охваченных услугами в 1 квартале  2021 г","Количество детей, получающих дошкольное образование в семейной форме"," до 1,5 лет",0,0,0,0]
[null,null,"от 1,5 до 3 лет",0,0,0,0]
[null,null,"от 3 до 7 лет",0,0,0,0]
[null,null," 7 лет и старше",0,0,0,0]
[null,"Количество детей, не получающих дошкольное образование"," до 1,5 лет",0,0,0,0]
[null,null,"от 1,5 до 3 лет",0,0,0,0]
[null,null,"от 3 до 7 лет",0,0,0,0]
[null,null," 7 лет и старше",0,0,0,0]
[null,"Количество детей, получающих дошкольное образование в ДОО","до 1,5 лет",0,0,0,0]
[null,null,"от 1,5 до 3 лет",0,0,0,0]
[null,null,"от 3 до 7 лет",0,0,0,0]
[null,null,"7 лет и старше",0,0,0,0]
[null,"Количество детей школьников, получающих образование в семейной форме","7-11 лет",0,0,0,0]
[null,null," 12-15 лет",0,0,0,0]
[null,null,"16 лет и старше",0,0,0,0]
[null,"Количество детей школьников, получающих образование в ОО","7-11 лет",0,0,0,0]
[null,null,"12-15 лет",0,0,0,0]
[null,null,"16 лет и старше",0,0,0,0]

{"sheet":"НСК_Центральный","index":27,"n_rows":49,"n_cols":7,"rows_kept":49,"cut":false,"hidden":false,"merged":[[28,1,30,1],[31,0,48,0],[31,1,34,1],[35,1,38,1],[39,1,42,1],[43,1,45,1],[46,1,48,1],[13,0,30,0],[13,1,16,1],[17,1,20,1],[21,1,24,1],[25,1,27,1],[1,0,12,0],[1,1,3,1],[4,1,6,1],[7,1,9,1],[10,1,12,1]]}
[null,null,null,"ОО №1","00 №2","ОО №3","Итого"]
["Общее количество обращений по видам помощи в   1 квартале 2021 г.","методическая помощь","очная ",null,null,null,0]
[null,null,"дистанционная",null,null,null,0]
[null,null,"выездная",null,null,null,0]
[null,"психолого-педагогическая помощь","очная",null,null,null,0]
[null,null,"дистанционная",null,null,null,0]
[null,null,"выездная",null,null,null,0]
[null,"диагностическая помощь","очная",null,null,null,0]
[null,null,"дистанционная",null,null,null,0]
[null,null,"выездная",null,null,null,0]
[null,"консультативная помощь","очная",null,null,null,0]
[null,null,"дистанционная",30,null,null,30]
[null,null,"выездная",null,null,null,0]
["Общее количество родителей(законных представителей), обратившихся за помощью  в 1 квартале 2021 г","Количество родителей (з/пр) с детьми, получающими дошкольное образование                 в форме семейного образования"," до 1,5 лет",null,null,null,0]
[null,null,"от 1,5 до 3 лет",null,null,null,0]
[null,null,"от 4 до 7 лет",0,null,null,0]
[null,null,"7 лет и старше",null,null,null,0]
[null,"Количество родителей (з/пр) детей,  не получающих дошкольное образование","до 1,5 лет",null,null,null,0]
[null,null,"от 1,5 до 3 лет",null,null,null,0]
[null,null,"от 3 до 7 лет",0,null,null,0]
[null,null,"7 лет и старше",null,null,null,0]
[null,"Количество родителей (з/пр),  с детьми, получающими дошкольное образование в ДОО","до 1,5 лет",null,null,null,0]
[null,null,"от 1,5 до 3 лет",null,null,null,0]
[null,null,"от 3 до 7 лет",0,null,null,0]
[null,null,"7 лет и старше",null,null,null,0]
[null,"Количество родителей (з/пр),  с детьми школьниками, получающими  образование в форме семейного образования","7-11 лет",null,null,null,0]
[null,null,"12-15 лет",null,null,null,0]
[null,null,"16 лет и старше",null,null,null,0]
[null,"Количество родителей (з/пр), обратившихся  с детьми школьниками, получающими  образование в ОО","7-11 лет",15,null,null,15]
[null,null," 12-15 лет",9,null,null,9]
[null,null,"16 лет и старше",6,null,null,6]
["Общее количество детей, охваченных услугами в 1 квартале  2021 г","Количество детей, получающих дошкольное образование в семейной форме"," до 1,5 лет",null,null,null,0]
[null,null,"от 1,5 до 3 лет",null,null,null,0]
[null,null,"от 3 до 7 лет",0,null,null,0]
[null,null," 7 лет и старше",null,null,null,0]
[null,"Количество детей, не получающих дошкольное образование"," до 1,5 лет",null,null,null,0]
[null,null,"от 1,5 до 3 лет",null,null,null,0]
[null,null,"от 3 до 7 лет",null,null,null,0]
[null,null," 7 лет и старше",null,null,null,0]
[null,"Количество детей, получающих дошкольное образование в ДОО","до 1,5 лет",null,null,null,0]
[null,null,"от 1,5 до 3 лет",null,null,null,0]
[null,null,"от 3 до 7 лет",null,null,null,0]
[null,null,"7 лет и старше",null,null,null,0]
[null,"Количество детей школьников, получающих образование в семейной форме","7-11 лет",0,null,null,0]
[null,null," 12-15 лет",0,null,null,0]
[null,null,"16 лет и старше",0,null,null,0]
[null,"Количество детей школьников, получающих образование в ОО","7-10 лет",15,null,null,15]
[null,null,"12-15 лет",9,null,null,9]
[null,null,"16 лет и старше",6,null,null,6]

{"sheet":"Новосибирский","index":28,"n_rows":49,"n_cols":63,"rows_kept":49,"cut":false,"hidden":false,"merged":[[28,1,30,1],[31,0,48,0],[31,1,34,1],[35,1,38,1],[39,1,42,1],[43,1,45,1],[46,1,48,1],[13,0,30,0],[13,1,16,1],[17,1,20,1],[21,1,24,1],[25,1,27,1],[1,0,12,0],[1,1,3,1],[4,1,6,1],[7,1,9,1],[10,1,12,1]]}
[null,null,null,"МБОУ Краснообская СОШ № 1","МБОУ КРАСНООБСКАЯ СОШ № 2","МБОУ Ярковская СОШ № 3","МБОУ Алесеевская СОШ № 4","МБОУ Ленинская СОШ № 6","МБОУ Красноглинная СОШ № 7","МБОУ Барышевская СОШ № 9","МБОУ СОШ № 11 Шиловского гарнизона ","МБОУ Дерезовская СОШ № 12","МАОУ Лицей № 13 ","МБОУ Верх-Тулинская СОШ № 14 ","МБОУ Гусинобродская СОШ № 19","МБОУ СОШ № 18. ст. Мочище","МБОУ Раздольненская СОШ № 19","МБОУ Криводановская  СШ № 22","МБОУ Марусинская СОШ № 24","МБОУ Кудряшовская СШ № 25","МБОУ Краснояровская СОШ № 30","МБОУ Кубовинская ОШ № 31","МБОУ Сосновская СОШ № 32","МБОУ ОШ № 39","МБОУ Каменская СОШ № 44","МБОУ Мочищенская СОШ № 45","МБОУ Ленинская школа № 47","МКОУ Красномайская ОШ № 49","МБОУ Приобская СОШ № 53","МБОУ Новолуговская СОШ № 57 ","МБОУ СОШ № 58","МБОУ Толмачевская СОШ № 61","МБОУ Пашинская СОШ № 70","МБОУ Ново-Шиловская СОШ № 82","МБОУ Боровская СОШ № 84","МБОУ Плотниковская СОШ № 111","МКОУ Железнодорожная СОШ № 121","МКОУ Мичуринская СОШ № 123",161,"«Белочка»","«Василёк»","«Дельфин»","«Ёлочка»","«Звездочка»","«Земляничка»","«Золотая рыбка»","«Золотой ключик»","«Капелька»","«Колосок»","\"Кубики\"","\"Лесная сказка\"","«Лучик»","\"Лукоморье\"","«Медвежонок» К","«Медвежонок» П","«Незабудка»","«Радуга»","«Родничок»","«Росток»","«Солнышко»","«Теремок»","«Чебурашка»","Итого"]
["Общее количество обращений по видам помощи в 1 квартале 2021 г.","методическая помощь","очная",0,21,2,0,0,14,0,2,0,5,11,0,0,0,0,2,0,5,0,9,0,3,0,1,1,2,0,0,0,0,0,0,0,0,0,0,4,0,0,0,0,8,0,5,2,0,0,0,0,0,0,0,0,0,4,0,0,4,0,105]
[null,null,"дистанционная",0,0,2,0,0,4,0,3,0,2,4,0,1,0,0,0,0,0,0,0,0,12,0,0,0,0,0,0,0,0,0,0,0,0,0,0,0,0,0,0,0,0,0,0,0,0,0,0,0,0,0,0,0,0,0,0,0,0,1,29]
[null,null,"выездная",0,0,0,0,0,0,0,0,0,0,0,0,0,0,0,0,0,0,0,0,0,0,0,0,0,0,0,0,0,0,0,0,0,0,0,0,0,0,0,0,0,0,0,0,0,0,0,0,0,0,0,0,0,0,0,0,0,0,0,0]
[null,"психолого-педагогическая помощь","очная",0,22,5,0,4,6,4,0,12,67,3,1,0,0,20,0,0,11,0,0,3,5,0,0,0,0,0,5,0,25,9,0,0,0,0,0,8,0,0,6,0,4,0,0,5,12,5,5,0,2,0,0,1,0,8,1,0,21,2,282]
[null,null,"дистанционная",0,0,2,0,0,1,1,0,0,3,0,0,4,0,4,3,0,0,0,0,0,4,0,0,0,0,3,5,0,4,0,0,0,0,0,0,0,0,0,0,0,0,0,0,0,0,0,0,0,0,0,0,0,0,0,0,0,0,0,34]
[null,null,"выездная",0,0,0,0,0,0,0,0,0,0,0,0,0,0,0,0,0,0,0,0,0,0,0,0,0,0,0,3,0,0,0,0,0,0,0,0,0,0,0,0,0,0,20,0,0,0,0,0,0,0,0,0,0,0,0,0,0,0,0,23]
[null,"диагностическая помощь","очная",0,1,1,0,5,3,0,0,0,11,4,0,1,0,34,2,0,2,0,0,0,39,0,0,0,0,0,2,9,8,0,0,0,0,10,0,1,0,0,6,2,2,10,17,1,26,2,0,23,0,6,0,0,0,0,1,0,11,5,245]
[null,null,"дистанционная",0,0,0,0,0,0,0,0,0,0,9,0,0,0,0,0,0,0,0,0,0,68,0,0,0,0,0,0,0,0,0,0,0,0,0,0,0,0,0,0,0,0,0,0,0,0,0,0,0,0,0,0,0,0,0,0,0,0,0,77]
[null,null,"выездная",0,0,0,0,0,0,0,0,0,0,0,0,0,0,0,0,0,0,0,0,0,0,0,0,0,0,0,0,0,0,0,0,0,0,0,0,0,0,0,0,0,0,0,0,0,0,0,0,0,0,0,0,0,0,0,0,0,0,0,0]
[null,"консультативная помощь","очная",99,44,23,0,5,25,24,2,12,65,37,3,8,14,39,14,23,22,1,11,1,39,8,21,3,2,23,7,24,33,14,0,6,12,25,18,13,0,13,9,9,0,30,22,23,61,15,5,29,13,17,16,10,2,11,15,9,36,58,1123]
[null,null,"дистанционная",0,0,3,0,0,5,0,3,0,3,27,0,14,16,20,4,22,28,0,19,0,68,0,1,0,0,35,5,34,4,0,0,0,3,0,2,0,0,0,1,0,0,0,0,0,4,0,0,0,0,0,0,0,0,1,1,0,0,8,331]
[null,null,"выездная",0,0,0,0,0,0,0,0,0,0,0,0,0,0,0,0,0,0,0,1,0,0,0,0,0,0,0,3,0,0,0,0,0,0,1,0,0,0,0,0,0,0,0,0,0,0,0,0,0,0,0,0,0,0,0,0,0,0,0,5]
["Общее количество родителей(законных представителей), обратившихся за помощью в 1 квартале 2021 г","Количество родителей (з/пр) с детьми, получающими дошкольное образование в форме семейного образования","до 1,5 лет",0,0,0,0,0,0,0,0,0,0,0,0,0,0,0,0,0,0,0,0,0,0,0,0,0,0,0,0,0,0,0,0,0,0,0,0,0,0,0,0,0,0,0,0,0,0,0,0,0,0,0,0,0,0,0,0,0,0,0,0]
[null,null,"от 1,5 до 3 лет",0,0,0,0,0,0,0,0,0,0,0,0,0,0,0,0,0,0,0,0,0,0,0,0,0,0,0,0,0,0,0,0,0,0,0,0,0,0,0,0,0,0,0,0,0,0,0,0,0,0,0,0,0,0,0,0,0,0,0,0]
[null,null,"от 4 до 7 лет",0,0,0,0,0,0,0,0,0,0,0,0,0,0,0,0,0,0,0,0,0,0,0,0,0,0,0,0,0,0,0,0,0,0,0,0,0,0,0,0,0,0,0,0,0,0,0,0,0,0,0,0,0,0,0,0,0,0,0,0]
[null,null,"7 лет и старше",0,0,0,0,0,0,0,0,0,0,0,0,0,0,0,0,0,0,0,0,0,0,0,0,0,0,0,0,0,0,0,0,0,0,0,0,0,0,0,0,0,0,0,0,0,0,0,0,0,0,0,0,0,0,0,0,0,0,0,0]
[null,"Количество родителей (з/пр) детей, не получающих дошкольное образование","до 1,5 лет",0,0,0,0,0,0,0,0,0,0,0,0,0,0,0,0,0,0,0,0,0,0,0,0,0,0,0,0,0,0,0,0,0,0,0,0,0,0,0,0,0,0,0,0,0,0,0,0,0,0,0,0,0,0,0,0,0,0,0,0]
[null,null,"от 1,5 до 3 лет",0,0,0,0,0,0,0,0,0,0,0,0,0,0,0,0,0,0,0,0,0,0,0,0,0,0,0,0,0,0,0,0,0,0,0,0,0,0,0,0,0,0,0,0,0,1,0,0,0,0,0,0,0,0,0,0,0,0,0,1]
[null,null,"от 3 до 7 лет",0,0,0,0,0,0,0,0,0,2,0,0,0,0,0,0,0,0,0,0,0,0,0,0,0,0,0,0,5,0,0,0,0,0,0,0,0,0,0,0,0,0,0,0,0,0,0,0,0,0,0,0,0,0,0,0,0,0,0,7]
[null,null,"7 лет и старше",0,0,0,0,0,0,0,0,0,3,0,0,0,0,0,0,0,0,0,0,0,0,0,0,0,0,0,0,0,0,0,0,0,0,0,0,0,0,0,0,0,0,0,0,0,0,0,0,0,0,0,0,0,0,0,0,0,0,0,3]
[null,"Количество родителей (з/пр), с детьми, получающими дошкольное образование в ДОО","до 1,5 лет",0,0,0,0,0,0,0,0,0,0,0,0,0,0,0,0,0,0,0,0,0,0,0,0,0,0,0,0,0,0,0,0,0,0,0,0,0,0,0,0,0,0,0,0,0,0,0,0,0,0,0,0,0,0,0,0,0,0,0,0]
[null,null,"от 1,5 до 3 лет",0,0,0,0,0,0,0,0,0,0,2,0,0,0,0,0,0,0,0,0,0,0,0,0,0,0,0,0,0,0,0,0,0,0,0,0,6,0,0,0,1,0,3,0,3,3,0,0,0,1,0,0,0,1,3,1,0,5,5,34]
[null,null,"от 3 до 7 лет",0,3,0,0,0,1,0,0,0,4,3,0,13,3,0,0,0,0,0,0,0,0,0,10,0,0,8,2,14,0,0,0,0,0,6,0,7,0,12,22,8,14,27,22,20,62,15,5,29,12,17,16,10,1,7,14,9,31,58,485]
[null,null,"7 лет и старше",0,0,0,0,0,0,0,0,0,0,2,0,0,0,0,0,0,0,0,0,0,0,0,0,0,0,0,0,0,0,0,0,0,0,0,0,0,0,1,0,0,0,0,0,0,0,0,0,0,0,0,0,0,0,2,1,0,0,3,9]
[null,"Количество родителей (з/пр), с детьми школьниками, получающими образование в форме семейного образования","7-11 лет",0,0,0,0,4,0,0,0,0,0,0,0,0,0,0,0,0,0,0,0,0,0,0,0,0,0,0,0,0,0,0,0,0,0,0,0,0,0,0,0,0,0,0,0,0,0,0,0,0,0,0,0,0,0,0,0,0,0,0,4]
[null,null,"12-15 лет",0,0,0,0,1,0,0,0,0,1,0,0,0,0,0,0,0,0,0,0,0,0,0,0,0,0,0,0,0,0,0,0,0,0,0,0,0,0,0,0,0,0,0,0,0,0,0,0,0,0,0,0,0,0,0,0,0,0,0,2]
[null,null,"16 лет и старше",0,0,0,0,0,0,0,0,0,0,0,0,0,0,0,0,0,0,0,0,0,0,0,1,0,0,0,0,0,0,0,0,0,0,0,0,0,0,0,0,0,0,0,0,0,0,0,0,0,0,0,0,0,0,0,0,0,0,0,1]
[null,"Количество родителей (з/пр), обратившихся с детьми школьниками, получающими образование в ОО","7-11 лет",94,28,3,0,0,13,14,4,1,52,39,1,5,10,26,21,41,31,1,11,0,70,4,3,2,1,37,3,26,17,4,0,2,8,12,3,0,0,0,0,0,0,0,0,0,0,0,0,0,0,0,0,0,0,0,0,0,0,0,587]
[null,null,"12-15 лет",5,5,9,0,0,10,7,1,9,60,44,1,4,12,21,0,4,12,0,19,4,24,2,6,1,2,9,10,7,8,10,0,4,5,6,15,0,0,0,0,0,0,0,0,0,0,0,0,0,0,0,0,0,0,0,0,0,0,0,336]
[null,null,"16 лет и старше",0,8,2,0,0,1,8,0,2,28,5,2,0,3,8,0,0,7,0,1,0,13,2,2,0,1,4,6,6,8,0,0,0,2,2,0,0,0,0,0,0,0,0,0,0,0,0,0,0,0,0,0,0,0,0,0,0,0,0,121]
["Общее количество детей, охваченных услугами в 1 квартале 2021 г","Количество детей, получающих дошкольное образование в семейной форме","до 1,5 лет",0,0,0,0,0,0,0,0,0,0,0,0,0,0,0,0,0,0,0,0,0,0,0,0,0,0,0,0,0,0,0,0,0,0,0,0,0,0,0,0,0,0,0,0,0,0,0,0,0,0,0,0,0,0,0,0,0,0,0,0]
[null,null,"от 1,5 до 3 лет",0,0,0,0,0,0,0,0,0,0,0,0,0,0,0,0,0,0,0,0,0,0,0,0,0,0,0,0,0,0,0,0,0,0,0,0,0,0,0,0,0,0,0,0,0,0,0,0,0,0,0,0,0,0,0,0,0,0,0,0]
[null,null,"от 3 до 7 лет",0,0,0,0,0,0,0,0,0,0,0,0,0,0,0,0,0,0,0,0,0,0,0,0,0,0,0,0,0,0,0,0,0,0,0,0,0,0,0,0,0,0,0,0,0,0,0,0,0,0,0,0,0,0,0,0,0,0,0,0]
[null,null,"7 лет и старше",0,0,0,0,0,0,0,0,0,0,0,0,0,0,0,0,0,0,0,0,0,0,0,0,0,0,0,0,0,0,0,0,0,0,0,0,0,0,0,0,0,0,0,0,0,0,0,0,0,0,0,0,0,0,0,0,0,0,0,0]
[null,"Количество детей, не получающих дошкольное образование","до 1,5 лет",0,0,0,0,0,0,0,0,0,3,0,0,0,0,0,0,0,0,0,0,0,0,0,0,0,0,0,0,0,0,0,0,0,0,0,0,0,0,0,0,0,0,0,0,0,0,0,0,0,0,0,0,0,0,0,0,0,0,0,3]
[null,null,"от 1,5 до 3 лет",0,0,0,0,0,0,0,0,0,0,0,0,0,0,0,0,0,0,0,0,0,0,0,0,0,0,0,0,0,0,0,0,0,0,0,0,0,0,0,0,0,0,0,0,0,1,0,0,0,0,0,0,0,0,0,0,0,0,0,1]
[null,null,"от 3 до 7 лет",0,0,0,0,0,0,0,0,0,2,0,0,0,0,0,0,0,0,0,0,0,0,0,0,0,0,0,0,5,0,0,0,0,0,0,0,0,0,0,0,0,0,0,0,0,0,0,0,0,0,0,0,0,0,0,0,0,0,0,7]
[null,null,"7 лет и старше",0,0,0,0,0,0,0,0,0,3,0,0,0,0,0,0,0,0,0,0,0,0,0,0,0,0,0,0,0,0,0,0,0,0,0,0,0,0,0,0,0,0,0,0,0,0,0,0,0,0,0,0,0,0,0,0,0,0,0,3]
[null,"Количество детей, получающих дошкольное образование в ДОО","до 1,5 лет",0,0,0,0,0,0,0,0,0,0,0,0,0,0,0,0,0,0,0,0,0,0,0,0,0,0,0,0,0,0,0,0,0,0,0,0,0,0,0,0,0,0,0,0,0,0,0,0,0,0,0,0,0,0,0,0,0,0,0,0]
[null,null,"от 1,5 до 3 лет",0,0,0,0,0,0,0,0,0,0,2,0,0,0,0,0,0,0,0,0,0,0,0,0,0,0,0,0,0,0,0,0,0,0,0,0,6,0,0,0,1,0,3,0,3,2,0,0,0,1,0,0,0,1,3,1,0,5,5,33]
[null,null,"от 3 до 7 лет",0,3,0,0,0,1,0,0,0,4,3,0,13,3,0,0,0,0,0,0,0,0,0,10,0,0,8,2,14,0,0,0,0,0,6,0,7,0,12,22,8,14,27,22,20,62,15,5,29,12,17,16,10,1,7,14,9,31,56,483]
[null,null,"7 лет и старше",0,0,0,0,0,0,0,0,0,0,2,0,0,0,0,0,0,0,0,0,0,0,0,0,0,0,0,0,0,0,0,0,0,0,0,0,0,0,1,0,0,0,0,0,0,0,0,0,0,0,0,0,0,0,2,1,0,0,3,9]
[null,"Количество детей школьников, получающих образование в семейной форме","7-11 лет",0,0,0,0,0,0,0,0,0,0,0,0,0,0,0,0,0,0,0,0,0,0,0,0,0,0,0,0,0,0,0,0,0,0,0,0,0,0,0,0,0,0,0,0,0,0,0,0,0,0,0,0,0,0,0,0,0,0,0,0]
[null,null,"12-15 лет",0,0,0,0,0,0,0,0,0,1,0,0,0,0,0,0,0,0,0,0,0,0,0,0,0,0,0,0,0,0,0,0,0,0,0,0,0,0,0,0,0,0,0,0,0,0,0,0,0,0,0,0,0,0,0,0,0,0,0,1]
[null,null,"16 лет и старше",0,0,0,0,0,0,0,0,0,0,0,0,0,0,0,0,0,0,0,0,0,0,0,1,0,0,0,0,0,0,0,0,0,0,0,0,0,0,0,0,0,0,0,0,0,0,0,0,0,0,0,0,0,0,0,0,0,0,0,1]
[null,"Количество детей школьников, получающих образование в ОО","7-11 лет",94,28,2,0,4,13,14,4,1,54,39,1,5,10,30,21,41,31,1,11,0,70,4,3,2,1,37,3,26,19,4,0,2,8,12,0,0,0,0,0,0,0,0,0,0,0,0,0,0,0,0,0,0,0,0,0,0,0,0,595]
[null,null,"12-15 лет",5,5,12,0,1,10,7,1,9,64,44,1,4,12,21,0,4,12,0,19,7,24,2,6,5,2,9,7,7,10,10,0,4,5,6,11,0,0,0,0,0,0,0,0,0,0,0,0,0,0,0,0,0,0,0,0,0,0,0,346]
[null,null,"16 лет и старше",0,8,2,0,0,1,8,0,2,28,5,2,0,0,8,0,0,7,0,1,0,13,2,2,0,1,4,3,6,8,0,0,0,2,2,0,0,0,0,0,0,0,0,0,0,0,0,0,0,0,0,0,0,0,0,0,0,0,0,115]

{"sheet":"Обь","index":29,"n_rows":49,"n_cols":7,"rows_kept":49,"cut":false,"hidden":false,"merged":[[28,1,30,1],[31,0,48,0],[31,1,34,1],[35,1,38,1],[39,1,42,1],[43,1,45,1],[46,1,48,1],[13,0,30,0],[13,1,16,1],[17,1,20,1],[21,1,24,1],[25,1,27,1],[1,0,12,0],[1,1,3,1],[4,1,6,1],[7,1,9,1],[10,1,12,1]]}
[null,null,null,"Д.сад \"Светлячок\"","Центр \"Вера\"","ОО №3","Итого"]
["Общее количество обращений по видам помощи в   1 квартале 2021 г.","методическая помощь","очная ",2,0,null,2]
[null,null,"дистанционная",null,0,null,0]
[null,null,"выездная",null,0,null,0]
[null,"психолого-педагогическая помощь","очная",2,0,null,2]
[null,null,"дистанционная",null,0,null,0]
[null,null,"выездная",null,0,null,0]
[null,"диагностическая помощь","очная",2,0,null,2]
[null,null,"дистанционная",null,0,null,0]
[null,null,"выездная",null,0,null,0]
[null,"консультативная помощь","очная",2,55,null,57]
[null,null,"дистанционная",null,8,null,8]
[null,null,"выездная",null,0,null,0]
["Общее количество родителей(законных представителей), обратившихся за помощью  в 1 квартале 2021 г","Количество родителей (з/пр) с детьми, получающими дошкольное образование                 в форме семейного образования"," до 1,5 лет",null,0,null,0]
[null,null,"от 1,5 до 3 лет",null,0,null,0]
[null,null,"от 3 до 7 лет",null,0,null,0]
[null,null,"7 лет и старше",null,0,null,0]
[null,"Количество родителей (з/пр) детей,  не получающих дошкольное образование","до 1,5 лет",null,1,null,1]
[null,null,"от 1,5 до 3 лет",null,1,null,1]
[null,null,"от 3 до 7 лет",null,3,null,3]
[null,null,"7 лет и старше",null,0,null,0]
[null,"Количество родителей (з/пр),  с детьми, получающими дошкольное образование в ДОО","до 1,5 лет",null,0,null,0]
[null,null,"от 1,5 до 3 лет",4,7,null,11]
[null,null,"от 3 до 7 лет",2,3,null,5]
[null,null,"7 лет и старше",0,0,null,0]
[null,"Количество родителей (з/пр),  с детьми школьниками, получающими  образование в форме семейного образования","7-11 лет",null,0,null,0]
[null,null,"12-15 лет",null,0,null,0]
[null,null,"16 лет и старше",null,0,null,0]
[null,"Количество родителей (з/пр), обратившихся  с детьми школьниками, получающими  образование в ОО","7-11 лет",null,12,null,12]
[null,null," 12-15 лет",null,4,null,4]
[null,null,"16 лет и старше",null,1,null,1]
["Общее количество детей, охваченных услугами в 1 квартале  2021 г","Количество детей, получающих дошкольное образование в семейной форме"," до 1,5 лет",null,0,null,0]
[null,null,"от 1,5 до 3 лет",null,0,null,0]
[null,null,"от 3 до 7 лет",null,0,null,0]
[null,null," 7 лет и старше",null,0,null,0]
[null,"Количество детей, не получающих дошкольное образование"," до 1,5 лет",null,1,null,1]
[null,null,"от 1,5 до 3 лет",null,0,null,0]
[null,null,"от 3 до 7 лет",null,3,null,3]
[null,null," 7 лет и старше",null,null,null,0]
[null,"Количество детей, получающих дошкольное образование в ДОО","до 1,5 лет",null,null,null,0]
[null,null,"от 1,5 до 3 лет",2,7,null,9]
[null,null,"от 3 до 7 лет",2,3,null,5]
[null,null,"7 лет и старше",0,null,null,0]
[null,"Количество детей школьников, получающих образование в семейной форме","7-11 лет",null,null,null,0]
[null,null," 12-15 лет",null,null,null,0]
[null,null,"16 лет и старше",null,null,null,0]
[null,"Количество детей школьников, получающих образование в ОО","7-11 лет",null,12,null,12]
[null,null,"12-15 лет",null,4,null,4]
[null,null,"16 лет и старше",null,1,null,1]

{"sheet":"Ордынский","index":30,"n_rows":49,"n_cols":41,"rows_kept":49,"cut":false,"hidden":false,"merged":[[28,1,30,1],[31,0,48,0],[31,1,34,1],[35,1,38,1],[39,1,42,1],[43,1,45,1],[46,1,48,1],[13,0,30,0],[13,1,16,1],[17,1,20,1],[21,1,24,1],[25,1,27,1],[1,0,12,0],[1,1,3,1],[4,1,6,1],[7,1,9,1],[10,1,12,1]]}
[null,"Ордынский район",null,"МКОУ - Ордынская СОШ № 3","МКДОУ - Новопичуговский детский сад","МКОУ Устюжанинская СОШ","МКОУ-Новопичуговская СОШ","МКОУ-Усть-Луковская СОШ"," МКОУ - Красноярская СОШ","МКОУ-ОСОШ № 1","МКОУ-Новошарапская СОШ","МКОУ-Петровская СОШ","МКДОУ- Вагайцевский детский сад","МКОУ-Верх-Алеусская СОШ","МКДОУ - Красноярский детский сад","МКДОУ - Новошарапский детский сад ","МКОУ - Ордынская СОШ №2","МКОУ Ордынская санаторная школа","МКОУ - Рогалевская СОШ","МКДОУ - Ордынский детский сад \" Радуга\"","МКДОУ - Ордынский детский сад \"Ручеек\"","МКОУ Нижнекаменская СОШ","МКОУ-Вагайцевская СОШ","МКОУ - Пролетарская СОШ"," МБОУ Верх-Ирменская СОШ","МКОУ - Филипповская СОШ","МКДОУ - Ордынский детский сад \"Росинка\"","МКОУ-Спиринская ООШ","МКОУ-Новокузьминская ООШ","МКОУ - Березовская СОШ","МКОУ- Чернаковская НОШ","МКОУ-Шайдуровская НОШ","МКОУ-Козихинскапя СОШ","МКДОУ-Чернаковский детский сад \"Теремок\"","МКОУ  Верх-Ирменская школа-интернат для детей с ОВЗ","МКОУ - Кирзинская СОШ","МКОУ-Малоирменская ООШ","МКОУ-Верх-Чикская СОШ","МКОУ-Чингисская СОШ","МБОУ ДО \"Дом детского творчества\"","Итого"]
["Общее количество обращений по видам помощи в   1 квартале 2021 г.","методическая помощь","очная ",0,0,0,null,null,null,null,4,null,4,0,0,1,17,0,null,0,0,0,2,3,1,6,null,null,0,0,null,2,1,0,0,6,0,1,1,null,49]
[null,null,"дистанционная",0,0,4,null,null,null,null,null,null,0,0,0,null,0,0,null,0,0,0,null,null,0,null,null,null,0,0,null,2,null,0,0,4,0,3,null,null,13]
[null,null,"выездная",0,0,0,null,null,null,null,null,null,0,0,0,null,3,0,null,0,0,0,2,null,0,null,null,null,0,0,null,null,null,0,0,0,0,0,null,null,5]
[null,"психолого-педагогическая помощь","очная",0,0,0,null,null,null,null,6,3,0,0,0,null,15,11,2,0,0,0,4,7,2,6,3,4,0,0,null,null,null,0,2,13,0,0,2,null,80]
[null,null,"дистанционная",0,0,0,null,null,null,null,null,null,0,0,0,null,2,0,null,0,0,0,null,null,0,null,null,null,0,0,2,null,null,0,5,2,0,1,null,null,12]
[null,null,"выездная",0,0,0,null,null,null,null,null,null,0,0,0,null,0,3,null,0,0,0,null,null,0,null,null,null,0,0,null,null,null,0,0,0,0,1,null,null,4]
[null,"диагностическая помощь","очная",0,0,0,null,null,null,null,5,null,0,0,0,null,0,0,null,0,0,0,1,null,0,null,null,null,0,0,null,null,null,0,0,1,0,1,null,null,8]
[null,null,"дистанционная",0,0,0,null,null,null,null,null,null,0,0,0,null,0,0,null,0,0,0,null,null,0,null,null,null,0,0,null,null,null,0,0,0,0,0,null,null,0]
[null,null,"выездная",0,0,0,null,null,null,null,null,null,0,0,0,null,0,0,null,0,0,0,null,null,0,null,null,null,0,0,null,null,null,0,0,0,0,0,null,null,0]
[null,"консультативная помощь","очная",0,0,3,4,17,null,15,19,3,9,1,0,null,8,1,6,6,3,1,26,3,14,null,11,2,0,19,null,3,2,0,4,2,3,2,3,10,200]
[null,null,"дистанционная",0,11,16,1,null,5,null,null,null,0,4,0,null,0,0,null,null,1,6,null,null,0,null,null,3,0,0,3,0,null,0,6,5,0,0,null,3,64]
[null,null,"выездная",0,0,2,null,null,null,3,null,null,0,0,0,null,0,0,null,null,0,0,null,null,1,null,null,null,0,0,null,null,null,0,0,0,0,0,null,null,6]
["Общее количество родителей(законных представителей), обратившихся за помощью  в 1 квартале 2021 г","Количество родителей (з/пр) с детьми, получающими дошкольное образование                 в форме семейного образования"," до 1,5 лет",null,0,0,null,null,null,null,null,null,0,0,0,null,0,0,null,0,0,0,null,null,0,null,null,null,0,0,null,null,null,null,null,0,0,0,null,null,0]
[null,null,"от 1,5 до 3 лет",null,0,0,null,null,null,null,null,null,0,0,0,null,0,0,null,0,0,0,null,null,0,null,null,null,0,0,null,null,null,null,null,0,0,0,null,null,0]
[null,null,"от 4 до 7 лет",null,0,0,null,null,null,null,null,null,0,0,0,null,0,0,null,0,0,0,null,null,0,null,null,null,0,0,null,null,null,null,null,0,0,0,null,null,0]
[null,null,"7 лет и старше",null,0,0,null,null,null,null,null,null,0,0,0,null,0,0,null,0,0,0,null,null,null,null,null,null,0,0,null,null,null,null,null,0,0,0,null,null,0]
[null,"Количество родителей (з/пр) детей,  не получающих дошкольное образование","до 1,5 лет",null,0,0,null,null,null,null,null,null,0,0,0,null,0,0,null,0,0,0,null,null,0,null,null,null,0,0,null,null,null,null,null,0,0,0,null,null,0]
[null,null,"от 1,5 до 3 лет",null,0,0,null,null,null,null,null,null,0,0,0,null,0,0,null,0,0,0,null,null,0,null,null,null,0,0,null,null,null,null,null,0,0,0,null,null,0]
[null,null,"от 3 до 7 лет",null,0,0,null,3,null,null,null,null,0,0,0,null,0,0,null,0,0,0,null,null,0,null,null,null,0,0,null,null,null,null,null,0,0,0,null,null,3]
[null,null,"7 лет и старше",null,0,0,null,null,null,null,null,null,0,0,0,null,0,0,null,0,0,0,null,null,0,null,null,null,0,0,null,null,null,null,null,0,0,0,null,null,0]
[null,"Количество родителей (з/пр),  с детьми, получающими дошкольное образование в ДОО","до 1,5 лет",null,0,0,null,null,null,null,null,null,0,0,0,null,0,0,null,null,0,0,null,null,0,null,null,null,0,0,null,null,null,null,null,0,0,0,null,null,0]
[null,null,"от 1,5 до 3 лет",null,0,0,null,null,null,null,null,null,0,0,0,null,0,0,null,null,0,0,null,null,0,null,3,null,0,0,null,null,null,0,null,0,0,0,null,null,3]
[null,null,"от 3 до 7 лет",null,11,0,null,12,null,null,2,null,12,1,0,1,0,0,4,3,1,0,null,null,2,null,11,2,0,6,null,1,1,0,null,0,0,0,null,3,73]
[null,null,"7 лет и старше",null,0,0,null,null,null,null,null,null,0,0,0,null,0,0,null,3,0,0,null,null,1,null,null,null,0,0,null,null,null,null,null,0,0,0,null,null,4]
[null,"Количество родителей (з/пр),  с детьми школьниками, получающими  образование в форме семейного образования","7-11 лет",null,0,0,1,null,null,null,null,null,0,0,0,null,0,0,null,null,0,0,null,null,0,null,null,null,0,0,0,null,null,null,null,0,0,0,null,null,1]
[null,null,"12-15 лет",null,0,0,null,null,null,null,null,null,0,0,0,null,0,0,null,null,0,0,2,null,0,null,null,null,0,0,null,null,null,null,null,0,0,0,null,null,2]
[null,null,"16 лет и старше",null,0,0,null,null,1,null,null,null,0,0,0,null,0,0,null,null,0,0,1,null,0,null,null,null,0,0,null,null,null,null,null,0,0,0,null,null,2]
[null,"Количество родителей (з/пр), обратившихся  с детьми школьниками, получающими  образование в ОО","7-11 лет",null,0,9,3,2,4,null,7,2,0,0,0,null,8,5,2,null,0,2,29,6,6,5,null,3,0,5,2,4,1,null,6,25,2,2,2,2,144]
[null,null," 12-15 лет",null,0,8,1,null,null,18,4,4,0,1,0,null,35,9,null,null,0,4,1,7,8,7,null,1,0,8,null,null,null,null,6,7,0,3,2,1,135]
[null,null,"16 лет и старше",null,0,3,null,null,null,null,6,null,0,0,0,null,2,1,null,null,0,1,2,null,0,null,null,null,0,0,null,null,1,null,5,0,0,2,null,null,23]
["Общее количество детей, охваченных услугами в 1 квартале  2021 г","Количество детей, получающих дошкольное образование в семейной форме"," до 1,5 лет",null,0,0,null,null,null,null,null,null,0,0,0,null,0,0,null,0,0,0,null,null,0,null,null,null,0,0,null,null,null,null,null,0,0,0,null,null,0]
[null,null,"от 1,5 до 3 лет",null,0,0,null,null,null,null,null,null,0,0,0,null,0,0,null,0,0,0,null,null,0,null,null,null,0,0,null,null,null,null,null,0,0,0,null,null,0]
[null,null,"от 3 до 7 лет",null,0,0,null,null,null,null,null,null,0,0,0,null,0,0,null,0,0,0,null,null,0,null,null,null,0,0,null,null,null,null,null,0,0,0,null,null,0]
[null,null," 7 лет и старше",null,0,0,null,null,null,null,null,null,0,0,0,null,0,0,null,0,0,0,null,null,0,null,null,null,0,0,null,null,null,null,null,0,0,0,null,null,0]
[null,"Количество детей, не получающих дошкольное образование"," до 1,5 лет",null,0,0,null,null,null,null,null,null,0,0,0,null,0,0,null,0,0,0,null,null,0,null,null,null,0,0,null,null,null,null,null,0,0,0,null,null,0]
[null,null,"от 1,5 до 3 лет",null,0,0,null,null,null,null,null,null,0,0,0,null,0,0,null,0,0,0,null,null,0,null,null,null,0,0,null,null,null,null,null,0,0,0,null,null,0]
[null,null,"от 3 до 7 лет",null,0,0,null,3,null,null,null,null,0,0,0,null,0,0,null,0,0,0,null,null,0,null,null,null,0,0,null,null,null,null,null,0,0,0,null,null,3]
[null,null," 7 лет и старше",null,0,0,null,null,null,null,null,null,0,0,0,null,0,0,null,null,0,0,null,null,0,null,null,null,0,0,null,null,null,null,null,0,0,0,null,null,0]
[null,"Количество детей, получающих дошкольное образование в ДОО","до 1,5 лет",null,0,0,null,null,null,null,null,null,0,0,0,null,0,0,null,0,0,0,null,null,0,null,null,null,0,0,null,null,null,null,null,0,0,0,null,null,0]
[null,null,"от 1,5 до 3 лет",null,0,0,null,null,null,null,null,null,0,0,0,null,0,0,null,0,0,0,null,null,0,null,3,null,0,0,null,null,null,0,null,0,0,0,null,null,3]
[null,null,"от 3 до 7 лет",null,11,0,null,12,null,null,null,null,13,1,0,1,0,0,4,3,1,0,null,null,2,null,11,2,0,6,null,1,1,0,null,0,0,0,null,3,72]
[null,null,"7 лет и старше",null,0,0,null,null,null,null,null,null,0,0,0,null,0,0,null,3,0,0,null,null,1,null,null,null,0,0,null,null,null,null,null,0,0,0,null,null,4]
[null,"Количество детей школьников, получающих образование в семейной форме","7-11 лет",0,0,0,1,null,null,null,null,null,0,0,0,null,0,0,null,null,0,0,null,null,0,null,null,null,0,0,null,null,null,null,null,0,0,0,null,null,1]
[null,null," 12-15 лет",0,0,0,1,null,null,null,null,null,0,0,0,null,0,0,null,null,0,0,2,null,0,null,null,null,0,0,null,null,null,null,null,0,0,0,null,null,3]
[null,null,"16 лет и старше",0,0,0,null,null,1,null,null,null,0,0,0,null,0,0,null,null,0,0,1,null,0,null,null,null,0,0,null,null,null,null,null,0,0,0,null,null,2]
[null,"Количество детей школьников, получающих образование в ОО","7-11 лет",0,0,9,3,2,4,1,11,2,0,0,0,null,9,5,2,null,0,2,29,6,10,5,null,3,0,5,3,4,1,null,6,26,2,3,3,2,158]
[null,null,"12-15 лет",0,0,14,1,null,null,19,7,4,0,1,0,null,37,25,null,null,0,4,1,8,4,7,null,1,0,8,null,null,null,null,10,7,0,2,2,1,163]
[null,null,"16 лет и старше",0,0,3,null,null,null,null,6,null,0,0,0,null,2,2,null,null,0,1,2,null,0,null,null,null,0,0,null,null,1,null,5,0,0,4,null,null,26]

{"sheet":"Северный","index":31,"n_rows":49,"n_cols":5,"rows_kept":49,"cut":false,"hidden":false,"merged":[[28,1,30,1],[31,0,48,0],[31,1,34,1],[35,1,38,1],[39,1,42,1],[43,1,45,1],[46,1,48,1],[13,0,30,0],[13,1,16,1],[17,1,20,1],[21,1,24,1],[25,1,27,1],[1,0,12,0],[1,1,3,1],[4,1,6,1],[7,1,9,1],[10,1,12,1]]}
[null,null,null,"МКДОУ детский сад \"Сказка\"","Итого"]
["Общее количество обращений по видам помощи в   1 квартале 2021 г.","методическая помощь","очная ",0,0]
[null,null,"дистанционная",0,0]
[null,null,"выездная",0,0]
[null,"психолого-педагогическая помощь","очная",0,0]
[null,null,"дистанционная",0,0]
[null,null,"выездная",0,0]
[null,"диагностическая помощь","очная",0,0]
[null,null,"дистанционная",0,0]
[null,null,"выездная",0,0]
[null,"консультативная помощь","очная",31,31]
[null,null,"дистанционная",9,9]
[null,null,"выездная",0,0]
["Общее количество родителей(законных представителей), обратившихся за помощью  в 1 квартале 2021 г","Количество родителей (з/пр) с детьми, получающими дошкольное образование                 в форме семейного образования"," до 1,5 лет",0,0]
[null,null,"от 1,5 до 3 лет",0,0]
[null,null,"от 3 до 7 лет",0,0]
[null,null,"7 лет и старше",0,0]
[null,"Количество родителей (з/пр) детей,  не получающих дошкольное образование","до 1,5 лет",0,0]
[null,null,"от 1,5 до 3 лет",0,0]
[null,null,"от 3 до 7 лет",1,1]
[null,null,"7 лет и старше",0,0]
[null,"Количество родителей (з/пр),  с детьми, получающими дошкольное образование в ДОО","до 1,5 лет",0,0]
[null,null,"от 1,5 до 3 лет",1,1]
[null,null,"от 3 до 7 лет",4,4]
[null,null,"7 лет и старше",0,0]
[null,"Количество родителей (з/пр),  с детьми школьниками, получающими  образование в форме семейного образования","7-11 лет",0,0]
[null,null,"12-15 лет",0,0]
[null,null,"16 лет и старше",1,1]
[null,"Количество родителей (з/пр), обратившихся  с детьми школьниками, получающими  образование в ОО","7-11 лет",10,10]
[null,null," 12-15 лет",4,4]
[null,null,"16 лет и старше",3,3]
["Общее количество детей, охваченных услугами в 1 квартале  2021 г","Количество детей, получающих дошкольное образование в семейной форме"," до 1,5 лет",0,0]
[null,null,"от 1,5 до 3 лет",0,0]
[null,null,"от 3 до 7 лет",0,0]
[null,null," 7 лет и старше",0,0]
[null,"Количество детей, не получающих дошкольное образование"," до 1,5 лет",0,0]
[null,null,"от 1,5 до 3 лет",0,0]
[null,null,"от 3 до 7 лет",1,1]
[null,null," 7 лет и старше",0,0]
[null,"Количество детей, получающих дошкольное образование в ДОО","до 1,5 лет",0,0]
[null,null,"от 1,5 до 3 лет",1,1]
[null,null,"от 3 до 7 лет",4,4]
[null,null,"7 лет и старше",0,0]
[null,"Количество детей школьников, получающих образование в семейной форме","7-11 лет",0,0]
[null,null," 12-15 лет",0,0]
[null,null,"16 лет и старше",1,1]
[null,"Количество детей школьников, получающих образование в ОО","7-11 лет",10,10]
[null,null,"12-15 лет",4,4]
[null,null,"16 лет и старше",3,3]

{"sheet":"Сузунский","index":32,"n_rows":49,"n_cols":34,"rows_kept":49,"cut":false,"hidden":false,"merged":[[28,1,30,1],[31,0,48,0],[31,1,34,1],[35,1,38,1],[39,1,42,1],[43,1,45,1],[46,1,48,1],[13,0,30,0],[13,1,16,1],[17,1,20,1],[21,1,24,1],[25,1,27,1],[1,0,12,0],[1,1,3,1],[4,1,6,1],[7,1,9,1],[10,1,12,1]]}
[null,null,null,"МКОУ \"Битковская СОШ\"","МБОУ \"Болтовская СОШ\"","МБОУ \"Бобровская СОШ\"","МКОУ \"Верх-Сузунская СОШ\"","МКОУ \"Заковряжинская СОШ\"","МКОУ \"Каргаполовская СОШ\"","МБОУ \"Ключиковская СОШ\"","МКОУ \"Малышевская СОШ\"","МКОУ \"Маюровская СОШ\"","МКОУ \"Меретская СОШ\"","МБОУ \"Мышланская СОШ\"","МКОУ \"Шайдуровская СОШ имени Героя Советского Союза Г.И.Выглазова\"","МКОУ \"Шипуновская СОШ имени В.С.Гаврилова\"","МКОУ \"Шарчинская СОШ\"","МКОУ \"Холодновская ООШ\"","МБОУ \"Сузунская СОШ № 1\"","МБОУ \"Сузунская СОШ № 2","МКОУ \"Сузунская СОШ № 301\"","МКОУ \"Сузунская ОШ-И\"","МКДОУ \"Сузунский детский сад № 1\"","МКДОУ \"Сузунский детский сад № 2\"","МКДОУ \"Сузунский детский сад № 3\"","МКДОУ \"Сузунский детский сад № 4\"","МКДОУ Сузунский детский сад № 5\"","МКДОУ \"Бобровский детский сад\"","МКДОУ \"Болтовский детский сад\"","МКДОУ \"Заковряжинский детский сад\"","МКДОУ \"Ключиковский детский сад\"","МКДОУ \"Шайдуровский детский сад\"","МКДОУ \"Шипуновский детский сад\"","Итого"]
["Общее количество обращений по видам помощи в   1 квартале 2021 г.","методическая помощь","очная ",null,1,5,0,32,0,2,0,0,0,5,4,0,0,0,0,10,2,6,null,11,4,3,null,null,null,0,2,null,0,87]
[null,null,"дистанционная",null,null,0,0,null,0,null,0,0,0,0,null,0,0,0,0,20,null,0,null,null,null,null,null,null,null,0,null,null,0,20]
[null,null,"выездная",null,null,15,0,null,0,null,0,0,0,0,null,0,0,0,0,null,null,0,null,null,null,null,null,null,null,0,null,null,0,15]
[null,"психолого-педагогическая помощь","очная",10,null,14,0,null,0,3,0,0,0,0,4,0,0,0,65,117,3,35,null,null,null,null,null,null,1,0,2,null,0,254]
[null,null,"дистанционная",null,2,0,0,null,0,null,0,0,0,0,null,0,0,0,3,9,null,0,null,null,null,null,null,null,null,0,null,null,0,14]
[null,null,"выездная",null,null,8,0,null,0,null,0,0,0,0,null,0,0,0,0,null,null,0,null,null,null,null,null,null,null,0,null,null,0,8]
[null,"диагностическая помощь","очная",3,1,8,0,null,0,null,0,0,0,0,5,0,0,0,11,20,4,1,null,null,null,null,null,null,null,0,1,null,0,54]
[null,null,"дистанционная",null,null,0,0,null,0,null,0,0,0,0,null,0,0,0,2,null,null,0,null,null,null,null,null,null,null,0,null,null,0,2]
[null,null,"выездная",null,null,8,0,null,0,null,0,0,0,0,null,0,0,0,0,4,null,0,null,null,null,null,null,null,null,0,null,null,0,12]
[null,"консультативная помощь","очная",4,2,10,0,null,0,null,0,0,0,0,1,0,0,0,18,17,4,123,7,28,15,5,7,9,2,0,4,2,0,258]
[null,null,"дистанционная",null,3,0,0,null,0,null,0,0,0,0,null,0,0,0,26,35,null,9,null,null,null,null,null,null,null,0,null,null,0,73]
[null,null,"выездная",null,null,null,0,null,0,null,0,0,0,0,null,0,0,0,2,null,null,7,null,null,null,null,null,null,null,0,null,null,0,9]
["Общее количество родителей(законных представителей), обратившихся за помощью  в 1 квартале 2021 г","Количество родителей (з/пр) с детьми, получающими дошкольное образование                 в форме семейного образования"," до 1,5 лет",null,null,null,null,null,null,null,null,null,null,null,null,null,null,null,null,null,null,null,null,null,null,null,null,null,null,null,null,null,null,0]
[null,null,"от 1,5 до 3 лет",null,null,null,null,null,null,null,null,null,null,null,null,null,null,null,null,null,null,null,null,null,null,null,null,null,null,null,null,null,null,0]
[null,null,"от 4 до 7 лет",null,null,null,null,null,null,null,null,null,null,null,null,null,null,null,null,null,null,null,null,null,null,null,null,null,null,null,null,null,null,0]
[null,null,"7 лет и старше",null,null,null,null,null,null,null,null,null,null,null,null,null,null,null,null,null,null,null,null,null,null,null,null,null,null,null,null,null,null,0]
[null,"Количество родителей (з/пр) детей,  не получающих дошкольное образование","до 1,5 лет",null,null,null,null,null,null,null,null,null,null,null,null,null,null,null,null,null,null,null,null,null,null,null,null,null,null,null,null,null,null,0]
[null,null,"от 1,5 до 3 лет",null,null,null,null,null,null,null,null,null,null,null,null,null,null,null,null,null,null,null,null,null,null,null,null,null,null,null,null,null,null,0]
[null,null,"от 3 до 7 лет",null,1,null,null,null,null,null,null,null,null,null,null,null,null,null,null,null,null,null,null,null,null,null,null,null,null,null,null,1,null,2]
[null,null,"7 лет и старше",null,null,null,null,null,null,null,null,null,null,null,null,null,null,null,null,null,null,null,null,null,null,null,null,null,null,null,null,null,null,0]
[null,"Количество родителей (з/пр),  с детьми, получающими дошкольное образование в ДОО","до 1,5 лет",null,null,null,null,null,null,null,null,null,null,null,null,null,null,null,null,null,null,null,null,null,null,null,null,null,null,null,null,null,null,0]
[null,null,"от 1,5 до 3 лет",null,null,null,null,null,null,null,null,null,null,null,null,null,null,null,null,null,null,null,2,9,1,4,2,3,1,null,1,null,null,23]
[null,null,"от 3 до 7 лет",null,null,null,null,null,null,null,null,null,null,2,null,null,null,null,null,null,null,null,5,22,9,4,5,6,2,null,7,null,null,62]
[null,null,"7 лет и старше",null,null,1,null,null,null,null,null,null,null,1,null,null,null,null,null,null,null,null,null,8,null,null,null,null,null,null,null,null,null,10]
[null,"Количество родителей (з/пр),  с детьми школьниками, получающими  образование в форме семейного образования","7-11 лет",null,null,0,null,null,null,null,null,null,null,null,null,null,null,null,null,null,null,null,null,null,null,null,null,null,null,null,null,null,null,0]
[null,null,"12-15 лет",null,null,0,null,null,null,null,null,null,null,null,null,null,null,null,null,null,null,null,null,null,null,null,null,null,null,null,null,null,null,0]
[null,null,"16 лет и старше",null,null,0,null,null,null,null,null,null,null,null,null,null,null,null,null,null,null,null,null,null,null,null,null,null,null,null,null,null,null,0]
[null,"Количество родителей (з/пр), обратившихся  с детьми школьниками, получающими  образование в ОО","7-11 лет",6,2,9,null,18,null,3,null,null,null,1,6,null,null,null,26,42,1,27,null,null,null,null,null,null,null,null,null,null,null,141]
[null,null," 12-15 лет",3,3,11,null,4,null,1,null,null,null,null,5,null,null,null,31,23,3,13,null,null,null,null,null,null,null,null,null,null,null,97]
[null,null,"16 лет и старше",2,2,2,null,null,null,null,null,null,null,1,2,null,null,null,17,9,1,5,null,null,null,null,null,null,null,null,null,null,null,41]
["Общее количество детей, охваченных услугами в 1 квартале  2021 г","Количество детей, получающих дошкольное образование в семейной форме"," до 1,5 лет",null,null,null,null,null,null,null,null,null,null,null,null,null,null,null,null,null,null,null,null,null,null,null,null,null,null,null,null,null,null,0]
[null,null,"от 1,5 до 3 лет",null,null,null,null,null,null,null,null,null,null,null,null,null,null,null,null,null,null,null,null,null,null,null,null,null,null,null,null,null,null,0]
[null,null,"от 3 до 7 лет",null,null,null,null,null,null,null,null,null,null,null,null,null,null,null,null,null,null,null,null,null,null,null,null,null,null,null,null,null,null,0]
[null,null," 7 лет и старше",null,null,null,null,null,null,null,null,null,null,null,null,null,null,null,null,null,null,null,null,null,null,null,null,null,null,null,null,null,null,0]
[null,"Количество детей, не получающих дошкольное образование"," до 1,5 лет",null,null,null,null,null,null,null,null,null,null,null,null,null,null,null,null,null,null,null,null,null,null,null,null,null,null,null,null,null,null,0]
[null,null,"от 1,5 до 3 лет",null,null,null,null,null,null,null,null,null,null,null,null,null,null,null,null,null,null,null,null,null,null,null,null,null,null,null,null,null,null,0]
[null,null,"от 3 до 7 лет",null,1,null,null,null,null,null,null,null,null,null,null,null,null,null,null,null,null,null,null,null,null,null,null,null,null,null,null,null,null,1]
[null,null," 7 лет и старше",null,null,null,null,null,null,null,null,null,null,null,null,null,null,null,null,null,null,null,null,null,null,null,null,null,null,null,null,null,null,0]
[null,"Количество детей, получающих дошкольное образование в ДОО","до 1,5 лет",null,null,null,null,null,null,null,null,null,null,null,null,null,null,null,null,null,null,null,null,null,null,null,null,null,null,null,null,null,null,0]
[null,null,"от 1,5 до 3 лет",null,null,null,null,null,null,null,null,null,null,null,null,null,null,null,null,null,null,null,2,9,2,4,2,3,1,0,1,0,0,24]
[null,null,"от 3 до 7 лет",null,null,null,null,null,null,null,null,null,null,2,null,null,null,null,null,null,null,null,5,22,13,8,5,8,2,0,7,1,0,73]
[null,null,"7 лет и старше",null,null,1,null,null,null,null,null,null,null,1,null,null,null,null,null,null,null,null,null,8,null,null,null,null,null,null,null,null,null,10]
[null,"Количество детей школьников, получающих образование в семейной форме","7-11 лет",null,null,0,null,null,null,null,null,null,null,null,null,null,null,null,null,null,null,null,null,null,null,null,null,null,null,null,null,null,null,0]
[null,null," 12-15 лет",null,null,0,null,null,null,null,null,null,null,null,null,null,null,null,null,null,null,null,null,null,null,null,null,null,null,null,null,null,null,0]
[null,null,"16 лет и старше",null,null,0,null,null,null,null,null,null,null,null,null,null,null,null,null,null,null,null,null,null,null,null,null,null,null,null,null,null,null,0]
[null,"Количество детей школьников, получающих образование в ОО","7-10 лет",7,3,13,0,20,0,3,0,0,0,1,6,null,null,0,29,78,2,32,null,null,null,null,null,null,null,null,null,null,null,194]
[null,null,"12-15 лет",4,5,15,0,4,0,1,0,0,0,1,6,null,null,0,38,27,4,13,null,null,null,null,null,null,null,null,null,null,null,118]
[null,null,"16 лет и старше",2,2,2,0,0,0,0,0,0,0,1,2,null,null,0,17,19,1,5,null,null,null,null,null,null,null,null,null,null,null,51]

{"sheet":"Татарский","index":33,"n_rows":49,"n_cols":7,"rows_kept":49,"cut":false,"hidden":false,"merged":[[28,1,30,1],[31,0,48,0],[31,1,34,1],[35,1,38,1],[39,1,42,1],[43,1,45,1],[46,1,48,1],[13,0,30,0],[13,1,16,1],[17,1,20,1],[21,1,24,1],[25,1,27,1],[1,0,12,0],[1,1,3,1],[4,1,6,1],[7,1,9,1],[10,1,12,1]]}
[null,null,null,"ОО №1","00 №2","ОО №3","Итого"]
["Общее количество обращений по видам помощи в   1 квартале 2021 г.","методическая помощь","очная ",0,0,0,0]
[null,null,"дистанционная",0,0,0,0]
[null,null,"выездная",0,0,0,0]
[null,"психолого-педагогическая помощь","очная",0,0,0,0]
[null,null,"дистанционная",0,0,0,0]
[null,null,"выездная",0,0,0,0]
[null,"диагностическая помощь","очная",0,0,0,0]
[null,null,"дистанционная",0,0,0,0]
[null,null,"выездная",0,0,0,0]
[null,"консультативная помощь","очная",0,0,0,0]
[null,null,"дистанционная",0,0,0,0]
[null,null,"выездная",0,0,0,0]
["Общее количество родителей(законных представителей), обратившихся за помощью  в 1 квартале 2021 г","Количество родителей (з/пр) с детьми, получающими дошкольное образование                 в форме семейного образования"," до 1,5 лет",0,0,0,0]
[null,null,"от 1,5 до 3 лет",0,0,0,0]
[null,null,"от 3 до 7 лет",0,0,0,0]
[null,null,"7 лет и старше",0,0,0,0]
[null,"Количество родителей (з/пр) детей,  не получающих дошкольное образование","до 1,5 лет",0,0,0,0]
[null,null,"от 1,5 до 3 лет",0,0,0,0]
[null,null,"от 3 до 7 лет",0,0,0,0]
[null,null,"7 лет и старше",0,0,0,0]
[null,"Количество родителей (з/пр),  с детьми, получающими дошкольное образование в ДОО","до 1,5 лет",0,0,0,0]
[null,null,"от 1,5 до 3 лет",0,0,0,0]
[null,null,"от 3 до 7 лет",0,0,0,0]
[null,null,"7 лет и старше",0,0,0,0]
[null,"Количество родителей (з/пр),  с детьми школьниками, получающими  образование в форме семейного образования","7-11 лет",0,0,0,0]
[null,null,"12-15 лет",0,0,0,0]
[null,null,"16 лет и старше",0,0,0,0]
[null,"Количество родителей (з/пр), обратившихся  с детьми школьниками, получающими  образование в ОО","7-11 лет",0,0,0,0]
[null,null," 12-15 лет",0,0,0,0]
[null,null,"16 лет и старше",0,0,0,0]
["Общее количество детей, охваченных услугами в 1 квартале  2021 г","Количество детей, получающих дошкольное образование в семейной форме"," до 1,5 лет",0,0,0,0]
[null,null,"от 1,5 до 3 лет",0,0,0,0]
[null,null,"от 3 до 7 лет",0,0,0,0]
[null,null," 7 лет и старше",0,0,0,0]
[null,"Количество детей, не получающих дошкольное образование"," до 1,5 лет",0,0,0,0]
[null,null,"от 1,5 до 3 лет",0,0,0,0]
[null,null,"от 3 до 7 лет",0,0,0,0]
[null,null," 7 лет и старше",0,0,0,0]
[null,"Количество детей, получающих дошкольное образование в ДОО","до 1,5 лет",0,0,0,0]
[null,null,"от 1,5 до 3 лет",0,0,0,0]
[null,null,"от 3 до 7 лет",0,0,0,0]
[null,null,"7 лет и старше",0,0,0,0]
[null,"Количество детей школьников, получающих образование в семейной форме","7-11 лет",0,0,0,0]
[null,null," 12-15 лет",0,0,0,0]
[null,null,"16 лет и старше",0,0,0,0]
[null,"Количество детей школьников, получающих образование в ОО","7-11 лет",0,0,0,0]
[null,null,"12-15 лет",0,0,0,0]
[null,null,"16 лет и старше",0,0,0,0]

{"sheet":"Тогучинский","index":34,"n_rows":49,"n_cols":6,"rows_kept":49,"cut":false,"hidden":false,"merged":[[28,1,30,1],[31,0,48,0],[31,1,34,1],[35,1,38,1],[39,1,42,1],[43,1,45,1],[46,1,48,1],[13,0,30,0],[13,1,16,1],[17,1,20,1],[21,1,24,1],[25,1,27,1],[1,0,12,0],[1,1,3,1],[4,1,6,1],[7,1,9,1],[10,1,12,1]]}
[null,null,null,"МКДОУ Тогучинского района \"Тогучинский детский сад №1\"","МКДОУ Тогучинского района \"Горновский детский сад №1\"","Итого"]
["Общее количество обращений по видам помощи в   1 квартале 2021 г.","методическая помощь","очная ",0,0,0]
[null,null,"дистанционная",0,0,0]
[null,null,"выездная",0,0,0]
[null,"психолого-педагогическая помощь","очная",0,0,0]
[null,null,"дистанционная",0,0,0]
[null,null,"выездная",0,0,0]
[null,"диагностическая помощь","очная",0,0,0]
[null,null,"дистанционная",0,0,0]
[null,null,"выездная",0,0,0]
[null,"консультативная помощь","очная",24,0,24]
[null,null,"дистанционная",0,0,0]
[null,null,"выездная",0,0,0]
["Общее количество родителей(законных представителей), обратившихся за помощью  в 1 квартале 2021 г","Количество родителей (з/пр) с детьми, получающими дошкольное образование                 в форме семейного образования"," до 1,5 лет",0,0,0]
[null,null,"от 1,5 до 3 лет",0,0,0]
[null,null,"от 4 до 7 лет",0,null,0]
[null,null,"7 лет и старше",0,0,0]
[null,"Количество родителей (з/пр) детей,  не получающих дошкольное образование","до 1,5 лет",0,0,0]
[null,null,"от 1,5 до 3 лет",0,0,0]
[null,null,"от 3 до 7 лет",4,0,4]
[null,null,"7 лет и старше",0,0,0]
[null,"Количество родителей (з/пр),  с детьми, получающими дошкольное образование в ДОО","до 1,5 лет",0,0,0]
[null,null,"от 1,5 до 3 лет",0,0,0]
[null,null,"от 3 до 7 лет",20,0,20]
[null,null,"7 лет и старше",0,0,0]
[null,"Количество родителей (з/пр),  с детьми школьниками, получающими  образование в форме семейного образования","7-11 лет",0,0,0]
[null,null,"12-15 лет",null,0,0]
[null,null,"16 лет и старше",0,0,0]
[null,"Количество родителей (з/пр), обратившихся  с детьми школьниками, получающими  образование в ОО","7-11 лет",0,0,0]
[null,null," 12-15 лет",0,0,0]
[null,null,"16 лет и старше",0,0,0]
["Общее количество детей, охваченных услугами в 1 квартале  2021 г","Количество детей, получающих дошкольное образование в семейной форме"," до 1,5 лет",0,0,0]
[null,null,"от 1,5 до 3 лет",0,0,0]
[null,null,"от 3 до 7 лет",0,0,0]
[null,null," 7 лет и старше",0,0,0]
[null,"Количество детей, не получающих дошкольное образование"," до 1,5 лет",0,0,0]
[null,null,"от 1,5 до 3 лет",0,0,0]
[null,null,"от 3 до 7 лет",4,0,4]
[null,null," 7 лет и старше",0,0,0]
[null,"Количество детей, получающих дошкольное образование в ДОО","до 1,5 лет",0,0,0]
[null,null,"от 1,5 до 3 лет",0,0,0]
[null,null,"от 3 до 7 лет",20,0,20]
[null,null,"7 лет и старше",0,0,0]
[null,"Количество детей школьников, получающих образование в семейной форме","7-11 лет",0,0,0]
[null,null," 12-15 лет",0,0,0]
[null,null,"16 лет и старше",0,0,0]
[null,"Количество детей школьников, получающих образование в ОО","7-11 лет",0,0,0]
[null,null,"12-15 лет",0,0,0]
[null,null,"16 лет и старше",0,0,0]

{"sheet":"Усть-Таркский","index":35,"n_rows":49,"n_cols":7,"rows_kept":49,"cut":false,"hidden":false,"merged":[[28,1,30,1],[31,0,48,0],[31,1,34,1],[35,1,38,1],[39,1,42,1],[43,1,45,1],[46,1,48,1],[13,0,30,0],[13,1,16,1],[17,1,20,1],[21,1,24,1],[25,1,27,1],[1,0,12,0],[1,1,3,1],[4,1,6,1],[7,1,9,1],[10,1,12,1]]}
[null,null,null,"МБОУ Усть-Таркская СОШ","Дет.сад \"Колосок\"","Дет.сад \"Солнышко\"","Итого"]
["Общее количество обращений по видам помощи в   2020 г.","методическая помощь","очная ",11,10,0,21]
[null,null,"дистанционная",1,4,0,5]
[null,null,"выездная",2,0,0,2]
[null,"психолого-педагогическая помощь","очная",10,9,19,38]
[null,null,"дистанционная",2,4,0,6]
[null,null,"выездная",2,0,0,2]
[null,"диагностическая помощь","очная",1,10,2,13]
[null,null,"дистанционная",2,9,0,11]
[null,null,"выездная",2,0,0,2]
[null,"консультативная помощь","очная",9,25,12,46]
[null,null,"дистанционная",2,7,7,16]
[null,null,"выездная",2,0,0,2]
["Общее количество родителей(законных представителей), обратившихся за помощью  в 2020 г","Количество родителей (з/пр) с детьми, получающими дошкольное образование                 в форме семейного образования"," до 1,5 лет",0,0,0,0]
[null,null,"от 1,5 до 3 лет",0,0,0,0]
[null,null,"от 3 до 7 лет",0,0,0,0]
[null,null,"7 лет и старше",0,0,0,0]
[null,"Количество родителей (з/пр) детей,  не получающих дошкольное образование","до 1,5 лет",0,10,7,17]
[null,null,"от 1,5 до 3 лет",0,7,5,12]
[null,null,"от 3 до 7 лет",0,3,0,3]
[null,null,"7 лет и старше",0,2,0,2]
[null,"Количество родителей (з/пр),  с детьми, получающими дошкольное образование в ДОО","до 1,5 лет",0,0,0,0]
[null,null,"от 1,5 до 3 лет",0,15,0,15]
[null,null,"от 3 до 7 лет",0,32,5,37]
[null,null,"7 лет и старше",0,0,2,2]
[null,"Количество родителей (з/пр),  с детьми школьниками, получающими  образование в форме семейного образования","7-11 лет",1,0,0,1]
[null,null,"12-15 лет",3,0,0,3]
[null,null,"16 лет и старше",2,0,0,2]
[null,"Количество родителей (з/пр), обратившихся  с детьми школьниками, получающими  образование в ОО","7-11 лет",5,9,0,14]
[null,null," 12-15 лет",19,0,0,19]
[null,null,"16 лет и старше",5,0,0,5]
["Общее количество детей, охваченных услугами в 2020 г","Количество детей, получающих дошкольное образование в семейной форме"," до 1,5 лет",0,0,0,0]
[null,null,"от 1,5 до 3 лет",0,0,0,0]
[null,null,"от 3 до 7 лет",0,0,0,0]
[null,null," 7 лет и старше",0,0,0,0]
[null,"Количество детей, не получающих дошкольное образование"," до 1,5 лет",0,10,7,17]
[null,null,"от 1,5 до 3 лет",0,7,5,12]
[null,null,"от 3 до 7 лет",0,3,0,3]
[null,null," 7 лет и старше",0,2,0,2]
[null,"Количество детей, получающих дошкольное образование в ДОО","до 1,5 лет",0,0,0,0]
[null,null,"от 1,5 до 3 лет",0,15,0,15]
[null,null,"от 3 до 7 лет",0,32,5,37]
[null,null,"7 лет и старше",0,0,2,2]
[null,"Количество детей школьников, получающих образование в семейной форме","7-11 лет",1,0,0,1]
[null,null," 12-15 лет",3,0,0,3]
[null,null,"16 лет и старше",2,0,0,2]
[null,"Количество детей школьников, получающих образование в ОО","7-11 лет",5,9,0,14]
[null,null,"12-15 лет",19,0,0,19]
[null,null,"16 лет и старше",5,0,0,5]

{"sheet":"Чановский","index":36,"n_rows":49,"n_cols":17,"rows_kept":49,"cut":false,"hidden":false,"merged":[[28,1,30,1],[31,0,48,0],[31,1,34,1],[35,1,38,1],[39,1,42,1],[43,1,45,1],[46,1,48,1],[13,0,30,0],[13,1,16,1],[17,1,20,1],[21,1,24,1],[25,1,27,1],[1,0,12,0],[1,1,3,1],[4,1,6,1],[7,1,9,1],[10,1,12,1]]}
[null,null,null,"МБОУ Чановская СШ №1","МБОУ Чановская СШ №2","МБОУ Тебисская СШ","МБОУ Озеро-Карачинская СШ","МБОУ Щегловская СШ","МБОУ Старокарачинская СШ","МБОУ Моховская ОШ","МБОУ Красносельская СШ","МБОУ Красненская ОШ","МБОУ Зем-Заимская СШ","МБДОУ Чановский д/сад № 1 ","МБДОУ Чановский д/сад № 4","МБДОУ Оз.-Карачинский д/сад","Итого"]
["Общее количество обращений по видам помощи в   1 квартале 2021 г.","методическая помощь","очная ",0,125,0,1,10,1,0,2,2,1,0,0,13,155]
[null,null,"дистанционная",0,0,0,0,null,0,0,1,2,0,0,0,0,3]
[null,null,"выездная",0,0,5,0,null,0,0,0,null,0,0,0,0,5]
[null,"психолого-педагогическая помощь","очная",0,342,5,3,30,2,0,17,null,0,10,0,0,409]
[null,null,"дистанционная",0,0,0,0,null,0,0,10,2,0,10,0,0,22]
[null,null,"выездная",0,0,5,0,null,0,0,0,null,0,0,0,0,5]
[null,"диагностическая помощь","очная",0,0,0,0,5,0,0,0,null,3,1,1,0,10]
[null,null,"дистанционная",0,0,0,0,null,0,0,0,null,0,0,0,2,2]
[null,null,"выездная",0,0,0,0,null,0,0,0,null,0,0,0,0,0]
[null,"консультативная помощь","очная",21,530,106,28,29,9,85,26,3,47,66,73,0,1023]
[null,null,"дистанционная",13,120,14,1,null,0,0,12,4,0,23,2,10,199]
[null,null,"выездная",8,0,26,0,null,0,0,1,null,0,1,0,0,36]
["Общее количество родителей(законных представителей), обратившихся за помощью  в 1 квартале 2021 г","Количество родителей (з/пр) с детьми, получающими дошкольное образование                 в форме семейного образования"," до 1,5 лет",0,0,0,0,0,0,0,0,null,0,0,0,0,0]
[null,null,"от 1,5 до 3 лет",0,0,0,0,0,0,0,0,null,0,0,0,0,0]
[null,null,"от 4 до 7 лет",0,0,0,0,0,0,0,0,null,0,0,0,0,0]
[null,null,"7 лет и старше",0,0,0,0,0,0,0,0,null,0,0,0,0,0]
[null,"Количество родителей (з/пр) детей,  не получающих дошкольное образование","до 1,5 лет",0,0,0,0,0,0,0,0,null,0,1,0,0,1]
[null,null,"от 1,5 до 3 лет",0,0,1,0,0,0,0,0,null,0,0,0,0,1]
[null,null,"от 3 до 7 лет",0,0,0,0,0,0,0,0,null,0,1,0,1,2]
[null,null,"7 лет и старше",0,0,0,0,0,0,0,0,null,0,0,0,0,0]
[null,"Количество родителей (з/пр),  с детьми, получающими дошкольное образование в ДОО","до 1,5 лет",0,0,0,0,0,0,0,0,null,0,0,0,0,0]
[null,null,"от 1,5 до 3 лет",0,0,4,0,1,1,0,0,null,4,10,7,0,27]
[null,null,"от 3 до 7 лет",0,14,11,0,6,1,0,0,4,5,73,63,12,189]
[null,null,"7 лет и старше",0,8,0,0,0,0,0,0,null,1,0,0,0,9]
[null,"Количество родителей (з/пр),  с детьми школьниками, получающими  образование в форме семейного образования","7-11 лет",0,0,0,0,0,0,0,0,null,0,0,0,0,0]
[null,null,"12-15 лет",0,0,0,0,0,0,0,0,null,0,0,0,0,0]
[null,null,"16 лет и старше",1,1,0,0,0,0,0,0,null,0,0,0,0,2]
[null,"Количество родителей (з/пр), обратившихся  с детьми школьниками, получающими  образование в ОО","7-11 лет",24,168,43,17,16,3,43,2,null,9,0,2,0,327]
[null,null," 12-15 лет",15,195,37,11,29,4,17,32,6,12,0,0,0,358]
[null,null,"16 лет и старше",0,35,19,3,8,0,1,6,null,0,0,0,0,72]
["Общее количество детей, охваченных услугами в 1 квартале  2021 г","Количество детей, получающих дошкольное образование в семейной форме"," до 1,5 лет",0,0,0,0,0,0,0,0,null,0,0,0,0,0]
[null,null,"от 1,5 до 3 лет",0,0,0,0,0,0,0,0,null,0,0,0,0,0]
[null,null,"от 3 до 7 лет",0,0,0,0,0,0,0,0,null,0,0,0,0,0]
[null,null," 7 лет и старше",0,0,0,0,0,0,0,0,null,0,0,0,0,0]
[null,"Количество детей, не получающих дошкольное образование"," до 1,5 лет",0,0,0,0,0,0,0,0,null,0,1,0,0,1]
[null,null,"от 1,5 до 3 лет",0,0,1,0,0,0,0,0,null,0,0,0,0,1]
[null,null,"от 3 до 7 лет",0,0,0,0,0,0,0,0,null,0,1,0,1,2]
[null,null," 7 лет и старше",0,0,0,0,0,0,0,0,null,0,0,0,0,0]
[null,"Количество детей, получающих дошкольное образование в ДОО","до 1,5 лет",0,0,0,0,0,0,0,0,null,0,0,0,0,0]
[null,null,"от 1,5 до 3 лет",0,0,4,0,1,1,0,0,null,1,20,7,0,34]
[null,null,"от 3 до 7 лет",0,14,25,0,8,1,0,0,4,5,80,63,13,213]
[null,null,"7 лет и старше",0,8,0,0,0,0,0,0,null,1,0,0,0,9]
[null,"Количество детей школьников, получающих образование в семейной форме","7-11 лет",0,0,0,0,0,0,0,0,null,0,0,0,0,0]
[null,null," 12-15 лет",0,0,0,0,0,0,0,0,null,0,0,0,0,0]
[null,null,"16 лет и старше",1,1,0,0,0,0,0,0,null,0,0,0,0,2]
[null,"Количество детей школьников, получающих образование в ОО","7-10 лет",24,210,58,19,17,3,54,15,2,13,0,2,0,417]
[null,null,"12-15 лет",15,212,41,13,27,4,30,40,7,13,0,0,0,402]
[null,null,"16 лет и старше",0,29,11,3,11,0,1,14,null,0,0,0,0,69]

{"sheet":"Черепановский","index":37,"n_rows":49,"n_cols":7,"rows_kept":49,"cut":false,"hidden":false,"merged":[[28,1,30,1],[31,0,48,0],[31,1,34,1],[35,1,38,1],[39,1,42,1],[43,1,45,1],[46,1,48,1],[13,0,30,0],[13,1,16,1],[17,1,20,1],[21,1,24,1],[25,1,27,1],[1,0,12,0],[1,1,3,1],[4,1,6,1],[7,1,9,1],[10,1,12,1]]}
[null,"по состоянию на 20.03.2021",null,"ОО №1","00 №2","ОО №3","Итого"]
["Общее количество обращений по видам помощи в   1 квартале 2021 г.","методическая помощь","очная ",null,null,null,0]
[null,null,"дистанционная",null,null,null,0]
[null,null,"выездная",null,null,null,0]
[null,"психолого-педагогическая помощь","очная",4,null,null,4]
[null,null,"дистанционная",null,null,null,0]
[null,null,"выездная",null,null,null,0]
[null,"диагностическая помощь","очная",3,null,null,3]
[null,null,"дистанционная",null,null,null,0]
[null,null,"выездная",null,null,null,0]
[null,"консультативная помощь","очная",null,null,null,0]
[null,null,"дистанционная",null,null,null,0]
[null,null,"выездная",null,null,null,0]
["Общее количество родителей(законных представителей), обратившихся за помощью  в 1 квартале 2021 г","Количество родителей (з/пр) с детьми, получающими дошкольное образование                 в форме семейного образования"," до 1,5 лет",null,null,null,0]
[null,null,"от 1,5 до 3 лет",null,null,null,0]
[null,null,"от 4 до 7 лет",null,null,null,0]
[null,null,"7 лет и старше",null,null,null,0]
[null,"Количество родителей (з/пр) детей,  не получающих дошкольное образование","до 1,5 лет",null,null,null,0]
[null,null,"от 1,5 до 3 лет",null,null,null,0]
[null,null,"от 3 до 7 лет",null,null,null,0]
[null,null,"7 лет и старше",null,null,null,0]
[null,"Количество родителей (з/пр),  с детьми, получающими дошкольное образование в ДОО","до 1,5 лет",null,null,null,0]
[null,null,"от 1,5 до 3 лет",null,null,null,0]
[null,null,"от 3 до 7 лет",5,null,null,5]
[null,null,"7 лет и старше",null,null,null,0]
[null,"Количество родителей (з/пр),  с детьми школьниками, получающими  образование в форме семейного образования","7-11 лет",null,null,null,0]
[null,null,"12-15 лет",null,null,null,0]
[null,null,"16 лет и старше",null,null,null,0]
[null,"Количество родителей (з/пр), обратившихся  с детьми школьниками, получающими  образование в ОО","7-11 лет",1,null,null,1]
[null,null," 12-15 лет",null,null,null,0]
[null,null,"16 лет и старше",null,null,null,0]
["Общее количество детей, охваченных услугами в 1 квартале  2021 г","Количество детей, получающих дошкольное образование в семейной форме"," до 1,5 лет",null,null,null,0]
[null,null,"от 1,5 до 3 лет",null,null,null,0]
[null,null,"от 3 до 7 лет",null,null,null,0]
[null,null," 7 лет и старше",null,null,null,0]
[null,"Количество детей, не получающих дошкольное образование"," до 1,5 лет",null,null,null,0]
[null,null,"от 1,5 до 3 лет",null,null,null,0]
[null,null,"от 3 до 7 лет",null,null,null,0]
[null,null," 7 лет и старше",null,null,null,0]
[null,"Количество детей, получающих дошкольное образование в ДОО","до 1,5 лет",null,null,null,0]
[null,null,"от 1,5 до 3 лет",null,null,null,0]
[null,null,"от 3 до 7 лет",6,null,null,6]
[null,null,"7 лет и старше",null,null,null,0]
[null,"Количество детей школьников, получающих образование в семейной форме","7-11 лет",null,null,null,0]
[null,null," 12-15 лет",null,null,null,0]
[null,null,"16 лет и старше",null,null,null,0]
[null,"Количество детей школьников, получающих образование в ОО","7-10 лет",1,null,null,1]
[null,null,"12-15 лет",null,null,null,0]
[null,null,"16 лет и старше",null,null,null,0]

{"sheet":"Чистоозёрный","index":38,"n_rows":49,"n_cols":6,"rows_kept":49,"cut":false,"hidden":false,"merged":[[28,1,30,1],[31,0,48,0],[31,1,34,1],[35,1,38,1],[39,1,42,1],[43,1,45,1],[46,1,48,1],[13,0,30,0],[13,1,16,1],[17,1,20,1],[21,1,24,1],[25,1,27,1],[1,0,12,0],[1,1,3,1],[4,1,6,1],[7,1,9,1],[10,1,12,1]]}
[null,null,null,"МБОУ Чистоозерная СОШ №2","МБОУ Чистоозерная СОШ №3","Итого"]
["Общее количество обращений по видам помощи в   I квартале 2021 г.","методическая помощь","очная ",30,30,60]
[null,null,"дистанционная",0,0,0]
[null,null,"выездная",0,0,0]
[null,"психолого-педагогическая помощь","очная",30,30,60]
[null,null,"дистанционная",0,0,0]
[null,null,"выездная",0,0,0]
[null,"диагностическая помощь","очная",30,100,130]
[null,null,"дистанционная",0,0,0]
[null,null,"выездная",0,0,0]
[null,"консультативная помощь","очная",30,100,130]
[null,null,"дистанционная",0,0,0]
[null,null,"выездная",0,0,0]
["Общее количество родителей(законных представителей), обратившихся за помощью  в 1 квартале 2021 г","Количество родителей (з/пр) с детьми, получающими дошкольное образование                 в форме семейного образования"," до 1,5 лет",0,0,0]
[null,null,"от 1,5 до 3 лет",0,0,0]
[null,null,"от 4 до 7 лет",0,0,0]
[null,null,"7 лет и старше",0,0,0]
[null,"Количество родителей (з/пр) детей,  не получающих дошкольное образование","до 1,5 лет",0,0,0]
[null,null,"от 1,5 до 3 лет",0,0,0]
[null,null,"от 3 до 7 лет",0,0,0]
[null,null,"7 лет и старше",0,0,0]
[null,"Количество родителей (з/пр),  с детьми, получающими дошкольное образование в ДОО","до 1,5 лет",0,0,0]
[null,null,"от 1,5 до 3 лет",0,0,0]
[null,null,"от 3 до 7 лет",0,0,0]
[null,null,"7 лет и старше",0,0,0]
[null,"Количество родителей (з/пр),  с детьми школьниками, получающими  образование в форме семейного образования","7-11 лет",0,0,0]
[null,null,"12-15 лет",0,0,0]
[null,null,"16 лет и старше",0,0,0]
[null,"Количество родителей (з/пр), обратившихся  с детьми школьниками, получающими  образование в ОО","7-11 лет",40,120,160]
[null,null," 12-15 лет",60,120,180]
[null,null,"16 лет и старше",20,20,40]
["Общее количество детей, охваченных услугами в 1 квартале  2021 г","Количество детей, получающих дошкольное образование в семейной форме"," до 1,5 лет",0,0,0]
[null,null,"от 1,5 до 3 лет",0,0,0]
[null,null,"от 3 до 7 лет",0,0,0]
[null,null," 7 лет и старше",0,0,0]
[null,"Количество детей, не получающих дошкольное образование"," до 1,5 лет",0,0,0]
[null,null,"от 1,5 до 3 лет",0,0,0]
[null,null,"от 3 до 7 лет",0,0,0]
[null,null," 7 лет и старше",0,0,0]
[null,"Количество детей, получающих дошкольное образование в ДОО","до 1,5 лет",0,0,0]
[null,null,"от 1,5 до 3 лет",0,0,0]
[null,null,"от 3 до 7 лет",0,0,0]
[null,null,"7 лет и старше",0,0,0]
[null,"Количество детей школьников, получающих образование в семейной форме","7-11 лет",0,0,0]
[null,null," 12-15 лет",0,0,0]
[null,null,"16 лет и старше",0,0,0]
[null,"Количество детей школьников, получающих образование в ОО","7-10 лет",40,120,160]
[null,null,"12-15 лет",60,120,180]
[null,null,"16 лет и старше",20,20,40]

{"sheet":"Чулымский","index":39,"n_rows":49,"n_cols":7,"rows_kept":49,"cut":false,"hidden":false,"merged":[[28,1,30,1],[31,0,48,0],[31,1,34,1],[35,1,38,1],[39,1,42,1],[43,1,45,1],[46,1,48,1],[13,0,30,0],[13,1,16,1],[17,1,20,1],[21,1,24,1],[25,1,27,1],[1,0,12,0],[1,1,3,1],[4,1,6,1],[7,1,9,1],[10,1,12,1]]}
[null,null,null,"МКОУ Чулымский лицей","00 №2","ОО №3","Итого"]
["Общее количество обращений по видам помощи в   1 квартале 2021 г.","методическая помощь","очная ",null,null,null,0]
[null,null,"дистанционная",null,null,null,0]
[null,null,"выездная",null,null,null,0]
[null,"психолого-педагогическая помощь","очная",null,null,null,0]
[null,null,"дистанционная",null,null,null,0]
[null,null,"выездная",null,null,null,0]
[null,"диагностическая помощь","очная",null,null,null,0]
[null,null,"дистанционная",10,null,null,10]
[null,null,"выездная",null,null,null,0]
[null,"консультативная помощь","очная",7,null,null,7]
[null,null,"дистанционная",null,null,null,0]
[null,null,"выездная",null,null,null,0]
["Общее количество родителей(законных представителей), обратившихся за помощью  в 1 квартале 2021 г","Количество родителей (з/пр) с детьми, получающими дошкольное образование                 в форме семейного образования"," до 1,5 лет",null,null,null,0]
[null,null,"от 1,5 до 3 лет",null,null,null,0]
[null,null,"от 3 до 7 лет",2,null,null,2]
[null,null,"7 лет и старше",null,null,null,0]
[null,"Количество родителей (з/пр) детей,  не получающих дошкольное образование","до 1,5 лет",null,null,null,0]
[null,null,"от 1,5 до 3 лет",null,null,null,0]
[null,null,"от 3 до 7 лет",null,null,null,0]
[null,null,"7 лет и старше",null,null,null,0]
[null,"Количество родителей (з/пр),  с детьми, получающими дошкольное образование в ДОО","до 1,5 лет",null,null,null,0]
[null,null,"от 1,5 до 3 лет",null,null,null,0]
[null,null,"от 3 до 7 лет",null,null,null,0]
[null,null,"7 лет и старше",null,null,null,0]
[null,"Количество родителей (з/пр),  с детьми школьниками, получающими  образование в форме семейного образования","7-11 лет",null,null,null,0]
[null,null,"12-15 лет",null,null,null,0]
[null,null,"16 лет и старше",null,null,null,0]
[null,"Количество родителей (з/пр), обратившихся  с детьми школьниками, получающими  образование в ОО","7-11 лет",6,null,null,6]
[null,null," 12-15 лет",2,null,null,2]
[null,null,"16 лет и старше",7,null,null,7]
["Общее количество детей, охваченных услугами в 1 квартале  2021 г","Количество детей, получающих дошкольное образование в семейной форме"," до 1,5 лет",null,null,null,0]
[null,null,"от 1,5 до 3 лет",null,null,null,0]
[null,null,"от 3 до 7 лет",2,null,null,2]
[null,null," 7 лет и старше",null,null,null,0]
[null,"Количество детей, не получающих дошкольное образование"," до 1,5 лет",null,null,null,0]
[null,null,"от 1,5 до 3 лет",null,null,null,0]
[null,null,"от 3 до 7 лет",null,null,null,0]
[null,null," 7 лет и старше",null,null,null,0]
[null,"Количество детей, получающих дошкольное образование в ДОО","до 1,5 лет",null,null,null,0]
[null,null,"от 1,5 до 3 лет",null,null,null,0]
[null,null,"от 3 до 7 лет",null,null,null,0]
[null,null,"7 лет и старше",null,null,null,0]
[null,"Количество детей школьников, получающих образование в семейной форме","7-11 лет",null,null,null,0]
[null,null," 12-15 лет",null,null,null,0]
[null,null,"16 лет и старше",null,null,null,0]
[null,"Количество детей школьников, получающих образование в ОО","7-11 лет",9,null,null,9]
[null,null,"12-15 лет",3,null,null,3]
[null,null,"16 лет и старше",5,null,null,5]

{"sheet":"Конец","index":40,"n_rows":0,"n_cols":0,"rows_kept":0,"cut":false,"hidden":false,"merged":[]}